Workbook

Sheet CCM-CENTRO-ITINERANTE (hidden)
C3: ALISTAMIENTO | D3: ATENCIÓN | E3: CIERRE | F3: CCM (Promedio)
A4: 2025 | B4: CCM (Promedio) ITINERANTE | C4: 338563 | D4: 390223 | E4: 315168 | F4: 381172
A5: 2024 | B5: CCM (Promedio) CENTROS | C5: 1272486 | D5: 1566583 | E5: 1543582 | F5: 1543933

Sheet TempListas (hidden)
A1: ANTIOQUIA
A2: ATLÁNTICO
A3: BOGOTÁ DC
A4: BOLÍVAR
A5: BOYACÁ
A6: CALDAS
A7: CAQUETÁ
A8: CAUCA
A9: CESAR
A10: CÓRDOBA
A11: CUNDINAMARCA
A12: CHOCÓ
A13: HUILA
A14: LA GUAJIRA
A15: MAGDALENA
A16: META
A17: NARIÑO
A18: NORTE DE SANTANDER
A19: QUINDÍO
A20: RISARALDA
A21: SANTANDER
A22: SUCRE
A23: TOLIMA
A24: VALLE DEL CAUCA
A25: ARAUCA
A26: CASANARE
A27: PUTUMAYO
A28: SAN ANDRÉS
A29: AMAZONAS
A30: GUAINÍA
A31: GUAVIARE
A32: VAUPÉS
A33: VICHADA

Sheet INSTRUCTIVO
C2: PROCESO PROMOCIÓN Y PREVENCIÓN FORMATO SEGUIMIENTO FINANCIERO CENTROS DE APOYO A LA INCLUSION ITINERANTE | D2: =+'1. PRESUPUESTO INICIAL'!F1 -> F24.GO1.MT7.PP | E2: =+'1. PRESUPUESTO INICIAL'!G1 -> 2025-08-22
D3: =+'1. PRESUPUESTO INICIAL'!F2 -> Versión 1 | E3: Página 1 de 1
D4: Clasificación de la Información Pública
B5: INSTRUCTIVO
B6: HOJA 1
B7: 1. PRESUPUESTO
B8: OBJETIVO
B9: Dar a conocer en detalle el valor del presupuesto de ingresos y gastos presentado de acuerdo con la estructura del estudio de costos.
B10: FUENTE DE INFORMACION El estudio de costos de Centros de Apoyo a la Inclusión con sus anexos, propuesta, modificaciones en el marco del comité técnico.
B11: INFORMACIÓN GENERAL DEL CONTRATO/CONVENIO/INICIATIVA
B12: Forma de atención: seleccione en la lista desplegable la forma de atención.
B13: Regional: seleccione en la lista desplegable el nombre de la regional donde se desarrolla el contrato /convenio/ experiencia.
B14: Centro Zonal: seleccione en la lista desplegable el nombre del centro zonal donde se desarrolla el contrato /convenio/ experiencia.
B15: Zona: seleccione en la lista desplegable la zona donde se desarrolla el contrato /convenio/ experiencia.
B16: Municipio: digite el o los municipios donde se desarrolla el contrato /convenio/ experiencia.
B17: Entidad Contratista: Digite el nombre de la entidad.
B18: Nit: Digite el Nit de la entidad.
B19: N° del contrato: Ingrese número
B20: Fecha Inicio: Ingrese la fecha en la cual inicio el contrato /convenio/ experiencia.
B21: Fecha Final: Ingrese la fecha en la cual finaliza el contrato /convenio/ experiencia.
B22: Cupos contratados: Digite de acuerdo con la forma de atención registre el número de cupos contratados.
B23: Tiempo de atención: Digite de acuerdo con la forma de atención el tiempo de atención total (alistamiento, atención y cierre)
B24: Etapa contractual: valor que trae automáticamente el formato
B25: Costo cupo mes: valor que trae automáticamente el formato
B26: Valor mensual: valor que trae automáticamente el formato
B27: Tiempo por etapa: valor que trae automáticamente el formato
B28: Valor total contrato: valor que trae automáticamente el formato
B29: Valor total aporte: valor que trae automáticamente el formato
B30: 1. PRESUPUESTO DE INGRESOS: valor que trae automáticamente el formato.
B31: 2. PRESUPUESTO DE EGRESOS
B32: 2.1. PRESUPUESTO DE TALENTO HUMANO Y GASTOS DE VIAJE: Código, Componente del costo o gasto y Etapa de costo o gasto son valores que se traen automáticamente de la tabla de referencia del estudio de costos.
B33: 2.2. NIÑAS, NIÑOS Y ADOLESCENTES: Código, Componente del costo o gasto y Etapa de costo o gasto son valores que se traen automáticamente de la tabla de referencia del estudio de costos.
B34: 2.3. OTROS GASTOS ADMINISTRATIVOS, OPERATIVOS Y FINANCIEROS: Código, Componente del costo o gasto y Etapa de costo o gasto son valores que se traen automáticamente de la tabla de referencia del estudio de costos.
B35: TOTAL PRESUPUESTO DE GASTOS: es el total global de cada etapa (alistamiento, atención y cierre)
B36: DIFERENCIA: diferencia entre el valor de la etapa inicial según CCM y el total de la etapa por rubro.
B37: CONTROL DE VALORES: VERDADERO sin diferencia FALSO alerta, revisar la información ingresada.
B39: NOTA 1: Todos los campos son editable, las Celdas con fondo verde claro son campos campos con valores de referencia los cuales pueden ser editados.
B41: HOJA 2
B42: 2. INFORMACION GENERAL
B43: OBJETIVO
B44: Realizar seguimiento a la ejecución de los contratos asignados por cada una de las regiones y zonas para la atención de niñas niños y adolescentes de la modalidad ATRAPASUEÑOS
B45: FUENTE DE LA INFORMACION: hoja 1 PRESUPUESTO inicial
B46: Tener presente que la información debe coincidir con los datos de la hoja 1. PRESUPUESTO
B47: Etapa de Alistamiento
B48: Digite el valor ejecutado por cada uno de los rubros asignados
B49: TOTAL INEJECUCIONES MES (Inasistencias + No ejecutado + Diferencia Soportes): Diligencie el valor de las inasistencias y lo no ejecutado en el tiempo asignado.
B50: Etapa de Atencion
B51: Digite el valor ejecutado por cada uno de los rubros asignados tenga presente que es mes vencido
B52: TOTAL INEJECUCIONES MES (Inasistencias + No ejecutado + Diferencia Soportes): Diligencie el valor de las inasistencias y lo no ejecutado en el mes
B53: Etapa de cierre
B54: Digite el valor ejecutado por cada uno de los rubros asignados
B55: TOTAL INEJECUCIONES MES (Inasistencias + No ejecutado + Diferencia Soportes): Diligencie el valor de las inasistencias y lo no ejecutado en el mes
B56: Rendimientos Financieros
B57: Fecha de inicio : coloque la fecha de ingreso de los recursos asignados por el ICBF
B58: Fecha de corte: ultimo dia del mes
B59: Valor rendimientos: Sumar los valores reportados en el extracto teniendo en cuenta la etapa desarrollada .
B60: Fecha de consignación: se reintegrar a las cuentas del ICBF según corresponda la atención
B61: Reintegro
B62: Fecha del reintegro: coloque la fecha en la cual realiza la consignación a la entidad y anexa el soporte
B64: NOTA 1: Todos los campos son editables.
B67: HOJA 3
B68: 3. CONTRAPARTIDA
B69: OBJETIVO
B70: Dar a conocer en detalle el valor de la contrapartida, que aportara el contratista indicando las líneas de atención, su valor inicial presupuestado, el valor ejecutado y el saldo final.
B71: FUENTE DE INFORMACIÓN
B72: Información contenida en la propuesta presentada por el operador u organizacion al ICBF, la información reportada por operador u organizacion.
B73: Detalles de la ejecución de la contrapartida
B74: Codigo: Corresponde al código asignado a cada la línea de inversión.
B75: Líneas de Inversión: nombre que está contenida en el estudio previo.
B76: Descripción: Corresponde al detalle de la línea de inversión por el cual se efectuará el gasto.
B77: Valor Presupuestado: Corresponde al valor asignado para ser ejecutado de acuerdo con la propuesta inicial presentada y las modificaciones autorizadas por el supervisor.
B78: Periodo mensual: Columna para cada uno de los periodos de la vigencia del contrato/convenio/experiencia donde se debe registrar el valor ejecutado en cada uno de ellos.
B79: Valor ejecutado a la fecha: Corresponde al valor que se ha ejecutado en el marco del contrato/convenio/experiencia. Contiene columnas por cada periodo que informe.
B80: Saldo por ejecutar: Corresponde al valor presupuestado menos el valor ejecutado a la fecha. Celda formulada
B82: NOTA 3: Este formato va acumulando la información por periodos en las celdas de valores Totales.
B85: HOJA 4
B86: 4. DETALLADA _RECURSOS ICBF
B87: OBJETIVO
B88: Realizar seguimiento a la ejecución de los contratos asignados por cada una de las regiones y zonas para la atención de niñas niños y adolescentes de la modalidad ATRAPASUEÑOS
B89: FUENTE DE LA INFORMACION: Los operadores realizan el diligenciamiento en la etapa correspondiente
B90: Selecciona la etapa, digita fecha del soporte que se va a asignar de acuerdo con seleccionar en la fila que ingresa la información solicitada en cada una de las filas según descripción
B92: NOTA 4: Todos los ingresos y egresos ocasionados en los rubros anteriormente descritos y utilizados en la modalidad, deben ser registrados en su totalidad en el informe de ingresos y egresos, así como en la contabilidad de la entidad para su respectivo seguimiento y control.
B93: NOTA 5: El presupuesto debe ser firmado por el contador y/o revisor fiscal (cuando esté obligado a tenerlo) y el representante legal.
B94: NOTA 6: Todas las donaciones que se realicen a los programas del ICBF deben ser registradas en el informe de ingresos y egresos, si la entidad presta otros servicios y dicha donación se realizó a esos programas específicos, no se debe reportar la donación en los informes del ICBF.
B95: NOTA 7: Para que la formulación de la hoja funcione de manera correcta, es necesario diligenciar la información completa y no dejar campos en blanco.
B97: IMPORTANTE!!! Este archivo emplea Macros (herramienta útil y eficiente que permite automatizar tareas, reducir el tiempo y permite concentrarte en el analisis y toma de decisisón).
B98: A continuación se encuentra un tutorial para activar las Macros :
B99: https://www.youtube.com/watch?v=iniQjS3MQa0&t=3s
B102: HOJA 5
B103: 5. TABLA TOTALES EJECUTADOS
B104: OBJETIVO
B105: Tabla Dinámica que permite validar la información de seguimiento a la ejecución de los contratos asignados por cada una de las regiones y zonas para la atención de niñas niños y adolescentes de la Modalidad ATRAPASUEÑOS
B106: FUENTE DE LA INFORMACION: Los operadores Actualizan la información de la Tabla Dinamica, la cual toma datos de la Hoja 4. DETALLADA - RECURSOS ICBF
B111: ¡Antes de imprimir este documento… piense en el medio ambiente! Cualquier copia impresa de este documento se considera como COPIA NO CONTROLADA LOS DATOS PROPORCIONADOS SERÁN TRATADOS DE ACUERDO A LA POLÍTICA DE TRATAMIENTO DE DATOS PERSONALES DEL ICBF Y A LA LEY 1581 DE 2012

Sheet Listas (hidden)
B1: Cód. Regional | C1: Regional | D1: Forma | E1: Cód. Regional | F1: Regional | G1: Cód. Sucursal o Centro Zonal | H1: NOMBRE CENTRO ZONAL | I1: FORMA | J1: Cód. Regional | K1: Regional | L1: Cód. Sucursal o Centro Zonal | M1: NOMBRE CENTRO ZONAL | N1: Cód. Municipio | O1: NOMBRE MUNICIPIO | P1: Codigo DANE departamento | Q1: Nombre DANE Departamento | R1: Cód. DANE | S1: Nombre municipio/Centro poblado | T1: TIPO | V1: Formas | W1: Contrapartida | Y1: Tiempo Etapa | AC1: Meses | AD1: DETALLADA RECURSOS- LISTA DESPLEGABLE
B2: 91 | C2: AMAZONAS | D2: ITINERANTE | E2: 05 | F2: ANTIOQUIA | G2: 0501 | H2: CZ INTEGRAL NORORIENTAL | I2: CENTROS | J2: 05 | K2: ANTIOQUIA | L2: 0501 | M2: CZ INTEGRAL NORORIENTAL | N2: 05001 | O2: MEDELLÍN | P2: 05 | Q2: ANTIOQUIA | R2: 05001 | S2: MEDELLÍN | T2: Municipio | V2: CENTROS | W2: =+'1. PRESUPUESTO INICIAL'!D20 -> 0 | X2: ETAPA CONTRACTUAL | Y2: CENTROS | Z2: ITINERANTE | AC2: Mes 1 | AD2: FORMA ATENCIÓN | AE2: CONCEPTO | AF2: FORMA ATENCIÓN - CONCEPTO | AG2: FORMA ATENCIÓN | AH2: CONCEPTO | AI2: DETALLE | AP2: TALENTO_HUMANO | AQ2: COMPLEMENTACION_ALIMENTARIA_Y_NUTRICIONAL | AR2: TRANSPORTE_NNA | AS2: DOTACION | AT2: MATERIAL_IDENTIFICACION | AU2: POLIZA | AV2: GASTOS_OPERATIVOS | AW2: UTILIZACION_DE_INSTALACIONES_EN_AMBIENTES_SANOS | AX2: GRAVAMEN_MOVIMIENTOS_FINANCIEROS_GMF | AY2: MATERIALES_E_INSUMOS | BC2: TALENTO_HUMANO_IN | BD2: COMPLEMENTACION_ALIMENTARIA_Y_NUTRICIONAL_IN
B3: 05 | C3: ANTIOQUIA | D3: ITINERANTE | E3: 05 | F3: ANTIOQUIA | G3: 0502 | H3: CZ INTEGRAL NOROCCIDENTAL | I3: CENTROS | J3: 05 | K3: ANTIOQUIA | L3: 0502 | M3: CZ INTEGRAL NOROCCIDENTAL | N3: 05001 | O3: MEDELLÍN | P3: 05 | Q3: ANTIOQUIA | R3: 05001 | S3: MEDELLÍN | T3: Municipio | V3: ITINERANTE | W3: 0 | X3: Alistamiento | Y3: 0.5 | Z3: 0.5 | AC3: Mes 2 | AD3: CENTROS | AE3: TALENTO HUMANO | AF3: CENTROS_TALENTO_HUMANO | AG3: CENTROS | AH3: TALENTO HUMANO | AI3: Coordinador | AP3: Coordinador | AQ3: Encuentros Grupales | AR3: Transporte NNA | AS3: Reposición dotación lúdico - pedagógica - deportiva | AT3: Chaleco | AU3: Póliza | AV3: Aseo | AW3: Utilización de Instalaciones en Ambientes Sanos | AX3: Gravamen Movimientos Financieros GMF | AY3: Bolígrafos mina negra | BC3: Uno | BD3: Encuentros Grupales
B4: 81 | C4: ARAUCA | D4: ITINERANTE | E4: 05 | F4: ANTIOQUIA | G4: 0504 | H4: CZ SUR ORIENTE | I4: CENTROS | J4: 05 | K4: ANTIOQUIA | L4: 0504 | M4: CZ SUR ORIENTE | N4: 05001 | O4: MEDELLÍN | P4: 05 | Q4: ANTIOQUIA | R4: 05001 | S4: MEDELLÍN | T4: Municipio | X4: Atención | Y4: 6 | Z4: 3 | AC4: Mes 3 | AD4: CENTROS | AE4: TRANSPORTE Y VIAJES DEL TH | AF4: CENTROS_TALENTO_HUMANO | AI4: Orientador Pedagógico para la Inclusión | AP4: Orientador Pedagógico para la Inclusión | AQ4: Encuentros Familiares | AS4: Reposición Menaje de alimentación | AT4: Gorra | AV4: Reparación y mantenimiento de dotación instituciona | AY4: Palo de Paleta | BC4: Dos | BD4: Encuentros Familiares
B5: 08 | C5: ATLÁNTICO | D5: ITINERANTE | E5: 05 | F5: ANTIOQUIA | G5: 0535 | H5: CZ LA FLORESTA | I5: CENTROS | J5: 05 | K5: ANTIOQUIA | L5: 0535 | M5: CZ LA FLORESTA | N5: 05001 | O5: MEDELLÍN | P5: 05 | Q5: ANTIOQUIA | R5: 05001 | S5: MEDELLÍN | T5: Municipio | V5: SI | X5: Cierre | Y5: 0.5 | Z5: 0.5 | AC5: Mes 4 | AD5: CENTROS | AE5: APOYOS NUTRICIONALES | AF5: CENTROS_TALENTO_HUMANO | AI5: Auxiliares Pedagógicos para la inclusión | AP5: Auxiliares Pedagógicos para la inclusión | AQ5: Encuentros Comunitarios | AS5: Dotación de aseo e higiene personal | AT5: Camisetas | AV5: Servicios públicos | AY5: Marcadores no borrables | BC5: Tres | BD5: Encuentros Comunitarios
B6: 11 | C6: BOGOTÁ DC | D6: ITINERANTE | E6: 05 | F6: ANTIOQUIA | G6: 0536 | H6: CZ ROSALES | I6: CENTROS | J6: 05 | K6: ANTIOQUIA | L6: 0536 | M6: CZ ROSALES | N6: 05001 | O6: MEDELLÍN | P6: 05 | Q6: ANTIOQUIA | R6: 05001 | S6: MEDELLÍN | T6: Municipio | V6: NO | X6: TOTAL TIEMPO | Y6: =SUM(Y3:Y5) -> 7 | Z6: =SUM(Z3:Z5) -> 4 | AC6: Mes 5 | AD6: CENTROS | AE6: DOTACIÓN | AF6: CENTROS_TALENTO_HUMANO | AI6: Orientador para la eliminación de barreras para la comunicación. | AP6: Orientador para la eliminación de barreras para la comunicación. | AS6: Botiquín | AT6: Carné | AV6: Papelería | AY6: Papel kraft | BD6: Encuentros Comunitarios
B7: 13 | C7: BOLÍVAR | D7: ITINERANTE | E7: 05 | F7: ANTIOQUIA | G7: 0512 | H7: CZ ORIENTE | I7: CENTROS | J7: 05 | K7: ANTIOQUIA | L7: 0512 | M7: CZ ORIENTE | N7: 05002 | O7: ABEJORRAL | P7: 05 | Q7: ANTIOQUIA | R7: 05002 | S7: ABEJORRAL | T7: Municipio | AC7: Mes 6 | AD7: CENTROS | AE7: SERVICIO DE COMUNICACIÓN MÓBIL E NTERNET | AF7: CENTROS_TALENTO_HUMANO | AI7: Orientador para la eliminación de barreras para la movilidad y la vida independiente | AP7: Orientador para la eliminación de barreras para la movilidad y la vida independiente | AT7: Pendón | AV7: Mantenimiento de instalaciones locativas | AY7: Cinta de enmascarar
B8: 15 | C8: BOYACÁ | D8: ITINERANTE | E8: 05 | F8: ANTIOQUIA | G8: 0511 | H8: CZ OCCIDENTE MEDIO | I8: CENTROS | J8: 05 | K8: ANTIOQUIA | L8: 0511 | M8: CZ OCCIDENTE MEDIO | N8: 05004 | O8: ABRIAQUÍ | P8: 05 | Q8: ANTIOQUIA | R8: 05004 | S8: ABRIAQUÍ | T8: Municipio | X8: Alistamiento | AC8: Mes 7 | AD8: CENTROS | AE8: MATERIAL IDENTIFICACIÓN | AF8: CENTROS_TALENTO_HUMANO | AI8: Orientador para la gestión de servicios y apoyos para la gestión emocional, proyectos de vida y sistemas de apoyo para la toma de decisiones. | AP8: Orientador para la gestión de servicios y apoyos para la gestión emocional, proyectos de vida y sistemas de apoyo para la toma de decisiones. | AV8: Acciones de movilización social | AY8: Papel bond
B9: 17 | C9: CALDAS | D9: ITINERANTE | E9: 05 | F9: ANTIOQUIA | G9: 0506 | H9: CZ ABURRA SUR | I9: CENTROS | J9: 05 | K9: ANTIOQUIA | L9: 0512 | M9: CZ ORIENTE | N9: 05021 | O9: ALEJANDRÍA | P9: 05 | Q9: ANTIOQUIA | R9: 05021 | S9: ALEJANDRÍA | T9: Municipio | X9: Atención Mes 1 | AC9: Mes 8 | AD9: CENTROS | AE9: SEGURO | AF9: CENTROS_TALENTO_HUMANO | AI9: Asistentes de vida independiente | AP9: Asistentes de vida independiente | AV9: Gastos bancarios (comisiones, transferencias y chequeras) | AY9: Tijeras punta roma
B10: 18 | C10: CAQUETÁ | D10: ITINERANTE | E10: 05 | F10: ANTIOQUIA | G10: 0513 | H10: CZ PORCE NUS | I10: CENTROS | J10: 05 | K10: ANTIOQUIA | L10: 0506 | M10: CZ ABURRA SUR | N10: 05030 | O10: AMAGÁ | P10: 05 | Q10: ANTIOQUIA | R10: 05030 | S10: AMAGÁ | T10: Municipio | X10: Atención Mes 2 | AC10: Mes 9 | AD10: CENTROS | AE10: APOYO A INICIATIVAS | AF10: CENTROS_TALENTO_HUMANO | AI10: Orientador de seguimiento a la salud y la nutrición | AP10: Orientador de seguimiento a la salud y la nutrición | AV10: Materiales o dispositivos de apoyo de baja complejidad para los participantes | AY10: Lápices
X11: Atención Mes 3 | AD11: CENTROS | AF11: CENTROS_TALENTO_HUMANO | AI11: Orientador para el desarrollo integral desde componentes de atención | AP11: Orientador para el desarrollo integral desde componentes de atención | AV11: Otros (lo que se requiera para el adecuado desarrollo de la Modalidad) | AY11: Arcilla
B12: 85 | C12: CASANARE | D12: ITINERANTE | E12: 05 | F12: ANTIOQUIA | G12: 0514 | H12: CZ SUROESTE | I12: CENTROS | J12: 05 | K12: ANTIOQUIA | L12: 0513 | M12: CZ PORCE NUS | N12: 05031 | O12: AMALFI | P12: 05 | Q12: ANTIOQUIA | R12: 05031 | S12: AMALFI | T12: Municipio | X12: Atención Mes 4 | AC12: Mes 10 | AD12: CENTROS | AE12: GASTOS OPERATIVOS | AF12: CENTROS_TALENTO_HUMANO | AI12: Orientador para el desarrollo a acceso a herramientas de tecnología e informática | AP12: Orientador para el desarrollo a acceso a herramientas de tecnología e informática | AY12: Cartón paja
B13: 19 | C13: CAUCA | D13: ITINERANTE | E13: 05 | F13: ANTIOQUIA | G13: 0508 | H13: CZ LA MESETA | I13: CENTROS | J13: 05 | K13: ANTIOQUIA | L13: 0514 | M13: CZ SUROESTE | N13: 05034 | O13: ANDES | P13: 05 | Q13: ANTIOQUIA | R13: 05034 | S13: ANDES | T13: Municipio | X13: Atención Mes 5 | AC13: Mes 11 | AD13: CENTROS | AE13: GRAVAMEN MOVIMIENTOS FINANCIEROS GMF | AF13: CENTROS_TALENTO_HUMANO | AI13: Auxiliar Administrativo | AP13: Auxiliar Administrativo | AY13: Cartulina
B14: 20 | C14: CESAR | D14: ITINERANTE | E14: 05 | F14: ANTIOQUIA | G14: 0510 | H14: CZ OCCIDENTE | I14: CENTROS | J14: 05 | K14: ANTIOQUIA | L14: 0506 | M14: CZ ABURRA SUR | N14: 05036 | O14: ANGELÓPOLIS | P14: 05 | Q14: ANTIOQUIA | R14: 05036 | S14: ANGELÓPOLIS | T14: Municipio | X14: Atención Mes 6 | AC14: Mes 12 | AD14: CENTROS | AE14: MATERIAL DE CONSUMO | AF14: CENTROS_TALENTO_HUMANO | AI14: Manipulador de alimentos para la atención en punto fijo | AP14: Manipulador de alimentos para la atención en punto fijo | AY14: Pegante líquido
B15: 27 | C15: CHOCÓ | D15: ITINERANTE | E15: 05 | F15: ANTIOQUIA | G15: 0516 | H15: CZ URABA | I15: CENTROS | J15: 05 | K15: ANTIOQUIA | L15: 0535 | M15: CZ LA FLORESTA | N15: 05036 | O15: ANGELÓPOLIS | P15: 05 | Q15: ANTIOQUIA | R15: 05036 | S15: ANGELÓPOLIS | T15: Municipio | X15: Atención Mes 7 | AD15: CENTROS | AE15: TALENTO HUMANO | AF15: CENTROS_TALENTO_HUMANO | AI15: Servicios Generales para la atención en punto fijo | AP15: Servicios Generales para la atención en punto fijo | AY15: Vinilo
B16: 23 | C16: CÓRDOBA | D16: ITINERANTE | E16: 05 | F16: ANTIOQUIA | G16: 0505 | H16: CZ ABURRA NORTE | I16: CENTROS | J16: 05 | K16: ANTIOQUIA | L16: 0508 | M16: CZ LA MESETA | N16: 05038 | O16: ANGOSTURA | P16: 05 | Q16: ANTIOQUIA | R16: 05038 | S16: ANGOSTURA | T16: Municipio | X16: Atención Mes 8 | AD16: CENTROS | AE16: COMPLEMENTACIÓN ALIMENTARIA Y NUTRICIONAL | AF16: CENTROS_COMPLEMENTACIÓN_ALIMENTARIA_Y_NUTRICIONAL | AH16: COMPLEMENTACIÓN ALIMENTARIA Y NUTRICIONAL | AI16: Encuentros Grupales | AY16: Papel iris
B17: 25 | C17: CUNDINAMARCA | D17: ITINERANTE | E17: 05 | F17: ANTIOQUIA | G17: 0515 | H17: CZ PENDERISCO | I17: CENTROS | J17: 05 | K17: ANTIOQUIA | L17: 0513 | M17: CZ PORCE NUS | N17: 05040 | O17: ANORÍ | P17: 05 | Q17: ANTIOQUIA | R17: 05040 | S17: ANORÍ | T17: Municipio | X17: Atención Mes 9 | AD17: CENTROS | AE17: TRANSPORTE NNA | AF17: CENTROS_COMPLEMENTACIÓN_ALIMENTARIA_Y_NUTRICIONAL | AI17: Encuentros Familiares | AY17: Lana
B18: 94 | C18: GUAINÍA | D18: ITINERANTE | E18: 05 | F18: ANTIOQUIA | G18: 0507 | H18: CZ BAJO CAUCA | I18: CENTROS | J18: 05 | K18: ANTIOQUIA | L18: 0510 | M18: CZ OCCIDENTE | N18: 05042 | O18: SANTA FÉ DE ANTIOQUIA | P18: 05 | Q18: ANTIOQUIA | R18: 05042 | S18: SANTA FÉ DE ANTIOQUIA | T18: Municipio | X18: Atención Mes 10 | AD18: CENTROS | AE18: DOTACIÓN | AF18: CENTROS_COMPLEMENTACIÓN_ALIMENTARIA_Y_NUTRICIONAL | AI18: Encuentros Comunitarios | AY18: Plastilina
B19: 95 | C19: GUAVIARE | D19: ITINERANTE | E19: 05 | F19: ANTIOQUIA | G19: 0509 | H19: CZ MAGDALENA MEDIO | I19: CENTROS | J19: 05 | K19: ANTIOQUIA | L19: 0510 | M19: CZ OCCIDENTE | N19: 05044 | O19: ANZA | P19: 05 | Q19: ANTIOQUIA | R19: 05044 | S19: ANZÁ | T19: Municipio | X19: Atención Mes 11 | AD19: CENTROS | AE19: MATERIAL IDENTIFICACIÓN | AF19: CENTROS_TRANSPORTE_NNA | AH19: TRANSPORTE NNA | AI19: Transporte NNA | AY19: Colores
B20: 41 | C20: HUILA | D20: ITINERANTE | E20: 05 | F20: ANTIOQUIA | G20: 0517 | H20: CZ ORIENTE MEDIO | I20: CENTROS | J20: 05 | K20: ANTIOQUIA | L20: 0516 | M20: CZ URABA | N20: 05045 | O20: APARTADÓ | P20: 05 | Q20: ANTIOQUIA | R20: 05045 | S20: APARTADÓ | T20: Municipio | X20: Atención Mes 12 | AD20: CENTROS | AE20: PÓLIZA | AF20: CENTROS_DOTACIÓN | AH20: DOTACIÓN | AI20: Reposición dotación lúdico - pedagógica - deportiva | AY20: Papel Periódico
B21: 44 | C21: LA GUAJIRA | D21: ITINERANTE | E21: 08 | F21: ATLÁNTICO | G21: 0801 | H21: CZ NORTE CENTRO HISTORICO | I21: CENTROS | J21: 05 | K21: ANTIOQUIA | L21: 0516 | M21: CZ URABA | N21: 05051 | O21: ARBOLETES | P21: 05 | Q21: ANTIOQUIA | R21: 05051 | S21: ARBOLETES | T21: Municipio | X21: Cierre | AD21: CENTROS | AE21: APOYO A INICIATIVAS | AF21: CENTROS_DOTACIÓN | AI21: Reposición Menaje de alimentación | AY21: Pimpones
B22: 47 | C22: MAGDALENA | D22: ITINERANTE | E22: 08 | F22: ATLÁNTICO | G22: 0802 | H22: CZ SUROCCIDENTE | I22: CENTROS | J22: 05 | K22: ANTIOQUIA | L22: 0512 | M22: CZ ORIENTE | N22: 05055 | O22: ARGELIA | P22: 05 | Q22: ANTIOQUIA | R22: 05055 | S22: ARGELIA | T22: Municipio | AD22: CENTROS | AE22: GASTOS OPERATIVOS | AF22: CENTROS_DOTACIÓN | AI22: Dotación de aseo e higiene personal | AY22: Pinceles
B23: 50 | C23: META | D23: ITINERANTE | E23: 08 | F23: ATLÁNTICO | G23: 0807 | H23: CZ SURORIENTE | I23: CENTROS | J23: 05 | K23: ANTIOQUIA | L23: 0506 | M23: CZ ABURRA SUR | N23: 05059 | O23: ARMENIA | P23: 05 | Q23: ANTIOQUIA | R23: 05059 | S23: ARMENIA | T23: Municipio | AD23: CENTROS | AE23: UTILIZACIÓN DE INSTALACIONES EN AMBIENTES SANOS | AF23: CENTROS_DOTACIÓN | AI23: Botiquín | AY23: Témperas
B24: 52 | C24: NARIÑO | D24: ITINERANTE | E24: 08 | F24: ATLÁNTICO | G24: 0803 | H24: CZ BARANOA | I24: CENTROS | J24: 05 | K24: ANTIOQUIA | L24: 0535 | M24: CZ LA FLORESTA | N24: 05059 | O24: ARMENIA | P24: 05 | Q24: ANTIOQUIA | R24: 05059 | S24: ARMENIA | T24: Municipio | AD24: CENTROS | AE24: GRAVAMEN MOVIMIENTOS FINANCIEROS GMF | AF24: CENTROS_MATERIAL_IDENTIFICACIÓN | AH24: MATERIAL IDENTIFICACIÓN | AI24: Chaleco | AY24: Crayolas
B25: 54 | C25: NORTE DE SANTANDER | D25: ITINERANTE | E25: 08 | F25: ATLÁNTICO | G25: 0805 | H25: CZ SABANAGRANDE | I25: CENTROS | J25: 05 | K25: ANTIOQUIA | L25: 0505 | M25: CZ ABURRA NORTE | N25: 05079 | O25: BARBOSA | P25: 05 | Q25: ANTIOQUIA | R25: 05079 | S25: BARBOSA | T25: Municipio | AD25: CENTROS | AE25: MATERIALES E INSUMOS | AF25: CENTROS_MATERIAL_IDENTIFICACIÓN | AI25: Gorra | AY25: Pasteles secos
B26: 86 | C26: PUTUMAYO | D26: ITINERANTE | E26: 08 | F26: ATLÁNTICO | G26: 0804 | H26: CZ SABANALARGA | I26: CENTROS | J26: 05 | K26: ANTIOQUIA | L26: 0535 | M26: CZ LA FLORESTA | N26: 05079 | O26: BARBOSA | P26: 05 | Q26: ANTIOQUIA | R26: 05079 | S26: BARBOSA | T26: Municipio | AD26: CENTROS | AE26: TALENTO HUMANO | AF26: CENTROS_MATERIAL_IDENTIFICACIÓN | AI26: Camisetas | AY26: Pintu caritas de colores
B27: 63 | C27: QUINDÍO | D27: ITINERANTE | E27: 08 | F27: ATLÁNTICO | G27: 0806 | H27: CZ HIPODROMO | I27: CENTROS | J27: 05 | K27: ANTIOQUIA | L27: 0505 | M27: CZ ABURRA NORTE | N27: 05086 | O27: BELMIRA | P27: 05 | Q27: ANTIOQUIA | R27: 05086 | S27: BELMIRA | T27: Municipio | AD27: CENTROS | AE27: TRANSPORTE Y VIAJES DEL TH | AF27: CENTROS_MATERIAL_IDENTIFICACIÓN | AI27: Carné | AY27: Tela colores
B28: 66 | C28: RISARALDA | D28: ITINERANTE | E28: 11 | F28: BOGOTÁ DC | G28: 1130 | H28: CZ CREER | I28: CENTROS | J28: 05 | K28: ANTIOQUIA | L28: 0505 | M28: CZ ABURRA NORTE | N28: 05088 | O28: BELLO | P28: 05 | Q28: ANTIOQUIA | R28: 05088 | S28: BELLO | T28: Municipio | AD28: CENTROS | AE28: APOYOS NUTRICIONALES | AF28: CENTROS_MATERIAL_IDENTIFICACIÓN | AI28: Pendón | AY28: Taja Lápiz
B29: 88 | C29: SAN ANDRÉS | D29: ITINERANTE | E29: 11 | F29: BOGOTÁ DC | G29: 1101 | H29: CZ CIUDAD BOLIVAR | I29: CENTROS | J29: 05 | K29: ANTIOQUIA | L29: 0535 | M29: CZ LA FLORESTA | N29: 05088 | O29: BELLO | P29: 05 | Q29: ANTIOQUIA | R29: 05088 | S29: BELLO | T29: Municipio | AD29: CENTROS | AE29: DOTACIÓN | AF29: CENTROS_PÓLIZA | AH29: PÓLIZA | AI29: Póliza | AY29: Borradores
B30: 68 | C30: SANTANDER | D30: ITINERANTE | E30: 11 | F30: BOGOTÁ DC | G30: 1102 | H30: CZ TUNJUELITO | I30: CENTROS | J30: 05 | K30: ANTIOQUIA | L30: 0514 | M30: CZ SUROESTE | N30: 05091 | O30: BETANIA | P30: 05 | Q30: ANTIOQUIA | R30: 05091 | S30: BETANIA | T30: Municipio | AD30: CENTROS | AE30: INTERNET | AF30: CENTROS_GASTOS_OPERATIVOS | AH30: GASTOS OPERATIVOS | AI30: Aseo | AY30: Papel Crepé
B31: 70 | C31: SUCRE | D31: ITINERANTE | E31: 11 | F31: BOGOTÁ DC | G31: 1103 | H31: CZ USME | I31: CENTROS | J31: 05 | K31: ANTIOQUIA | L31: 0515 | M31: CZ PENDERISCO | N31: 05093 | O31: BETULIA | P31: 05 | Q31: ANTIOQUIA | R31: 05093 | S31: BETULIA | T31: Municipio | AD31: CENTROS | AE31: MATERIAL IDENTIFICACIÓN | AF31: CENTROS_GASTOS_OPERATIVOS | AI31: Reparación y mantenimiento de dotación instituciona | AY31: Bandas Elásticas
B32: 73 | C32: TOLIMA | D32: ITINERANTE | E32: 11 | F32: BOGOTÁ DC | G32: 1104 | H32: CZ SAN CRISTOBAL SUR | I32: CENTROS | J32: 05 | K32: ANTIOQUIA | L32: 0514 | M32: CZ SUROESTE | N32: 05101 | O32: CIUDAD BOLÍVAR | P32: 05 | Q32: ANTIOQUIA | R32: 05101 | S32: CIUDAD BOLÍVAR | T32: Municipio | AD32: CENTROS | AE32: SEGURO | AF32: CENTROS_GASTOS_OPERATIVOS | AI32: Servicios públicos | AY32: Silicona Líquida
B33: 76 | C33: VALLE DEL CAUCA | D33: ITINERANTE | E33: 11 | F33: BOGOTÁ DC | G33: 1105 | H33: CZ KENNEDY | I33: CENTROS | J33: 05 | K33: ANTIOQUIA | L33: 0508 | M33: CZ LA MESETA | N33: 05107 | O33: BRICEÑO | P33: 05 | Q33: ANTIOQUIA | R33: 05107 | S33: BRICEÑO | T33: Municipio | AD33: CENTROS | AE33: ENCUENTROS EXPERIENCIAS OPORTUNIDADES | AF33: CENTROS_GASTOS_OPERATIVOS | AI33: Papelería | AY33: Narices
B34: 97 | C34: VAUPÉS | D34: ITINERANTE | E34: 11 | F34: BOGOTÁ DC | G34: 1106 | H34: CZ REVIVIR | I34: CENTROS | J34: 05 | K34: ANTIOQUIA | L34: 0510 | M34: CZ OCCIDENTE | N34: 05113 | O34: BURITICÁ | P34: 05 | Q34: ANTIOQUIA | R34: 05113 | S34: BURITICÁ | T34: Municipio | AD34: CENTROS | AE34: GASTOS OPERATIVOS ADMINISTRACIÓN | AF34: CENTROS_GASTOS_OPERATIVOS | AI34: Mantenimiento de instalaciones locativas | AY34: Corbata
B35: 99 | C35: VICHADA | D35: ITINERANTE | E35: 11 | F35: BOGOTÁ DC | G35: 1107 | H35: CZ PUENTE ARANDA | I35: CENTROS | J35: 05 | K35: ANTIOQUIA | L35: 0507 | M35: CZ BAJO CAUCA | N35: 05120 | O35: CÁCERES | P35: 05 | Q35: ANTIOQUIA | R35: 05120 | S35: CÁCERES | T35: Municipio | AD35: CENTROS | AE35: GRAVAMEN MOVIMIENTOS FINANCIEROS GMF | AF35: CENTROS_GASTOS_OPERATIVOS | AI35: Acciones de movilización social | AY35: Gafas
D36: ITINERANTE | E36: 11 | F36: BOGOTÁ DC | G36: 1108 | H36: CZ BOSA | I36: CENTROS | J36: 05 | K36: ANTIOQUIA | L36: 0515 | M36: CZ PENDERISCO | N36: 05125 | O36: CAICEDO | P36: 05 | Q36: ANTIOQUIA | R36: 05125 | S36: CAICEDO | T36: Municipio | AD36: CENTROS | AE36: MATERIALES E INSUMOS | AF36: CENTROS_GASTOS_OPERATIVOS | AI36: Gastos bancarios (comisiones, transferencias y chequeras) | AY36: Corbatines
D37: ITINERANTE | E37: 11 | F37: BOGOTÁ DC | G37: 1109 | H37: CZ RAFAEL URIBE | I37: CENTROS | J37: 05 | K37: ANTIOQUIA | L37: 0506 | M37: CZ ABURRA SUR | N37: 05129 | O37: CALDAS | P37: 05 | Q37: ANTIOQUIA | R37: 05129 | S37: CALDAS | T37: Municipio | AD37: CENTROS | AE37: TALENTO HUMANO | AF37: CENTROS_GASTOS_OPERATIVOS | AI37: Materiales o dispositivos de apoyo de baja complejidad para los participantes | AY37: Pelucas Surtidas
D38: ITINERANTE | E38: 11 | F38: BOGOTÁ DC | G38: 1110 | H38: CZ SANTA FE | I38: CENTROS | J38: 05 | K38: ANTIOQUIA | L38: 0535 | M38: CZ LA FLORESTA | N38: 05129 | O38: CALDAS | P38: 05 | Q38: ANTIOQUIA | R38: 05129 | S38: CALDAS | T38: Municipio | AD38: CENTROS | AE38: COMPLEMENTACIÓN ALIMENTARIA Y NUTRICIONAL | AF38: CENTROS_GASTOS_OPERATIVOS | AI38: Otros (lo que se requiera para el adecuado desarrollo de la Modalidad) | AY38: Máscaras - antifaz
D39: ITINERANTE | E39: 11 | F39: BOGOTÁ DC | G39: 1111 | H39: CZ FONTIBON | I39: CENTROS | J39: 05 | K39: ANTIOQUIA | L39: 0508 | M39: CZ LA MESETA | N39: 05134 | O39: CAMPAMENTO | P39: 05 | Q39: ANTIOQUIA | R39: 05134 | S39: CAMPAMENTO | T39: Municipio | AD39: CENTROS | AE39: BOTIQUÍN | AF39: CENTROS_UTILIZACIÓN_DE_INSTALACIONES_EN_AMBIENTES_SANOS | AH39: UTILIZACIÓN DE INSTALACIONES EN AMBIENTES SANOS | AI39: Utilización de Instalaciones en Ambientes Sanos | AY39: Sombreros surtidos
D40: ITINERANTE | E40: 11 | F40: BOGOTÁ DC | G40: 1112 | H40: CZ BARRIOS UNIDOS | I40: CENTROS | J40: 05 | K40: ANTIOQUIA | L40: 0511 | M40: CZ OCCIDENTE MEDIO | N40: 05138 | O40: CAÑASGORDAS | P40: 05 | Q40: ANTIOQUIA | R40: 05138 | S40: CAÑASGORDAS | T40: Municipio | AD40: CENTROS | AE40: MATERIAL IDENTIFICACIÓN | AF40: CENTROS_GRAVAMEN_MOVIMIENTOS_FINANCIEROS_GMF | AH40: GRAVAMEN MOVIMIENTOS FINANCIEROS GMF | AI40: Gravamen Movimientos Financieros GMF | AY40: Diadema Disfraz Surtida
D41: ITINERANTE | E41: 11 | F41: BOGOTÁ DC | G41: 1113 | H41: CZ ENGATIVA | I41: CENTROS | J41: 05 | K41: ANTIOQUIA | L41: 0509 | M41: CZ MAGDALENA MEDIO | N41: 05142 | O41: CARACOLÍ | P41: 05 | Q41: ANTIOQUIA | R41: 05142 | S41: CARACOLÍ | T41: Municipio | AD41: CENTROS | AE41: SEGURO | AF41: CENTROS_MATERIALES_E_INSUMOS | AH41: MATERIALES E INSUMOS | AI41: Bolígrafos mina negra
D42: ITINERANTE | E42: 11 | F42: BOGOTÁ DC | G42: 1114 | H42: CZ SUBA | I42: CENTROS | J42: 05 | K42: ANTIOQUIA | L42: 0514 | M42: CZ SUROESTE | N42: 05145 | O42: CARAMANTA | P42: 05 | Q42: ANTIOQUIA | R42: 05145 | S42: CARAMANTA | T42: Municipio | AD42: CENTROS | AE42: ENCUENTROS EXPERIENCIAS OPORTUNIDADES | AF42: CENTROS_MATERIALES_E_INSUMOS | AI42: Palo de Paleta
D43: ITINERANTE | E43: 11 | F43: BOGOTÁ DC | G43: 1115 | H43: CZ USAQUEN | I43: CENTROS | J43: 05 | K43: ANTIOQUIA | L43: 0516 | M43: CZ URABA | N43: 05147 | O43: CAREPA | P43: 05 | Q43: ANTIOQUIA | R43: 05147 | S43: CAREPA | T43: Municipio | AD43: CENTROS | AE43: GASTOS OPERATIVOS | AF43: CENTROS_MATERIALES_E_INSUMOS | AI43: Marcadores no borrables
D44: ITINERANTE | E44: 11 | F44: BOGOTÁ DC | G44: 1116 | H44: CZ MARTIRES | I44: CENTROS | J44: 05 | K44: ANTIOQUIA | L44: 0512 | M44: CZ ORIENTE | N44: 05148 | O44: EL CARMEN DE VIBORAL | P44: 05 | Q44: ANTIOQUIA | R44: 05148 | S44: EL CARMEN DE VIBORAL | T44: Municipio | AD44: CENTROS | AE44: GRAVAMEN MOVIMIENTOS FINANCIEROS GMF | AF44: CENTROS_MATERIALES_E_INSUMOS | AI44: Papel kraft
D45: ITINERANTE | E45: 11 | F45: BOGOTÁ DC | G45: 1131 | H45: CZ KENNEDY CENTRAL | I45: CENTROS | J45: 05 | K45: ANTIOQUIA | L45: 0508 | M45: CZ LA MESETA | N45: 05150 | O45: CAROLINA | P45: 05 | Q45: ANTIOQUIA | R45: 05150 | S45: CAROLINA | T45: Municipio | AD45: CENTROS | AE45: MATERIALES E INSUMOS | AF45: CENTROS_MATERIALES_E_INSUMOS | AI45: Cinta de enmascarar
D46: ITINERANTE | E46: 13 | F46: BOLÍVAR | G46: 1301 | H46: CZ HISTORICO Y DEL CARIBE NORTE | I46: CENTROS | J46: 05 | K46: ANTIOQUIA | L46: 0507 | M46: CZ BAJO CAUCA | N46: 05154 | O46: CAUCASIA | P46: 05 | Q46: ANTIOQUIA | R46: 05154 | S46: CAUCASIA | T46: Municipio | AD46: CENTROS | AF46: CENTROS_MATERIALES_E_INSUMOS | AI46: Papel bond
D47: ITINERANTE | E47: 13 | F47: BOLÍVAR | G47: 1302 | H47: CZ DE LA VIRGEN Y TURISTICO | I47: CENTROS | J47: 05 | K47: ANTIOQUIA | L47: 0516 | M47: CZ URABA | N47: 05172 | O47: CHIGORODÓ | P47: 05 | Q47: ANTIOQUIA | R47: 05172 | S47: CHIGORODÓ | T47: Municipio | AD47: CENTROS | AF47: CENTROS_MATERIALES_E_INSUMOS | AI47: Tijeras punta roma
D48: ITINERANTE | E48: 13 | F48: BOLÍVAR | G48: 1303 | H48: CZ INDUSTRIAL DE LA BAHIA | I48: CENTROS | J48: 05 | K48: ANTIOQUIA | L48: 0513 | M48: CZ PORCE NUS | N48: 05190 | O48: CISNEROS | P48: 05 | Q48: ANTIOQUIA | R48: 05190 | S48: CISNEROS | T48: Municipio | AD48: CENTROS | AF48: CENTROS_MATERIALES_E_INSUMOS | AI48: Lápices
D49: ITINERANTE | E49: 13 | F49: BOLÍVAR | G49: 1306 | H49: CZ MAGANGUE | I49: CENTROS | J49: 05 | K49: ANTIOQUIA | L49: 0517 | M49: CZ ORIENTE MEDIO | N49: 05197 | O49: COCORNÁ | P49: 05 | Q49: ANTIOQUIA | R49: 05197 | S49: COCORNÁ | T49: Municipio | AD49: CENTROS | AF49: CENTROS_MATERIALES_E_INSUMOS | AI49: Arcilla
D50: ITINERANTE | E50: 13 | F50: BOLÍVAR | G50: 1307 | H50: CZ MOMPOX | I50: CENTROS | J50: 05 | K50: ANTIOQUIA | L50: 0512 | M50: CZ ORIENTE | N50: 05206 | O50: CONCEPCIÓN | P50: 05 | Q50: ANTIOQUIA | R50: 05206 | S50: CONCEPCIÓN | T50: Municipio | AD50: CENTROS | AF50: CENTROS_MATERIALES_E_INSUMOS | AI50: Cartón paja
D51: ITINERANTE | E51: 13 | F51: BOLÍVAR | G51: 1308 | H51: CZ SIMITI | I51: CENTROS | J51: 05 | K51: ANTIOQUIA | L51: 0515 | M51: CZ PENDERISCO | N51: 05209 | O51: CONCORDIA | P51: 05 | Q51: ANTIOQUIA | R51: 05209 | S51: CONCORDIA | T51: Municipio | AD51: CENTROS | AF51: CENTROS_MATERIALES_E_INSUMOS | AI51: Cartulina
D52: ITINERANTE | E52: 13 | F52: BOLÍVAR | G52: 1304 | H52: CZ TURBACO | I52: CENTROS | J52: 05 | K52: ANTIOQUIA | L52: 0505 | M52: CZ ABURRA NORTE | N52: 05212 | O52: COPACABANA | P52: 05 | Q52: ANTIOQUIA | R52: 05212 | S52: COPACABANA | T52: Municipio | AD52: CENTROS | AF52: CENTROS_MATERIALES_E_INSUMOS | AI52: Pegante líquido
D53: ITINERANTE | E53: 13 | F53: BOLÍVAR | G53: 1305 | H53: CZ EL CARMEN DE BOLIVAR | I53: CENTROS | J53: 05 | K53: ANTIOQUIA | L53: 0535 | M53: CZ LA FLORESTA | N53: 05212 | O53: COPACABANA | P53: 05 | Q53: ANTIOQUIA | R53: 05212 | S53: COPACABANA | T53: Municipio | AD53: CENTROS | AF53: CENTROS_MATERIALES_E_INSUMOS | AI53: Vinilo
D54: ITINERANTE | E54: 15 | F54: BOYACÁ | G54: 1501 | H54: CZ TUNJA 1 | I54: CENTROS | J54: 05 | K54: ANTIOQUIA | L54: 0511 | M54: CZ OCCIDENTE MEDIO | N54: 05234 | O54: DABEIBA | P54: 05 | Q54: ANTIOQUIA | R54: 05234 | S54: DABEIBA | T54: Municipio | AD54: CENTROS | AF54: CENTROS_MATERIALES_E_INSUMOS | AI54: Papel iris
D55: ITINERANTE | E55: 15 | F55: BOYACÁ | G55: 1502 | H55: CZ TUNJA 2 | I55: CENTROS | J55: 05 | K55: ANTIOQUIA | L55: 0505 | M55: CZ ABURRA NORTE | N55: 05237 | O55: DON MATÍAS | P55: 05 | Q55: ANTIOQUIA | R55: 05237 | S55: DONMATÍAS | T55: Municipio | AD55: CENTROS | AF55: CENTROS_MATERIALES_E_INSUMOS | AI55: Lana
D56: ITINERANTE | E56: 15 | F56: BOYACÁ | G56: 1506 | H56: CZ GARAGOA | I56: CENTROS | J56: 05 | K56: ANTIOQUIA | L56: 0510 | M56: CZ OCCIDENTE | N56: 05240 | O56: EBÉJICO | P56: 05 | Q56: ANTIOQUIA | R56: 05240 | S56: EBÉJICO | T56: Municipio | AD56: CENTROS | AF56: CENTROS_MATERIALES_E_INSUMOS | AI56: Plastilina
D57: ITINERANTE | E57: 15 | F57: BOYACÁ | G57: 1503 | H57: CZ SOGAMOSO | I57: CENTROS | J57: 05 | K57: ANTIOQUIA | L57: 0507 | M57: CZ BAJO CAUCA | N57: 05250 | O57: EL BAGRE | P57: 05 | Q57: ANTIOQUIA | R57: 05250 | S57: EL BAGRE | T57: Municipio | AD57: CENTROS | AF57: CENTROS_MATERIALES_E_INSUMOS | AI57: Colores
D58: ITINERANTE | E58: 15 | F58: BOYACÁ | G58: 1511 | H58: CZ MONIQUIRA | I58: CENTROS | J58: 05 | K58: ANTIOQUIA | L58: 0505 | M58: CZ ABURRA NORTE | N58: 05264 | O58: ENTRERRIOS | P58: 05 | Q58: ANTIOQUIA | R58: 05264 | S58: ENTRERRÍOS | T58: Municipio | AD58: CENTROS | AF58: CENTROS_MATERIALES_E_INSUMOS | AI58: Papel Periódico
D59: ITINERANTE | E59: 15 | F59: BOYACÁ | G59: 1504 | H59: CZ DUITAMA | I59: CENTROS | J59: 05 | K59: ANTIOQUIA | L59: 0506 | M59: CZ ABURRA SUR | N59: 05266 | O59: ENVIGADO | P59: 05 | Q59: ANTIOQUIA | R59: 05266 | S59: ENVIGADO | T59: Municipio | AD59: CENTROS | AF59: CENTROS_MATERIALES_E_INSUMOS | AI59: Pimpones
D60: ITINERANTE | E60: 15 | F60: BOYACÁ | G60: 1510 | H60: CZ MIRAFLORES | I60: CENTROS | J60: 05 | K60: ANTIOQUIA | L60: 0535 | M60: CZ LA FLORESTA | N60: 05266 | O60: ENVIGADO | P60: 05 | Q60: ANTIOQUIA | R60: 05266 | S60: ENVIGADO | T60: Municipio | AD60: CENTROS | AF60: CENTROS_MATERIALES_E_INSUMOS | AI60: Pinceles
D61: ITINERANTE | E61: 15 | F61: BOYACÁ | G61: 1508 | H61: CZ SOATA | I61: CENTROS | J61: 05 | K61: ANTIOQUIA | L61: 0506 | M61: CZ ABURRA SUR | N61: 05282 | O61: FREDONIA | P61: 05 | Q61: ANTIOQUIA | R61: 05282 | S61: FREDONIA | T61: Municipio | AD61: CENTROS | AF61: CENTROS_MATERIALES_E_INSUMOS | AI61: Témperas
D62: ITINERANTE | E62: 15 | F62: BOYACÁ | G62: 1512 | H62: CZ OTANCHE | I62: CENTROS | J62: 05 | K62: ANTIOQUIA | L62: 0511 | M62: CZ OCCIDENTE MEDIO | N62: 05284 | O62: FRONTINO | P62: 05 | Q62: ANTIOQUIA | R62: 05284 | S62: FRONTINO | T62: Municipio | AD62: CENTROS | AF62: CENTROS_MATERIALES_E_INSUMOS | AI62: Crayolas
D63: ITINERANTE | E63: 15 | F63: BOYACÁ | G63: 1505 | H63: CZ CHIQUINQUIRA | I63: CENTROS | J63: 05 | K63: ANTIOQUIA | L63: 0510 | M63: CZ OCCIDENTE | N63: 05306 | O63: GIRALDO | P63: 05 | Q63: ANTIOQUIA | R63: 05306 | S63: GIRALDO | T63: Municipio | AD63: CENTROS | AF63: CENTROS_MATERIALES_E_INSUMOS | AI63: Pasteles secos
D64: ITINERANTE | E64: 15 | F64: BOYACÁ | G64: 1509 | H64: CZ EL COCUY | I64: CENTROS | J64: 05 | K64: ANTIOQUIA | L64: 0505 | M64: CZ ABURRA NORTE | N64: 05308 | O64: GIRARDOTA | P64: 05 | Q64: ANTIOQUIA | R64: 05308 | S64: GIRARDOTA | T64: Municipio | AD64: CENTROS | AF64: CENTROS_MATERIALES_E_INSUMOS | AI64: Pintu caritas de colores
D65: ITINERANTE | E65: 15 | F65: BOYACÁ | G65: 1507 | H65: CZ PUERTO BOYACA | I65: CENTROS | J65: 05 | K65: ANTIOQUIA | L65: 0535 | M65: CZ LA FLORESTA | N65: 05308 | O65: GIRARDOTA | P65: 05 | Q65: ANTIOQUIA | R65: 05308 | S65: GIRARDOTA | T65: Municipio | AD65: CENTROS | AF65: CENTROS_MATERIALES_E_INSUMOS | AI65: Tela colores
D66: ITINERANTE | E66: 17 | F66: CALDAS | G66: 1701 | H66: CZ MANIZALES 1 | I66: CENTROS | J66: 05 | K66: ANTIOQUIA | L66: 0508 | M66: CZ LA MESETA | N66: 05310 | O66: GÓMEZ PLATA | P66: 05 | Q66: ANTIOQUIA | R66: 05310 | S66: GÓMEZ PLATA | T66: Municipio | AD66: CENTROS | AF66: CENTROS_MATERIALES_E_INSUMOS | AI66: Taja Lápiz
D67: ITINERANTE | E67: 17 | F67: CALDAS | G67: 1702 | H67: CZ MANIZALES 2 | I67: CENTROS | J67: 05 | K67: ANTIOQUIA | L67: 0517 | M67: CZ ORIENTE MEDIO | N67: 05313 | O67: GRANADA | P67: 05 | Q67: ANTIOQUIA | R67: 05313 | S67: GRANADA | T67: Municipio | AD67: CENTROS | AF67: CENTROS_MATERIALES_E_INSUMOS | AI67: Borradores
D68: ITINERANTE | E68: 17 | F68: CALDAS | G68: 1705 | H68: CZ NORTE | I68: CENTROS | J68: 05 | K68: ANTIOQUIA | L68: 0508 | M68: CZ LA MESETA | N68: 05315 | O68: GUADALUPE | P68: 05 | Q68: ANTIOQUIA | R68: 05315 | S68: GUADALUPE | T68: Municipio | AD68: CENTROS | AF68: CENTROS_MATERIALES_E_INSUMOS | AI68: Papel Crepé
D69: ITINERANTE | E69: 17 | F69: CALDAS | G69: 1703 | H69: CZ OCCIDENTE | I69: CENTROS | J69: 05 | K69: ANTIOQUIA | L69: 0512 | M69: CZ ORIENTE | N69: 05318 | O69: GUARNE | P69: 05 | Q69: ANTIOQUIA | R69: 05318 | S69: GUARNE | T69: Municipio | AD69: CENTROS | AF69: CENTROS_MATERIALES_E_INSUMOS | AI69: Bandas Elásticas
D70: ITINERANTE | E70: 17 | F70: CALDAS | G70: 1709 | H70: CZ DEL CAFE | I70: CENTROS | J70: 05 | K70: ANTIOQUIA | L70: 0512 | M70: CZ ORIENTE | N70: 05321 | O70: GUATAPE | P70: 05 | Q70: ANTIOQUIA | R70: 05321 | S70: GUATAPÉ | T70: Municipio | AD70: CENTROS | AF70: CENTROS_MATERIALES_E_INSUMOS | AI70: Silicona Líquida
D71: ITINERANTE | E71: 17 | F71: CALDAS | G71: 1704 | H71: CZ ORIENTE | I71: CENTROS | J71: 05 | K71: ANTIOQUIA | L71: 0506 | M71: CZ ABURRA SUR | N71: 05347 | O71: HELICONIA | P71: 05 | Q71: ANTIOQUIA | R71: 05347 | S71: HELICONIA | T71: Municipio | AD71: CENTROS | AF71: CENTROS_MATERIALES_E_INSUMOS | AI71: Narices
D72: ITINERANTE | E72: 17 | F72: CALDAS | G72: 1706 | H72: CZ SUR ORIENTE | I72: CENTROS | J72: 05 | K72: ANTIOQUIA | L72: 0535 | M72: CZ LA FLORESTA | N72: 05347 | O72: HELICONIA | P72: 05 | Q72: ANTIOQUIA | R72: 05347 | S72: HELICONIA | T72: Municipio | AD72: CENTROS | AF72: CENTROS_MATERIALES_E_INSUMOS | AI72: Corbata
D73: ITINERANTE | E73: 18 | F73: CAQUETÁ | G73: 1801 | H73: CZ FLORENCIA 1 | I73: CENTROS | J73: 05 | K73: ANTIOQUIA | L73: 0514 | M73: CZ SUROESTE | N73: 05353 | O73: HISPANIA | P73: 05 | Q73: ANTIOQUIA | R73: 05353 | S73: HISPANIA | T73: Municipio | AD73: CENTROS | AF73: CENTROS_MATERIALES_E_INSUMOS | AI73: Gafas
D74: ITINERANTE | E74: 18 | F74: CAQUETÁ | G74: 1802 | H74: CZ FLORENCIA 2 | I74: CENTROS | J74: 05 | K74: ANTIOQUIA | L74: 0506 | M74: CZ ABURRA SUR | N74: 05360 | O74: ITAGUI | P74: 05 | Q74: ANTIOQUIA | R74: 05360 | S74: ITAGÜÍ | T74: Municipio | AD74: CENTROS | AF74: CENTROS_MATERIALES_E_INSUMOS | AI74: Corbatines
D75: ITINERANTE | E75: 18 | F75: CAQUETÁ | G75: 1804 | H75: CZ BELEN DE LOS ANDAQUIES | I75: CENTROS | J75: 05 | K75: ANTIOQUIA | L75: 0535 | M75: CZ LA FLORESTA | N75: 05360 | O75: ITAGUI | P75: 05 | Q75: ANTIOQUIA | R75: 05360 | S75: ITAGÜÍ | T75: Municipio | AD75: CENTROS | AF75: CENTROS_MATERIALES_E_INSUMOS | AI75: Pelucas Surtidas
D76: ITINERANTE | E76: 18 | F76: CAQUETÁ | G76: 1803 | H76: CZ PUERTO RICO | I76: CENTROS | J76: 05 | K76: ANTIOQUIA | L76: 0508 | M76: CZ LA MESETA | N76: 05361 | O76: ITUANGO | P76: 05 | Q76: ANTIOQUIA | R76: 05361 | S76: ITUANGO | T76: Municipio | AD76: CENTROS | AF76: CENTROS_MATERIALES_E_INSUMOS | AI76: Máscaras - antifaz
D77: ITINERANTE | E77: 19 | F77: CAUCA | G77: 1901 | H77: CZ POPAYAN | I77: CENTROS | J77: 05 | K77: ANTIOQUIA | L77: 0514 | M77: CZ SUROESTE | N77: 05364 | O77: JARDÍN | P77: 05 | Q77: ANTIOQUIA | R77: 05364 | S77: JARDÍN | T77: Municipio | AD77: CENTROS | AF77: CENTROS_MATERIALES_E_INSUMOS | AI77: Sombreros surtidos
D78: ITINERANTE | E78: 19 | F78: CAUCA | G78: 1906 | H78: CZ MACIZO COLOMBIANO | I78: CENTROS | J78: 05 | K78: ANTIOQUIA | L78: 0514 | M78: CZ SUROESTE | N78: 05368 | O78: JERICÓ | P78: 05 | Q78: ANTIOQUIA | R78: 05368 | S78: JERICÓ | T78: Municipio | AD78: CENTROS | AF78: CENTROS_MATERIALES_E_INSUMOS | AI78: Diadema Disfraz Surtida
D79: ITINERANTE | E79: 19 | F79: CAUCA | G79: 1904 | H79: CZ SUR | I79: CENTROS | J79: 05 | K79: ANTIOQUIA | L79: 0512 | M79: CZ ORIENTE | N79: 05376 | O79: LA CEJA | P79: 05 | Q79: ANTIOQUIA | R79: 05376 | S79: LA CEJA | T79: Municipio | AD79: CENTROS | AF79: ITINERANTE_TALENTO_HUMANO | AG79: ITINERANTE | AH79: TALENTO HUMANO | AI79: Orientador de atención itinerante para la adaptación de entornos familiares.
D80: ITINERANTE | E80: 19 | F80: CAUCA | G80: 1905 | H80: CZ NORTE | I80: CENTROS | J80: 05 | K80: ANTIOQUIA | L80: 0506 | M80: CZ ABURRA SUR | N80: 05380 | O80: LA ESTRELLA | P80: 05 | Q80: ANTIOQUIA | R80: 05380 | S80: LA ESTRELLA | T80: Municipio | AD80: ITINERANTE | AF80: ITINERANTE_TALENTO_HUMANO | AH80: TALENTO HUMANO | AI80: Orientador de atención itinerante para la adaptación de entornos institucionales.
D81: ITINERANTE | E81: 19 | F81: CAUCA | G81: 1902 | H81: CZ CENTRO | I81: CENTROS | J81: 05 | K81: ANTIOQUIA | L81: 0535 | M81: CZ LA FLORESTA | N81: 05380 | O81: LA ESTRELLA | P81: 05 | Q81: ANTIOQUIA | R81: 05380 | S81: LA ESTRELLA | T81: Municipio | AD81: ITINERANTE | AF81: ITINERANTE_TALENTO_HUMANO | AH81: TALENTO HUMANO | AI81: Orientador de atención itinerante para la movilización de redes familiares y comunitarias
D82: ITINERANTE | E82: 19 | F82: CAUCA | G82: 1903 | H82: CZ INDIGENA | I82: CENTROS | J82: 05 | K82: ANTIOQUIA | L82: 0506 | M82: CZ ABURRA SUR | N82: 05390 | O82: LA PINTADA | P82: 05 | Q82: ANTIOQUIA | R82: 05390 | S82: LA PINTADA | T82: Municipio | AD82: ITINERANTE | AF82: ITINERANTE_TALENTO_HUMANO | AH82: TALENTO HUMANO | AI82: Líder comunitario, sabedor, modelo lingüista, tiflólogo, docente bilingüe, educador especial con competencia en Lengua de Señas Colombiana -LSC o intérprete para el trabajo con comunidades específicas.
D83: ITINERANTE | E83: 19 | F83: CAUCA | G83: 1907 | H83: CZ COSTA PACIFICA | I83: CENTROS | J83: 05 | K83: ANTIOQUIA | L83: 0512 | M83: CZ ORIENTE | N83: 05400 | O83: LA UNIÓN | P83: 05 | Q83: ANTIOQUIA | R83: 05400 | S83: LA UNIÓN | T83: Municipio | AD83: ITINERANTE | AF83: ITINERANTE_TALENTO_HUMANO | AH83: TALENTO HUMANO
D84: ITINERANTE | E84: 20 | F84: CESAR | G84: 2001 | H84: CZ VALLEDUPAR 1 | I84: CENTROS | J84: 05 | K84: ANTIOQUIA | L84: 0510 | M84: CZ OCCIDENTE | N84: 05411 | O84: LIBORINA | P84: 05 | Q84: ANTIOQUIA | R84: 05411 | S84: LIBORINA | T84: Municipio | AD84: ITINERANTE | AF84: ITINERANTE_TALENTO_HUMANO | AH84: TALENTO HUMANO
D85: ITINERANTE | E85: 20 | F85: CESAR | G85: 2002 | H85: CZ VALLEDUPAR 2 | I85: CENTROS | J85: 05 | K85: ANTIOQUIA | L85: 0509 | M85: CZ MAGDALENA MEDIO | N85: 05425 | O85: MACEO | P85: 05 | Q85: ANTIOQUIA | R85: 05425 | S85: MACEO | T85: Municipio | AD85: ITINERANTE | AF85: ITINERANTE_TALENTO_HUMANO | AH85: TALENTO HUMANO
D86: ITINERANTE | E86: 20 | F86: CESAR | G86: 2004 | H86: CZ AGUACHICA | I86: CENTROS | J86: 05 | K86: ANTIOQUIA | L86: 0512 | M86: CZ ORIENTE | N86: 05440 | O86: MARINILLA | P86: 05 | Q86: ANTIOQUIA | R86: 05440 | S86: MARINILLA | T86: Municipio | AD86: ITINERANTE | AF86: ITINERANTE_TALENTO_HUMANO | AH86: TALENTO HUMANO
D87: ITINERANTE | E87: 20 | F87: CESAR | G87: 2005 | H87: CZ AGUSTIN CODAZZI | I87: CENTROS | J87: 05 | K87: ANTIOQUIA | L87: 0506 | M87: CZ ABURRA SUR | N87: 05467 | O87: MONTEBELLO | P87: 05 | Q87: ANTIOQUIA | R87: 05467 | S87: MONTEBELLO | T87: Municipio | AD87: ITINERANTE | AF87: ITINERANTE_TALENTO_HUMANO | AH87: TALENTO HUMANO
D88: ITINERANTE | E88: 20 | F88: CESAR | G88: 2003 | H88: CZ CHIRIGUANA | I88: CENTROS | J88: 05 | K88: ANTIOQUIA | L88: 0516 | M88: CZ URABA | N88: 05475 | O88: MURINDÓ | P88: 05 | Q88: ANTIOQUIA | R88: 05475 | S88: MURINDÓ | T88: Municipio | AD88: ITINERANTE | AF88: ITINERANTE_TALENTO_HUMANO | AH88: TALENTO HUMANO
D89: ITINERANTE | E89: 23 | F89: CÓRDOBA | G89: 2301 | H89: CZ 1 MONTERIA | I89: CENTROS | J89: 05 | K89: ANTIOQUIA | L89: 0516 | M89: CZ URABA | N89: 05480 | O89: MUTATÁ | P89: 05 | Q89: ANTIOQUIA | R89: 05480 | S89: MUTATÁ | T89: Municipio | AD89: ITINERANTE | AF89: ITINERANTE_COMPLEMENTACIÓN_ALIMENTARIA_Y_NUTRICIONAL | AH89: COMPLEMENTACIÓN ALIMENTARIA Y NUTRICIONAL | AI89: Encuentros Grupales
D90: ITINERANTE | E90: 23 | F90: CÓRDOBA | G90: 2305 | H90: CZ MONTELIBANO | I90: CENTROS | J90: 05 | K90: ANTIOQUIA | L90: 0512 | M90: CZ ORIENTE | N90: 05483 | O90: NARIÑO | P90: 05 | Q90: ANTIOQUIA | R90: 05483 | S90: NARIÑO | T90: Municipio | AD90: ITINERANTE | AF90: ITINERANTE_COMPLEMENTACIÓN_ALIMENTARIA_Y_NUTRICIONAL | AI90: Encuentros Familiares
D91: ITINERANTE | E91: 23 | F91: CÓRDOBA | G91: 2303 | H91: CZ PLANETARICA | I91: CENTROS | J91: 05 | K91: ANTIOQUIA | L91: 0516 | M91: CZ URABA | N91: 05490 | O91: NECOCLÍ | P91: 05 | Q91: ANTIOQUIA | R91: 05490 | S91: NECOCLÍ | T91: Municipio | AD91: ITINERANTE | AF91: ITINERANTE_COMPLEMENTACIÓN_ALIMENTARIA_Y_NUTRICIONAL | AI91: Encuentros Comunitarios
D92: ITINERANTE | E92: 23 | F92: CÓRDOBA | G92: 2302 | H92: CZ CERETE | I92: CENTROS | J92: 05 | K92: ANTIOQUIA | L92: 0507 | M92: CZ BAJO CAUCA | N92: 05495 | O92: NECHÍ | P92: 05 | Q92: ANTIOQUIA | R92: 05495 | S92: NECHÍ | T92: Municipio | AD92: ITINERANTE | AF92: ITINERANTE_COMPLEMENTACIÓN_ALIMENTARIA_Y_NUTRICIONAL | AI92: Encuentros Comunitarios
D93: ITINERANTE | E93: 23 | F93: CÓRDOBA | G93: 2308 | H93: CZ SAN ANDRES DE SOTAVENTO | I93: CENTROS | J93: 05 | K93: ANTIOQUIA | L93: 0510 | M93: CZ OCCIDENTE | N93: 05501 | O93: OLAYA | P93: 05 | Q93: ANTIOQUIA | R93: 05501 | S93: OLAYA | T93: Municipio
D94: ITINERANTE | E94: 23 | F94: CÓRDOBA | G94: 2307 | H94: CZ SAHAGUN | I94: CENTROS | J94: 05 | K94: ANTIOQUIA | L94: 0512 | M94: CZ ORIENTE | N94: 05541 | O94: PEÑOL | P94: 05 | Q94: ANTIOQUIA | R94: 05541 | S94: PEÑOL | T94: Municipio
D95: ITINERANTE | E95: 23 | F95: CÓRDOBA | G95: 2306 | H95: CZ LORICA | I95: CENTROS | J95: 05 | K95: ANTIOQUIA | L95: 0511 | M95: CZ OCCIDENTE MEDIO | N95: 05543 | O95: PEQUE | P95: 05 | Q95: ANTIOQUIA | R95: 05543 | S95: PEQUE | T95: Municipio
D96: ITINERANTE | E96: 23 | F96: CÓRDOBA | G96: 2304 | H96: CZ TIERRALTA | I96: CENTROS | J96: 05 | K96: ANTIOQUIA | L96: 0514 | M96: CZ SUROESTE | N96: 05576 | O96: PUEBLORRICO | P96: 05 | Q96: ANTIOQUIA | R96: 05576 | S96: PUEBLORRICO | T96: Municipio
D97: ITINERANTE | E97: 25 | F97: CUNDINAMARCA | G97: 2510 | H97: CZ GIRARDOT | I97: CENTROS | J97: 05 | K97: ANTIOQUIA | L97: 0509 | M97: CZ MAGDALENA MEDIO | N97: 05579 | O97: PUERTO BERRÍO | P97: 05 | Q97: ANTIOQUIA | R97: 05579 | S97: PUERTO BERRÍO | T97: Municipio
D98: ITINERANTE | E98: 25 | F98: CUNDINAMARCA | G98: 2506 | H98: CZ FACATATIVA | I98: CENTROS | J98: 05 | K98: ANTIOQUIA | L98: 0509 | M98: CZ MAGDALENA MEDIO | N98: 05585 | O98: PUERTO NARE | P98: 05 | Q98: ANTIOQUIA | R98: 05585 | S98: PUERTO NARE | T98: Municipio
D99: ITINERANTE | E99: 25 | F99: CUNDINAMARCA | G99: 2511 | H99: CZ LA MESA | I99: CENTROS | J99: 05 | K99: ANTIOQUIA | L99: 0509 | M99: CZ MAGDALENA MEDIO | N99: 05591 | O99: PUERTO TRIUNFO | P99: 05 | Q99: ANTIOQUIA | R99: 05591 | S99: PUERTO TRIUNFO | T99: Municipio
D100: ITINERANTE | E100: 25 | F100: CUNDINAMARCA | G100: 2507 | H100: CZ FUSAGASUGA | I100: CENTROS | J100: 05 | K100: ANTIOQUIA | L100: 0513 | M100: CZ PORCE NUS | N100: 05604 | O100: REMEDIOS | P100: 05 | Q100: ANTIOQUIA | R100: 05604 | S100: REMEDIOS | T100: Municipio
D101: ITINERANTE | E101: 25 | F101: CUNDINAMARCA | G101: 2513 | H101: CZ SAN JUAN DE RIOSECO | I101: CENTROS | J101: 05 | K101: ANTIOQUIA | L101: 0512 | M101: CZ ORIENTE | N101: 05607 | O101: RETIRO | P101: 05 | Q101: ANTIOQUIA | R101: 05607 | S101: RETIRO | T101: Municipio
D102: ITINERANTE | E102: 25 | F102: CUNDINAMARCA | G102: 2502 | H102: CZ ZIPAQUIRA | I102: CENTROS | J102: 05 | K102: ANTIOQUIA | L102: 0512 | M102: CZ ORIENTE | N102: 05615 | O102: RIONEGRO | P102: 05 | Q102: ANTIOQUIA | R102: 05615 | S102: RIONEGRO | T102: Municipio
D103: ITINERANTE | E103: 25 | F103: CUNDINAMARCA | G103: 2504 | H103: CZ PACHO | I103: CENTROS | J103: 05 | K103: ANTIOQUIA | L103: 0510 | M103: CZ OCCIDENTE | N103: 05628 | O103: SABANALARGA | P103: 05 | Q103: ANTIOQUIA | R103: 05628 | S103: SABANALARGA | T103: Municipio
D104: ITINERANTE | E104: 25 | F104: CUNDINAMARCA | G104: 2508 | H104: CZ CAQUEZA | I104: CENTROS | J104: 05 | K104: ANTIOQUIA | L104: 0506 | M104: CZ ABURRA SUR | N104: 05631 | O104: SABANETA | P104: 05 | Q104: ANTIOQUIA | R104: 05631 | S104: SABANETA | T104: Municipio
D105: ITINERANTE | E105: 25 | F105: CUNDINAMARCA | G105: 2512 | H105: CZ UBATE | I105: CENTROS | J105: 05 | K105: ANTIOQUIA | L105: 0535 | M105: CZ LA FLORESTA | N105: 05631 | O105: SABANETA | P105: 05 | Q105: ANTIOQUIA | R105: 05631 | S105: SABANETA | T105: Municipio
D106: ITINERANTE | E106: 25 | F106: CUNDINAMARCA | G106: 2503 | H106: CZ CHOCONTA | I106: CENTROS | J106: 05 | K106: ANTIOQUIA | L106: 0514 | M106: CZ SUROESTE | N106: 05642 | O106: SALGAR | P106: 05 | Q106: ANTIOQUIA | R106: 05642 | S106: SALGAR | T106: Municipio
D107: ITINERANTE | E107: 25 | F107: CUNDINAMARCA | G107: 2509 | H107: CZ GACHETA | I107: CENTROS | J107: 05 | K107: ANTIOQUIA | L107: 0508 | M107: CZ LA MESETA | N107: 05647 | O107: SAN ANDRÉS DE CUERQUÍA | P107: 05 | Q107: ANTIOQUIA | R107: 05647 | S107: SAN ANDRÉS DE CUERQUÍA | T107: Municipio
D108: ITINERANTE | E108: 25 | F108: CUNDINAMARCA | G108: 2505 | H108: CZ VILLETA | I108: CENTROS | J108: 05 | K108: ANTIOQUIA | L108: 0517 | M108: CZ ORIENTE MEDIO | N108: 05649 | O108: SAN CARLOS | P108: 05 | Q108: ANTIOQUIA | R108: 05649 | S108: SAN CARLOS | T108: Municipio
D109: ITINERANTE | E109: 25 | F109: CUNDINAMARCA | G109: 2518 | H109: CZ SOACHA CENTRO | I109: CENTROS | J109: 05 | K109: ANTIOQUIA | L109: 0517 | M109: CZ ORIENTE MEDIO | N109: 05652 | O109: SAN FRANCISCO | P109: 05 | Q109: ANTIOQUIA | R109: 05652 | S109: SAN FRANCISCO | T109: Municipio
D110: ITINERANTE | E110: 25 | F110: CUNDINAMARCA | G110: 2501 | H110: CZ SOACHA | I110: CENTROS | J110: 05 | K110: ANTIOQUIA | L110: 0510 | M110: CZ OCCIDENTE | N110: 05656 | O110: SAN JERÓNIMO | P110: 05 | Q110: ANTIOQUIA | R110: 05656 | S110: SAN JERÓNIMO | T110: Municipio
D111: ITINERANTE | E111: 27 | F111: CHOCÓ | G111: 2701 | H111: CZ QUIBDO | I111: CENTROS | J111: 05 | K111: ANTIOQUIA | L111: 0508 | M111: CZ LA MESETA | N111: 05658 | O111: SAN JOSÉ DE LA MONTAÑA | P111: 05 | Q111: ANTIOQUIA | R111: 05658 | S111: SAN JOSÉ DE LA MONTAÑA | T111: Municipio
D112: ITINERANTE | E112: 27 | F112: CHOCÓ | G112: 2704 | H112: CZ RIOSUCIO | I112: CENTROS | J112: 05 | K112: ANTIOQUIA | L112: 0516 | M112: CZ URABA | N112: 05659 | O112: SAN JUAN DE URABÁ | P112: 05 | Q112: ANTIOQUIA | R112: 05659 | S112: SAN JUAN DE URABÁ | T112: Municipio
D113: ITINERANTE | E113: 27 | F113: CHOCÓ | G113: 2702 | H113: CZ ISTMINA | I113: CENTROS | J113: 05 | K113: ANTIOQUIA | L113: 0517 | M113: CZ ORIENTE MEDIO | N113: 05660 | O113: SAN LUIS | P113: 05 | Q113: ANTIOQUIA | R113: 05660 | S113: SAN LUIS | T113: Municipio
D114: ITINERANTE | E114: 27 | F114: CHOCÓ | G114: 2705 | H114: CZ TADO | I114: CENTROS | J114: 05 | K114: ANTIOQUIA | L114: 0505 | M114: CZ ABURRA NORTE | N114: 05664 | O114: SAN PEDRO DE LOS MILAGROS | P114: 05 | Q114: ANTIOQUIA | R114: 05664 | S114: SAN PEDRO DE LOS MILAGROS | T114: Municipio
D115: ITINERANTE | E115: 27 | F115: CHOCÓ | G115: 2703 | H115: CZ BAHIA SOLANO | I115: CENTROS | J115: 05 | K115: ANTIOQUIA | L115: 0516 | M115: CZ URABA | N115: 05665 | O115: SAN PEDRO DE URABA | P115: 05 | Q115: ANTIOQUIA | R115: 05665 | S115: SAN PEDRO DE URABÁ | T115: Municipio
D116: ITINERANTE | E116: 41 | F116: HUILA | G116: 4101 | H116: CZ NEIVA | I116: CENTROS | J116: 05 | K116: ANTIOQUIA | L116: 0517 | M116: CZ ORIENTE MEDIO | N116: 05667 | O116: SAN RAFAEL | P116: 05 | Q116: ANTIOQUIA | R116: 05667 | S116: SAN RAFAEL | T116: Municipio
D117: ITINERANTE | E117: 41 | F117: HUILA | G117: 4105 | H117: CZ LA GAITANA | I117: CENTROS | J117: 05 | K117: ANTIOQUIA | L117: 0513 | M117: CZ PORCE NUS | N117: 05670 | O117: SAN ROQUE | P117: 05 | Q117: ANTIOQUIA | R117: 05670 | S117: SAN ROQUE | T117: Municipio
D118: ITINERANTE | E118: 41 | F118: HUILA | G118: 4104 | H118: CZ PITALITO | I118: CENTROS | J118: 05 | K118: ANTIOQUIA | L118: 0512 | M118: CZ ORIENTE | N118: 05674 | O118: SAN VICENTE FERRER | P118: 05 | Q118: ANTIOQUIA | R118: 05674 | S118: SAN VICENTE FERRER | T118: Municipio
D119: ITINERANTE | E119: 41 | F119: HUILA | G119: 4102 | H119: CZ GARZON | I119: CENTROS | J119: 05 | K119: ANTIOQUIA | L119: 0506 | M119: CZ ABURRA SUR | N119: 05679 | O119: SANTA BÁRBARA | P119: 05 | Q119: ANTIOQUIA | R119: 05679 | S119: SANTA BÁRBARA | T119: Municipio
D120: ITINERANTE | E120: 41 | F120: HUILA | G120: 4103 | H120: CZ LA PLATA | I120: CENTROS | J120: 05 | K120: ANTIOQUIA | L120: 0508 | M120: CZ LA MESETA | N120: 05686 | O120: SANTA ROSA DE OSOS | P120: 05 | Q120: ANTIOQUIA | R120: 05686 | S120: SANTA ROSA DE OSOS | T120: Municipio
D121: ITINERANTE | E121: 44 | F121: LA GUAJIRA | G121: 4401 | H121: CZ RIOHACHA 1 | I121: CENTROS | J121: 05 | K121: ANTIOQUIA | L121: 0513 | M121: CZ PORCE NUS | N121: 05690 | O121: SANTO DOMINGO | P121: 05 | Q121: ANTIOQUIA | R121: 05690 | S121: SANTO DOMINGO | T121: Municipio
D122: ITINERANTE | E122: 44 | F122: LA GUAJIRA | G122: 4402 | H122: CZ RIOHACHA 2 | I122: CENTROS | J122: 05 | K122: ANTIOQUIA | L122: 0517 | M122: CZ ORIENTE MEDIO | N122: 05697 | O122: EL SANTUARIO | P122: 05 | Q122: ANTIOQUIA | R122: 05697 | S122: EL SANTUARIO | T122: Municipio
D123: ITINERANTE | E123: 44 | F123: LA GUAJIRA | G123: 4405 | H123: CZ MAICAO | I123: CENTROS | J123: 05 | K123: ANTIOQUIA | L123: 0513 | M123: CZ PORCE NUS | N123: 05736 | O123: SEGOVIA | P123: 05 | Q123: ANTIOQUIA | R123: 05736 | S123: SEGOVIA | T123: Municipio
D124: ITINERANTE | E124: 44 | F124: LA GUAJIRA | G124: 4403 | H124: CZ FONSECA | I124: CENTROS | J124: 05 | K124: ANTIOQUIA | L124: 0512 | M124: CZ ORIENTE | N124: 05756 | O124: SONSON | P124: 05 | Q124: ANTIOQUIA | R124: 05756 | S124: SONSÓN | T124: Municipio
D125: ITINERANTE | E125: 44 | F125: LA GUAJIRA | G125: 4404 | H125: CZ MANAURE | I125: CENTROS | J125: 05 | K125: ANTIOQUIA | L125: 0510 | M125: CZ OCCIDENTE | N125: 05761 | O125: SOPETRÁN | P125: 05 | Q125: ANTIOQUIA | R125: 05761 | S125: SOPETRÁN | T125: Municipio
D126: ITINERANTE | E126: 44 | F126: LA GUAJIRA | G126: 4408 | H126: CZ NAZARETH | I126: CENTROS | J126: 05 | K126: ANTIOQUIA | L126: 0514 | M126: CZ SUROESTE | N126: 05789 | O126: TÁMESIS | P126: 05 | Q126: ANTIOQUIA | R126: 05789 | S126: TÁMESIS | T126: Municipio
D127: ITINERANTE | E127: 47 | F127: MAGDALENA | G127: 4701 | H127: CZ SANTA MARTA 1 | I127: CENTROS | J127: 05 | K127: ANTIOQUIA | L127: 0507 | M127: CZ BAJO CAUCA | N127: 05790 | O127: TARAZÁ | P127: 05 | Q127: ANTIOQUIA | R127: 05790 | S127: TARAZÁ | T127: Municipio
D128: ITINERANTE | E128: 47 | F128: MAGDALENA | G128: 4702 | H128: CZ SANTA MARTA 2 | I128: CENTROS | J128: 05 | K128: ANTIOQUIA | L128: 0514 | M128: CZ SUROESTE | N128: 05792 | O128: TARSO | P128: 05 | Q128: ANTIOQUIA | R128: 05792 | S128: TARSO | T128: Municipio
D129: ITINERANTE | E129: 47 | F129: MAGDALENA | G129: 4705 | H129: CZ FUNDACIÓN | I129: CENTROS | J129: 05 | K129: ANTIOQUIA | L129: 0506 | M129: CZ ABURRA SUR | N129: 05809 | O129: TITIRIBÍ | P129: 05 | Q129: ANTIOQUIA | R129: 05809 | S129: TITIRIBÍ | T129: Municipio
D130: ITINERANTE | E130: 47 | F130: MAGDALENA | G130: 4706 | H130: CZ PLATO | I130: CENTROS | J130: 05 | K130: ANTIOQUIA | L130: 0508 | M130: CZ LA MESETA | N130: 05819 | O130: TOLEDO | P130: 05 | Q130: ANTIOQUIA | R130: 05819 | S130: TOLEDO | T130: Municipio
D131: ITINERANTE | E131: 47 | F131: MAGDALENA | G131: 4703 | H131: CZ DEL RIO | I131: CENTROS | J131: 05 | K131: ANTIOQUIA | L131: 0516 | M131: CZ URABA | N131: 05837 | O131: TURBO | P131: 05 | Q131: ANTIOQUIA | R131: 05837 | S131: TURBO | T131: Municipio
D132: ITINERANTE | E132: 47 | F132: MAGDALENA | G132: 4704 | H132: CZ CIENAGA | I132: CENTROS | J132: 05 | K132: ANTIOQUIA | L132: 0511 | M132: CZ OCCIDENTE MEDIO | N132: 05842 | O132: URAMITA | P132: 05 | Q132: ANTIOQUIA | R132: 05842 | S132: URAMITA | T132: Municipio
D133: ITINERANTE | E133: 47 | F133: MAGDALENA | G133: 4707 | H133: CZ EL BANCO | I133: CENTROS | J133: 05 | K133: ANTIOQUIA | L133: 0515 | M133: CZ PENDERISCO | N133: 05847 | O133: URRAO | P133: 05 | Q133: ANTIOQUIA | R133: 05847 | S133: URRAO | T133: Municipio
D134: ITINERANTE | E134: 47 | F134: MAGDALENA | G134: 4708 | H134: CZ SANTA ANA | I134: CENTROS | J134: 05 | K134: ANTIOQUIA | L134: 0508 | M134: CZ LA MESETA | N134: 05854 | O134: VALDIVIA | P134: 05 | Q134: ANTIOQUIA | R134: 05854 | S134: VALDIVIA | T134: Municipio
D135: ITINERANTE | E135: 50 | F135: META | G135: 5001 | H135: CZ VILLAVICENCIO 1 | I135: CENTROS | J135: 05 | K135: ANTIOQUIA | L135: 0514 | M135: CZ SUROESTE | N135: 05856 | O135: VALPARAÍSO | P135: 05 | Q135: ANTIOQUIA | R135: 05856 | S135: VALPARAÍSO | T135: Municipio
D136: ITINERANTE | E136: 50 | F136: META | G136: 5002 | H136: CZ VILLAVICENCIO 2 | I136: CENTROS | J136: 05 | K136: ANTIOQUIA | L136: 0513 | M136: CZ PORCE NUS | N136: 05858 | O136: VEGACHÍ | P136: 05 | Q136: ANTIOQUIA | R136: 05858 | S136: VEGACHÍ | T136: Municipio
D137: ITINERANTE | E137: 50 | F137: META | G137: 5004 | H137: CZ ACACIAS | I137: CENTROS | J137: 05 | K137: ANTIOQUIA | L137: 0506 | M137: CZ ABURRA SUR | N137: 05861 | O137: VENECIA | P137: 05 | Q137: ANTIOQUIA | R137: 05861 | S137: VENECIA | T137: Municipio
D138: ITINERANTE | E138: 50 | F138: META | G138: 5005 | H138: CZ PUERTO LOPEZ | I138: CENTROS | J138: 05 | K138: ANTIOQUIA | L138: 0516 | M138: CZ URABA | N138: 05873 | O138: VIGÍA DEL FUERTE | P138: 05 | Q138: ANTIOQUIA | R138: 05873 | S138: VIGÍA DEL FUERTE | T138: Municipio
D139: ITINERANTE | E139: 50 | F139: META | G139: 5003 | H139: CZ GRANADA | I139: CENTROS | J139: 05 | K139: ANTIOQUIA | L139: 0513 | M139: CZ PORCE NUS | N139: 05885 | O139: YALÍ | P139: 05 | Q139: ANTIOQUIA | R139: 05885 | S139: YALÍ | T139: Municipio
D140: ITINERANTE | E140: 52 | F140: NARIÑO | G140: 5201 | H140: CZ PASTO 1 | I140: CENTROS | J140: 05 | K140: ANTIOQUIA | L140: 0508 | M140: CZ LA MESETA | N140: 05887 | O140: YARUMAL | P140: 05 | Q140: ANTIOQUIA | R140: 05887 | S140: YARUMAL | T140: Municipio
D141: ITINERANTE | E141: 52 | F141: NARIÑO | G141: 5202 | H141: CZ PASTO 2 | I141: CENTROS | J141: 05 | K141: ANTIOQUIA | L141: 0513 | M141: CZ PORCE NUS | N141: 05890 | O141: YOLOMBÓ | P141: 05 | Q141: ANTIOQUIA | R141: 05890 | S141: YOLOMBÓ | T141: Municipio
D142: ITINERANTE | E142: 52 | F142: NARIÑO | G142: 5204 | H142: CZ IPIALES | I142: CENTROS | J142: 05 | K142: ANTIOQUIA | L142: 0509 | M142: CZ MAGDALENA MEDIO | N142: 05893 | O142: YONDÓ | P142: 05 | Q142: ANTIOQUIA | R142: 05893 | S142: YONDÓ | T142: Municipio
D143: ITINERANTE | E143: 52 | F143: NARIÑO | G143: 5206 | H143: CZ LA UNION | I143: CENTROS | J143: 05 | K143: ANTIOQUIA | L143: 0507 | M143: CZ BAJO CAUCA | N143: 05895 | O143: ZARAGOZA | P143: 05 | Q143: ANTIOQUIA | R143: 05895 | S143: ZARAGOZA | T143: Municipio
D144: ITINERANTE | E144: 52 | F144: NARIÑO | G144: 5207 | H144: CZ BARBACOAS | I144: CENTROS | J144: 08 | K144: ATLÁNTICO | L144: 0801 | M144: CZ NORTE CENTRO HISTORICO | N144: 08001 | O144: BARRANQUILLA | P144: 08 | Q144: ATLÁNTICO | R144: 08001 | S144: BARRANQUILLA | T144: Municipio
D145: ITINERANTE | E145: 52 | F145: NARIÑO | G145: 5208 | H145: CZ REMOLINO | I145: CENTROS | J145: 08 | K145: ATLÁNTICO | L145: 0802 | M145: CZ SUROCCIDENTE | N145: 08001 | O145: BARRANQUILLA | P145: 08 | Q145: ATLÁNTICO | R145: 08001 | S145: BARRANQUILLA | T145: Municipio
D146: ITINERANTE | E146: 52 | F146: NARIÑO | G146: 5203 | H146: CZ TUMACO | I146: CENTROS | J146: 08 | K146: ATLÁNTICO | L146: 0807 | M146: CZ SURORIENTE | N146: 08001 | O146: BARRANQUILLA | P146: 08 | Q146: ATLÁNTICO | R146: 08001 | S146: BARRANQUILLA | T146: Municipio
D147: ITINERANTE | E147: 52 | F147: NARIÑO | G147: 5205 | H147: CZ TUQUERRES | I147: CENTROS | J147: 08 | K147: ATLÁNTICO | L147: 0803 | M147: CZ BARANOA | N147: 08078 | O147: BARANOA | P147: 08 | Q147: ATLÁNTICO | R147: 08078 | S147: BARANOA | T147: Municipio
D148: ITINERANTE | E148: 54 | F148: NORTE DE SANTANDER | G148: 5401 | H148: CZ CUCUTA 1 | I148: CENTROS | J148: 08 | K148: ATLÁNTICO | L148: 0805 | M148: CZ SABANAGRANDE | N148: 08137 | O148: CAMPO DE LA CRUZ | P148: 08 | Q148: ATLÁNTICO | R148: 08137 | S148: CAMPO DE LA CRUZ | T148: Municipio
D149: ITINERANTE | E149: 54 | F149: NORTE DE SANTANDER | G149: 5402 | H149: CZ CUCUTA 2 | I149: CENTROS | J149: 08 | K149: ATLÁNTICO | L149: 0804 | M149: CZ SABANALARGA | N149: 08141 | O149: CANDELARIA | P149: 08 | Q149: ATLÁNTICO | R149: 08141 | S149: CANDELARIA | T149: Municipio
D150: ITINERANTE | E150: 54 | F150: NORTE DE SANTANDER | G150: 5403 | H150: CZ CUCUTA 3 | I150: CENTROS | J150: 08 | K150: ATLÁNTICO | L150: 0803 | M150: CZ BARANOA | N150: 08296 | O150: GALAPA | P150: 08 | Q150: ATLÁNTICO | R150: 08296 | S150: GALAPA | T150: Municipio
D151: ITINERANTE | E151: 54 | F151: NORTE DE SANTANDER | G151: 5404 | H151: CZ OCAÑA | I151: CENTROS | J151: 08 | K151: ATLÁNTICO | L151: 0803 | M151: CZ BARANOA | N151: 08372 | O151: JUAN DE ACOSTA | P151: 08 | Q151: ATLÁNTICO | R151: 08372 | S151: JUAN DE ACOSTA | T151: Municipio
D152: ITINERANTE | E152: 54 | F152: NORTE DE SANTANDER | G152: 5405 | H152: CZ PAMPLONA | I152: CENTROS | J152: 08 | K152: ATLÁNTICO | L152: 0804 | M152: CZ SABANALARGA | N152: 08421 | O152: LURUACO | P152: 08 | Q152: ATLÁNTICO | R152: 08421 | S152: LURUACO | T152: Municipio
D153: ITINERANTE | E153: 54 | F153: NORTE DE SANTANDER | G153: 5406 | H153: CZ TIBU | I153: CENTROS | J153: 08 | K153: ATLÁNTICO | L153: 0806 | M153: CZ HIPODROMO | N153: 08433 | O153: MALAMBO | P153: 08 | Q153: ATLÁNTICO | R153: 08433 | S153: MALAMBO | T153: Municipio
D154: ITINERANTE | E154: 63 | F154: QUINDÍO | G154: 6301 | H154: CZ ARMENIA SUR | I154: CENTROS | J154: 08 | K154: ATLÁNTICO | L154: 0804 | M154: CZ SABANALARGA | N154: 08436 | O154: MANATÍ | P154: 08 | Q154: ATLÁNTICO | R154: 08436 | S154: MANATÍ | T154: Municipio
D155: ITINERANTE | E155: 63 | F155: QUINDÍO | G155: 6302 | H155: CZ ARMENIA NORTE | I155: CENTROS | J155: 08 | K155: ATLÁNTICO | L155: 0805 | M155: CZ SABANAGRANDE | N155: 08520 | O155: PALMAR DE VARELA | P155: 08 | Q155: ATLÁNTICO | R155: 08520 | S155: PALMAR DE VARELA | T155: Municipio
D156: ITINERANTE | E156: 63 | F156: QUINDÍO | G156: 6303 | H156: CZ CALARCA | I156: CENTROS | J156: 08 | K156: ATLÁNTICO | L156: 0803 | M156: CZ BARANOA | N156: 08549 | O156: PIOJÓ | P156: 08 | Q156: ATLÁNTICO | R156: 08549 | S156: PIOJÓ | T156: Municipio
D157: ITINERANTE | E157: 66 | F157: RISARALDA | G157: 6601 | H157: CZ PEREIRA | I157: CENTROS | J157: 08 | K157: ATLÁNTICO | L157: 0803 | M157: CZ BARANOA | N157: 08558 | O157: POLONUEVO | P157: 08 | Q157: ATLÁNTICO | R157: 08558 | S157: POLONUEVO | T157: Municipio
D158: ITINERANTE | E158: 66 | F158: RISARALDA | G158: 6602 | H158: CZ LA VIRGINIA | I158: CENTROS | J158: 08 | K158: ATLÁNTICO | L158: 0805 | M158: CZ SABANAGRANDE | N158: 08560 | O158: PONEDERA | P158: 08 | Q158: ATLÁNTICO | R158: 08560 | S158: PONEDERA | T158: Municipio
D159: ITINERANTE | E159: 66 | F159: RISARALDA | G159: 6604 | H159: CZ BELEN DE UMBRIA | I159: CENTROS | J159: 08 | K159: ATLÁNTICO | L159: 0801 | M159: CZ NORTE CENTRO HISTORICO | N159: 08573 | O159: PUERTO COLOMBIA | P159: 08 | Q159: ATLÁNTICO | R159: 08573 | S159: PUERTO COLOMBIA | T159: Municipio
D160: ITINERANTE | E160: 66 | F160: RISARALDA | G160: 6603 | H160: CZ DOS QUEBRADAS | I160: CENTROS | J160: 08 | K160: ATLÁNTICO | L160: 0804 | M160: CZ SABANALARGA | N160: 08606 | O160: REPELÓN | P160: 08 | Q160: ATLÁNTICO | R160: 08606 | S160: REPELÓN | T160: Municipio
D161: ITINERANTE | E161: 66 | F161: RISARALDA | G161: 6605 | H161: CZ SANTA ROSA DE CABAL | I161: CENTROS | J161: 08 | K161: ATLÁNTICO | L161: 0805 | M161: CZ SABANAGRANDE | N161: 08634 | O161: SABANAGRANDE | P161: 08 | Q161: ATLÁNTICO | R161: 08634 | S161: SABANAGRANDE | T161: Municipio
D162: ITINERANTE | E162: 68 | F162: SANTANDER | G162: 6803 | H162: CZ CARLOS LLERAS RESTREPO | I162: CENTROS | J162: 08 | K162: ATLÁNTICO | L162: 0804 | M162: CZ SABANALARGA | N162: 08638 | O162: SABANALARGA | P162: 08 | Q162: ATLÁNTICO | R162: 08638 | S162: SABANALARGA | T162: Municipio
D163: ITINERANTE | E163: 68 | F163: SANTANDER | G163: 6804 | H163: CZ LUIS CARLOS GALÁN SARMIENTO | I163: CENTROS | J163: 08 | K163: ATLÁNTICO | L163: 0805 | M163: CZ SABANAGRANDE | N163: 08675 | O163: SANTA LUCÍA | P163: 08 | Q163: ATLÁNTICO | R163: 08675 | S163: SANTA LUCÍA | T163: Municipio
D164: ITINERANTE | E164: 68 | F164: SANTANDER | G164: 6815 | H164: CZ RESURGIR | I164: CENTROS | J164: 08 | K164: ATLÁNTICO | L164: 0805 | M164: CZ SABANAGRANDE | N164: 08685 | O164: SANTO TOMÁS | P164: 08 | Q164: ATLÁNTICO | R164: 08685 | S164: SANTO TOMÁS | T164: Municipio
D165: ITINERANTE | E165: 68 | F165: SANTANDER | G165: 6809 | H165: CZ VELEZ | I165: CENTROS | J165: 08 | K165: ATLÁNTICO | L165: 0806 | M165: CZ HIPODROMO | N165: 08758 | O165: SOLEDAD | P165: 08 | Q165: ATLÁNTICO | R165: 08758 | S165: SOLEDAD | T165: Municipio
D166: ITINERANTE | E166: 68 | F166: SANTANDER | G166: 6807 | H166: CZ SAN GIL | I166: CENTROS | J166: 08 | K166: ATLÁNTICO | L166: 0805 | M166: CZ SABANAGRANDE | N166: 08770 | O166: SUAN | P166: 08 | Q166: ATLÁNTICO | R166: 08770 | S166: SUAN | T166: Municipio
D167: ITINERANTE | E167: 68 | F167: SANTANDER | G167: 6805 | H167: CZ YARIQUIES | I167: CENTROS | J167: 08 | K167: ATLÁNTICO | L167: 0803 | M167: CZ BARANOA | N167: 08832 | O167: TUBARÁ | P167: 08 | Q167: ATLÁNTICO | R167: 08832 | S167: TUBARÁ | T167: Municipio
D168: ITINERANTE | E168: 68 | F168: SANTANDER | G168: 6806 | H168: CZ LA FLORESTA | I168: CENTROS | J168: 08 | K168: ATLÁNTICO | L168: 0803 | M168: CZ BARANOA | N168: 08849 | O168: USIACURÍ | P168: 08 | Q168: ATLÁNTICO | R168: 08849 | S168: USIACURÍ | T168: Municipio
D169: ITINERANTE | E169: 68 | F169: SANTANDER | G169: 6802 | H169: CZ BUCARAMANGA SUR | I169: CENTROS | J169: 11 | K169: BOGOTÁ DC | L169: 1130 | M169: CZ CREER | N169: 11001 | O169: BOGOTÁ DC | P169: 11 | Q169: BOGOTÁ DC | R169: 11001 | S169: BOGOTÁ, D.C. | T169: Municipio
D170: ITINERANTE | E170: 68 | F170: SANTANDER | G170: 6801 | H170: CZ ANTONIA SANTOS | I170: CENTROS | J170: 11 | K170: BOGOTÁ DC | L170: 1101 | M170: CZ CIUDAD BOLIVAR | N170: 11019 | O170: CIUDAD BOLIVAR | P170: 11 | Q170: BOGOTÁ DC | R170: n/a | S170: n/a | T170: Localidad
D171: ITINERANTE | E171: 68 | F171: SANTANDER | G171: 6810 | H171: CZ MALAGA | I171: CENTROS | J171: 11 | K171: BOGOTÁ DC | L171: 1102 | M171: CZ TUNJUELITO | N171: 11006 | O171: TUNJUELITO | P171: 11 | Q171: BOGOTÁ DC | R171: n/a | S171: n/a | T171: Localidad
D172: ITINERANTE | E172: 68 | F172: SANTANDER | G172: 6808 | H172: CZ SOCORRO | I172: CENTROS | J172: 11 | K172: BOGOTÁ DC | L172: 1103 | M172: CZ USME | N172: 11005 | O172: USME | P172: 11 | Q172: BOGOTÁ DC | R172: n/a | S172: n/a | T172: Localidad
D173: ITINERANTE | E173: 70 | F173: SUCRE | G173: 7003 | H173: CZ SINCELEJO | I173: CENTROS | J173: 11 | K173: BOGOTÁ DC | L173: 1103 | M173: CZ USME | N173: 11020 | O173: SUMAPAZ | P173: 11 | Q173: BOGOTÁ DC | R173: n/a | S173: n/a | T173: Localidad
D174: ITINERANTE | E174: 70 | F174: SUCRE | G174: 7001 | H174: CZ BOSTON | I174: CENTROS | J174: 11 | K174: BOGOTÁ DC | L174: 1104 | M174: CZ SAN CRISTOBAL SUR | N174: 11004 | O174: SAN CRISTOBAL SUR | P174: 11 | Q174: BOGOTÁ DC | R174: n/a | S174: n/a | T174: Localidad
D175: ITINERANTE | E175: 70 | F175: SUCRE | G175: 7002 | H175: CZ NORTE | I175: CENTROS | J175: 11 | K175: BOGOTÁ DC | L175: 1105 | M175: CZ KENNEDY | N175: 11008 | O175: KENNEDY | P175: 11 | Q175: BOGOTÁ DC | R175: n/a | S175: n/a | T175: Localidad
D176: ITINERANTE | E176: 70 | F176: SUCRE | G176: 7004 | H176: CZ LA MOJANA | I176: CENTROS | J176: 11 | K176: BOGOTÁ DC | L176: 1106 | M176: CZ REVIVIR | N176: 11013 | O176: TEUSAQUILLO | P176: 11 | Q176: BOGOTÁ DC | R176: n/a | S176: n/a | T176: Localidad
D177: ITINERANTE | E177: 73 | F177: TOLIMA | G177: 7301 | H177: CZ JORDAN | I177: CENTROS | J177: 11 | K177: BOGOTÁ DC | L177: 1107 | M177: CZ PUENTE ARANDA | N177: 11016 | O177: PUENTE ARANDA | P177: 11 | Q177: BOGOTÁ DC | R177: n/a | S177: n/a | T177: Localidad
D178: ITINERANTE | E178: 73 | F178: TOLIMA | G178: 7302 | H178: CZ GALAN | I178: CENTROS | J178: 11 | K178: BOGOTÁ DC | L178: 1108 | M178: CZ BOSA | N178: 11007 | O178: BOSA | P178: 11 | Q178: BOGOTÁ DC | R178: n/a | S178: n/a | T178: Localidad
D179: ITINERANTE | E179: 73 | F179: TOLIMA | G179: 7303 | H179: CZ IBAGUE | I179: CENTROS | J179: 11 | K179: BOGOTÁ DC | L179: 1109 | M179: CZ RAFAEL URIBE | N179: 11015 | O179: ANTONIO NARIÑO | P179: 11 | Q179: BOGOTÁ DC | R179: n/a | S179: n/a | T179: Localidad
D180: ITINERANTE | E180: 73 | F180: TOLIMA | G180: 7309 | H180: CZ PURIFICACION | I180: CENTROS | J180: 11 | K180: BOGOTÁ DC | L180: 1109 | M180: CZ RAFAEL URIBE | N180: 11018 | O180: RAFAEL URIBE | P180: 11 | Q180: BOGOTÁ DC | R180: n/a | S180: n/a | T180: Localidad
D181: ITINERANTE | E181: 73 | F181: TOLIMA | G181: 7305 | H181: CZ LERIDA | I181: CENTROS | J181: 11 | K181: BOGOTÁ DC | L181: 1110 | M181: CZ SANTA FE | N181: 11003 | O181: SANTA FE | P181: 11 | Q181: BOGOTÁ DC | R181: n/a | S181: n/a | T181: Localidad
D182: ITINERANTE | E182: 73 | F182: TOLIMA | G182: 7308 | H182: CZ CHAPARRAL | I182: CENTROS | J182: 11 | K182: BOGOTÁ DC | L182: 1110 | M182: CZ SANTA FE | N182: 11017 | O182: LA CANDELARIA | P182: 11 | Q182: BOGOTÁ DC | R182: n/a | S182: n/a | T182: Localidad
D183: ITINERANTE | E183: 73 | F183: TOLIMA | G183: 7312 | H183: CZ MELGAR | I183: CENTROS | J183: 11 | K183: BOGOTÁ DC | L183: 1111 | M183: CZ FONTIBON | N183: 11009 | O183: FONTIBON | P183: 11 | Q183: BOGOTÁ DC | R183: n/a | S183: n/a | T183: Localidad
D184: ITINERANTE | E184: 73 | F184: TOLIMA | G184: 7304 | H184: CZ LIBANO | I184: CENTROS | J184: 11 | K184: BOGOTÁ DC | L184: 1112 | M184: CZ BARRIOS UNIDOS | N184: 11002 | O184: CHAPINERO | P184: 11 | Q184: BOGOTÁ DC | R184: n/a | S184: n/a | T184: Localidad
D185: ITINERANTE | E185: 73 | F185: TOLIMA | G185: 7307 | H185: CZ ESPINAL | I185: CENTROS | J185: 11 | K185: BOGOTÁ DC | L185: 1112 | M185: CZ BARRIOS UNIDOS | N185: 11012 | O185: BARRIOS UNIDOS | P185: 11 | Q185: BOGOTÁ DC | R185: n/a | S185: n/a | T185: Localidad
D186: ITINERANTE | E186: 73 | F186: TOLIMA | G186: 7306 | H186: CZ HONDA | I186: CENTROS | J186: 11 | K186: BOGOTÁ DC | L186: 1112 | M186: CZ BARRIOS UNIDOS | N186: 11013 | O186: TEUSAQUILLO | P186: 11 | Q186: BOGOTÁ DC | R186: n/a | S186: n/a | T186: Localidad
D187: ITINERANTE | E187: 76 | F187: VALLE DEL CAUCA | G187: 7601 | H187: CZ SURORIENTAL | I187: CENTROS | J187: 11 | K187: BOGOTÁ DC | L187: 1113 | M187: CZ ENGATIVA | N187: 11010 | O187: ENGATIVA | P187: 11 | Q187: BOGOTÁ DC | R187: n/a | S187: n/a | T187: Localidad
D188: ITINERANTE | E188: 76 | F188: VALLE DEL CAUCA | G188: 7602 | H188: CZ NORORIENTAL | I188: CENTROS | J188: 11 | K188: BOGOTÁ DC | L188: 1114 | M188: CZ SUBA | N188: 11011 | O188: SUBA | P188: 11 | Q188: BOGOTÁ DC | R188: n/a | S188: n/a | T188: Localidad
D189: ITINERANTE | E189: 76 | F189: VALLE DEL CAUCA | G189: 7603 | H189: CZ LADERA | I189: CENTROS | J189: 11 | K189: BOGOTÁ DC | L189: 1115 | M189: CZ USAQUEN | N189: 11021 | O189: USAQUEN | P189: 11 | Q189: BOGOTÁ DC | R189: n/a | S189: n/a | T189: Localidad
D190: ITINERANTE | E190: 76 | F190: VALLE DEL CAUCA | G190: 7604 | H190: CZ CENTRO | I190: CENTROS | J190: 11 | K190: BOGOTÁ DC | L190: 1116 | M190: CZ MARTIRES | N190: 11014 | O190: MARTIRES | P190: 11 | Q190: BOGOTÁ DC | R190: n/a | S190: n/a | T190: Localidad
D191: ITINERANTE | E191: 76 | F191: VALLE DEL CAUCA | G191: 7605 | H191: CZ SUR | I191: CENTROS | J191: 11 | K191: BOGOTÁ DC | L191: 1116 | M191: CZ MARTIRES | N191: 11016 | O191: PUENTE ARANDA | P191: 11 | Q191: BOGOTÁ DC | R191: n/a | S191: n/a | T191: Localidad
D192: ITINERANTE | E192: 76 | F192: VALLE DEL CAUCA | G192: 7620 | H192: CZ RESTAURAR | I192: CENTROS | J192: 11 | K192: BOGOTÁ DC | L192: 1131 | M192: CZ KENNEDY CENTRAL | N192: 11008 | O192: KENNEDY | P192: 11 | Q192: BOGOTÁ DC | R192: n/a | S192: n/a | T192: Localidad
D193: ITINERANTE | E193: 76 | F193: VALLE DEL CAUCA | G193: 7613 | H193: CZ CARTAGO | I193: CENTROS | J193: 13 | K193: BOLÍVAR | L193: 1301 | M193: CZ HISTORICO Y DEL CARIBE NORTE | N193: 13001 | O193: CARTAGENA DE INDIAS | P193: 13 | Q193: BOLÍVAR | R193: 13001 | S193: CARTAGENA DE INDIAS | T193: Municipio
D194: ITINERANTE | E194: 76 | F194: VALLE DEL CAUCA | G194: 7610 | H194: CZ TULUA | I194: CENTROS | J194: 13 | K194: BOLÍVAR | L194: 1302 | M194: CZ DE LA VIRGEN Y TURISTICO | N194: 13001 | O194: CARTAGENA DE INDIAS | P194: 13 | Q194: BOLÍVAR | R194: 13001 | S194: CARTAGENA DE INDIAS | T194: Municipio
D195: ITINERANTE | E195: 76 | F195: VALLE DEL CAUCA | G195: 7612 | H195: CZ ROLDANILLO | I195: CENTROS | J195: 13 | K195: BOLÍVAR | L195: 1303 | M195: CZ INDUSTRIAL DE LA BAHIA | N195: 13001 | O195: CARTAGENA DE INDIAS | P195: 13 | Q195: BOLÍVAR | R195: 13001 | S195: CARTAGENA DE INDIAS | T195: Municipio
D196: ITINERANTE | E196: 76 | F196: VALLE DEL CAUCA | G196: 7614 | H196: CZ BUENAVENTURA | I196: CENTROS | J196: 13 | K196: BOLÍVAR | L196: 1306 | M196: CZ MAGANGUE | N196: 13006 | O196: ACHÍ | P196: 13 | Q196: BOLÍVAR | R196: 13006 | S196: ACHÍ | T196: Municipio
D197: ITINERANTE | E197: 76 | F197: VALLE DEL CAUCA | G197: 7609 | H197: CZ BUGA | I197: CENTROS | J197: 13 | K197: BOLÍVAR | L197: 1307 | M197: CZ MOMPOX | N197: 13030 | O197: ALTOS DEL ROSARIO | P197: 13 | Q197: BOLÍVAR | R197: 13030 | S197: ALTOS DEL ROSARIO | T197: Municipio
D198: ITINERANTE | E198: 76 | F198: VALLE DEL CAUCA | G198: 7611 | H198: CZ SEVILLA | I198: CENTROS | J198: 13 | K198: BOLÍVAR | L198: 1308 | M198: CZ SIMITI | N198: 13042 | O198: ARENAL | P198: 13 | Q198: BOLÍVAR | R198: 13042 | S198: ARENAL | T198: Municipio
D199: ITINERANTE | E199: 76 | F199: VALLE DEL CAUCA | G199: 7608 | H199: CZ PALMIRA | I199: CENTROS | J199: 13 | K199: BOLÍVAR | L199: 1304 | M199: CZ TURBACO | N199: 13052 | O199: ARJONA | P199: 13 | Q199: BOLÍVAR | R199: 13052 | S199: ARJONA | T199: Municipio
D200: ITINERANTE | E200: 76 | F200: VALLE DEL CAUCA | G200: 7606 | H200: CZ JAMUNDI | I200: CENTROS | J200: 13 | K200: BOLÍVAR | L200: 1304 | M200: CZ TURBACO | N200: 13062 | O200: ARROYOHONDO | P200: 13 | Q200: BOLÍVAR | R200: 13062 | S200: ARROYOHONDO | T200: Municipio
... 1155 more rows

Sheet TR (hidden)
C4: ALISTAMIENTO | D4: ATENCIÓN | E4: CIERRE | F4: CCM (Promedio) | I4: ALISTAMIENTO | J4: ATENCIÓN | K4: CIERRE | L4: CCM (Promedio)
C5: =+C10+C25+C43+C51+C53+C69+C82+C31+C41+C39+C60+C63 -> 1.000000413 | D5: =+D10+D25+D43+D51+D53+D69+D82+D31+D41+D39+D60+D63 -> 0.9999999963 | E5: =+E10+E25+E43+E51+E53+E69+E82+E31+E41+E39+E60+E63 -> 0.9999999963 | F5: =+F10+F25+F43+F51+F53+F69+F82+F31+F41+F39+F60+F63 -> 1 | I5: =+I10+I39+I31+I41+I53+I60+I43+I63+I80+I69+I82+I25 -> 1.000000644 | J5: =+J10+J39+J31+J41+J53+J60+J43+J63+J80+J69+J82+J25 -> 0.9999995094 | K5: =+K10+K39+K31+K41+K53+K60+K43+K63+K80+K69+K82+K25 -> 1.000000184 | L5: =+L10+L39+L31+L41+L53+L60+L43+L63+L80+L69+L82+L25 -> 1.000030688
B8: ITINERANTE 2025 | H8: CENTROS 2025
A9: COD | C9: ALISTAMIENTO | D9: ATENCIÓN | E9: CIERRE | F9: CCM (Regional/etapa) | G9: COD | I9: ALISTAMIENTO | J9: ATENCIÓN | K9: CIERRE | L9: CCM (Promedio) | M9: COD
A10: 2100 | B10: TALENTO HUMANO | C10: =+SUM(C11:C19) -> 0.7884212742 | D10: =SUM(D11:D19) -> 0.6840452839 | E10: =SUM(E11:E19) -> 0.8469448052 | F10: 0.7002881623 | G10: 2100 | H10: TALENTO HUMANO | I10: =+ROUND(SUM(I11:I23),6) -> 0.707935 | J10: =+ROUND(SUM(J11:J23),6) -> 0.575033 | K10: =+ROUND(SUM(K11:K23),6) -> 0.583602 | L10: 0.5835 | M10: 2100
A11: 2101 | B11: Orientador de atención itinerante para la adaptación de entornos familiares. | C11: 0.2351386996 | D11: 0.2040096123 | E11: 0.2525927529 | G11: 2101 | H11: Coordinador | I11: 0.05563117019 | J11: 0.04518746632 | K11: 0.04586081354 | M11: 2101
A12: 2102 | B12: Orientador de atención itinerante para la adaptación de entornos institucionales. | C12: 0.2351386996 | D12: 0.2040096123 | E12: 0.2525927529 | G12: 2102 | H12: Orientador Pedagógico para la Inclusión | I12: 0.05777083058 | J12: 0.04692544579 | K12: 0.04762469098 | M12: 2102
A13: 2103 | B13: Orientador de atención itinerante para la movilización de redes familiares y comunitarias | C13: 0.2351386996 | D13: 0.2040096123 | E13: 0.2525927529 | G13: 2103 | H13: Auxiliares Pedagógicos para la inclusión | I13: 0.05135183844 | J13: 0.04171149846 | K13: 0.04233304961 | M13: 2103
A14: 2104 | B14: Líder comunitario, sabedor, modelo lingüista, tiflólogo, docente bilingüe, educador especial con competencia en Lengua de Señas Colombiana -LSC o intérprete para el trabajo con comunidades específicas. | C14: 0.08300517555 | D14: 0.07201644696 | E14: 0.08916654653 | G14: 2104 | H14: Orientador para la eliminación de barreras para la comunicación. | I14: 0.0491038706 | J14: 0.03988554422 | K14: 0.04047988647 | M14: 2104
G15: 2105 | H15: Orientador para la eliminación de barreras para la movilidad y la vida independiente | I15: 0.0491038706 | J15: 0.03988554422 | K15: 0.04047988647 | M15: 2105
G16: 2106 | H16: Orientador para la gestión de servicios y apoyos para la gestión emocional, proyectos de vida y sistemas de apoyo para la toma de decisiones. | I16: 0.0491038706 | J16: 0.03988554422 | K16: 0.04047988647 | M16: 2106
G17: 2107 | H17: Asistentes de vida independiente | I17: 0.08309360355 | J17: 0.06749434533 | K17: 0.06850009169 | M17: 2107
G18: 2108 | H18: Orientador de seguimiento a la salud y la nutrición | I18: 0.06092517301 | J18: 0.04948761968 | K18: 0.05022504451 | M18: 2108
G19: 2109 | H19: Orientador para el desarrollo integral desde componentes de atención | I19: 0.0491038706 | J19: 0.03988554422 | K19: 0.04047988647 | M19: 2109
G20: 2110 | H20: Orientador para el desarrollo a acceso a herramientas de tecnología e informática | I20: 0.0491038706 | J20: 0.03988554422 | K20: 0.04047988647
G21: 2111 | H21: Auxiliar Administrativo | I21: 0.04728520873 | J21: 0.03840830184 | K21: 0.03898063142
G22: 2112 | H22: Manipulador de alimentos para la atención en punto fijo | I22: 0.07318766208 | J22: 0.0594480577 | K22: 0.06033390476
G23: 2113 | H23: Servicios Generales para la atención en punto fijo | I23: 0.03317004179 | J23: 0.02694299151 | K23: 0.02734447427 | M23: 2110
A25: 2110 | B25: TRANSPORTE Y VIAJES DEL TH | C25: =SUM(C26:C29) -> 0 | D25: =SUM(D26:D29) -> 0.09900498363 | E25: =SUM(E26:E29) -> 0 | F25: 0.08687647649 | G25: 2110 | H25: N/A | M25: 2110
A26: 2111 | B26: Orientador de atención itinerante para la adaptación de entornos familiares. | C26: 0 | D26: 0.02868612973 | E26: 0 | G26: 2111 | H26: N/A | M26: 2111
A27: 2112 | B27: Orientador de atención itinerante para la adaptación de entornos institucionales. | C27: 0 | D27: 0.02868612973 | E27: 0 | G27: 2112 | H27: N/A | M27: 2112
A28: 2113 | B28: Orientador de atención itinerante para la movilización de redes familiares y comunitarias | C28: 0 | D28: 0.02868612973 | E28: 0 | G28: 2113 | H28: N/A | M28: 2113
A29: 2114 | B29: Líder comunitario, sabedor, modelo lingüista, tiflólogo, docente bilingüe, educador especial con competencia en Lengua de Señas Colombiana -LSC o intérprete para el trabajo con comunidades específicas. | C29: 0 | D29: 0.01294659443 | E29: 0 | G29: 2114 | H29: N/A | M29: 2114
A31: 2200 | B31: APOYOS NUTRICIONALES | C31: 0 | D31: =SUM(D32:D35) -> 0.08376919962 | E31: =SUM(E32:E35) -> 0 | F31: 0.07350713707 | G31: 2200 | H31: COMPLEMENTACIÓN ALIMENTARIA Y NUTRICIONAL | I31: =+ROUND(SUM(I32:I35),4) -> 0 | J31: =ROUND(+J32+J33+J34,6) -> 0.162148 | K31: =ROUND(+K32+K33+K34,6) -> 0.150854 | L31: 0.1517961097 | M31: 2200
A32: 2201 | B32: Ración Familiar Para Preparar (RFPP) Sin AAVN | C32: 0 | D32: 0.08376919962 | E32: 0 | G32: 2201 | H32: Atención Punto Fijo (RP/RFPP) | I32: 0 | J32: 0.1553680878 | K32: 0.1508539147 | M32: 2201
A33: 2202 | G33: 2202 | H33: Encuentros Familiares, Movilización Social y Comunitaria (RCL) | I33: 0 | J33: 0.006780322874 | K33: 0 | M33: 2202
A34: 2203 | G34: 2203 | I34: 0 | J34: 0 | K34: 0 | M34: 2203
A39: 2202 | B39: N/A | C39: 0 | D39: 0 | E39: 0 | F39: 0 | G39: 2202 | H39: TRANSPORTE NNA | I39: 0 | J39: 0.1148997593 | K39: 0.1166119029 | L39: 0.1082578375 | M39: 2202
A41: 2203 | B41: MATERIAL DE CONSUMO | C41: 0 | D41: 0.08345738982 | E41: 0.1033320519 | F41: 0.07933631898 | G41: 2203 | H41: MATERIALES E INSUMOS | I41: 0 | J41: 0.008017449868 | K41: 0.008136919447 | L41: 0.007553991328 | M41: 2203
A43: 2204 | B43: DOTACIÓN | C43: =+C44+C45 -> 0 | D43: =+D44+D45 -> 0 | E43: =+E44+E45 -> 0 | F43: =+F44+F45 -> 0 | G43: 2204 | H43: DOTACIÓN | I43: =ROUND(+I44+I46+I47+I45,6) -> 0.031358 | J43: =ROUND(+J44+J46+J47+J45,6) -> 0.026727 | K43: =ROUND(+K44+K46+K47+K45,6) -> 0.027125 | L43: =+L44+L46+L47+L45 -> 0.02702774187 | M43: 2204
A44: 220401 | C44: 0 | D44: 0 | E44: 0 | F44: 0 | G44: 220401 | H44: Reposición dotación lúdico - pedagógica - deportiva | I44: 0.02563159152 | J44: 0.02081974316 | K44: 0.02112998227 | L44: 0.02365290019 | M44: 220401
A45: 220402 | C45: 0 | D45: 0 | E45: 0 | F45: 0 | G45: 220402 | H45: Reposición Menaje de alimentación | I45: 0.003066941216 | J45: 0.002491180735 | K45: 0.002528302366 | L45: 0 | M45: 220402
G46: 220403 | H46: Dotación de aseo e higiene personal | I46: 0 | J46: 0.00341571451 | K46: 0.003466614242 | L46: 0.003218265044 | M46: 220403
G47: 220404 | H47: Botiquín | I47: 0.002659685557 | J47: 0 | K47: 0 | L47: 0.0001565766392 | M47: 220404
M48: 220405
A51: 2205 | B51: SERVICIO DE COMUNICACIÓN MÓBIL E NTERNET | C51: 0 | D51: 0 | E51: 0 | F51: 0 | G51: 2205 | H51: N/A | I51: 0 | J51: 0 | K51: 0 | L51: 0 | M51: 2205
A53: 2206 | B53: MATERIAL IDENTIFICACIÓN | C53: =ROUND(SUM(C54:C59),6) -> 0.161856 | D53: =SUM(D54:D59) -> 0 | E53: 0 | F53: 0.01026876219 | G53: 2206 | H53: MATERIAL IDENTIFICACIÓN | I53: =+ROUND(SUM(I54:I59),6) -> 0.14063 | J53: =+ROUND(SUM(J54:J59),6) -> 0 | K53: =+ROUND(SUM(K54:K59),6) -> 0 | L53: 0.008278916504 | M53: 2206
A54: 220601 | B54: Chalecos | C54: 0.07152725217 | D54: 0 | E54: 0 | G54: 220601 | H54: Chaleco | I54: 0.06244492597 | J54: 0 | K54: 0 | M54: 220601
A55: 220602 | B55: Gorras | C55: 0.01913262905 | D55: 0 | E55: 0 | G55: 220602 | H55: Gorra | I55: 0.01670322245 | J55: 0 | K55: 0 | M55: 220602
A56: 220603 | B56: Camisetas | C56: 0.05776225066 | D56: 0 | E56: 0 | G56: 220603 | H56: Camisetas | I56: 0.05042776504 | J56: 0 | K56: 0 | M56: 220603
A57: 220604 | B57: Carné | C57: 0.008777805408 | D57: 0 | E57: 0 | G57: 220604 | H57: Carné | I57: 0.007663224746 | J57: 0 | K57: 0 | M57: 220604
A58: 220605 | B58: Valla | C58: 0 | D58: 0 | E58: 0 | G58: 220605 | H58: Valla | I58: 0.002271089118 | J58: 0 | K58: 0 | M58: 220605
A59: 220606 | B59: Pendón | C59: 0.004655644572 | D59: 0 | E59: 0 | G59: 220606 | H59: Pendón | I59: 0.001119401472 | J59: 0 | K59: 0 | M59: 220606
A60: 2207 | B60: SEGURO | C60: 0 | D60: 0 | E60: 0 | F60: 0 | G60: 2207 | H60: PÓLIZA | I60: 0 | J60: 0.0006408853238 | K60: 0.0006504352806 | L60: 0.0006038381603 | M60: 2207
A62: 2208 | B62: APOYO A INICIATIVAS | C62: 0 | D62: 0 | E62: 0 | F62: 0 | G62: 2208 | H62: APOYO A INICIATIVAS | I62: 0 | J62: 0 | K62: 0 | L62: 0 | M62: 2208
A63: 220801 | B63: Apoyo Iniciativas | C63: 0 | D63: 0 | E63: 0 | F63: 0 | G63: 220801 | H63: Apoyo Iniciativas | I63: 0 | J63: 0 | K63: 0 | L63: 0 | M63: 220801
A64: 220802 | G64: 220802 | H64: - | M64: 220802
A65: 220803 | G65: 220803 | H65: - | M65: 220803
A66: 220804 | G66: 220804 | H66: - | M66: 220804
A67: 220805 | G67: 220805 | H67: - | M67: 220805
A69: 2300 | B69: GASTOS OPERATIVOS | C69: 0.04573907924 | D69: 0.04573907924 | E69: 0.04573907924 | F69: 0.04573907924 | G69: 2300 | H69: GASTOS OPERATIVOS | I69: =+ROUND(7.2593625076403%,6) -> 0.072594 | J69: =+ROUND(7.32159937801207%,6) -> 0.073216 | K69: =+ROUND(7.31758670277846%,6) -> 0.073176 | L69: 0.07317648925 | M69: 2300
A70: 230001 | B70: Aseo | G70: 230001 | H70: Aseo | M70: 230001
A71: 230002 | B71: Servicios públicos | G71: 230002 | H71: Reparación y mantenimiento de dotación instituciona | M71: 230002
A72: 230003 | B72: Papelería asociada con el manejo administrativo del contrato | G72: 230003 | H72: Servicios públicos | M72: 230003
A73: 230004 | B73: Acciones de movilización social | G73: 230004 | H73: Papelería | M73: 230004
A74: 230005 | B74: Gastos bancarios (comisiones, transferencias y chequeras) | G74: 230005 | H74: Mantenimiento de instalaciones locativas | M74: 230005
A75: 230006 | B75: Materiales o dispositivos de apoyo de baja complejidad para los participantes | G75: 230006 | H75: Acciones de movilización social | M75: 230006
A76: 230007 | B76: Otros (lo que se requiera para el adecuado desarrollo de la Modalidad) | G76: 230007 | H76: Gastos bancarios (comisiones, transferencias y chequeras) | M76: 230007
G77: 230008 | H77: Materiales o dispositivos de apoyo de baja complejidad para los participantes | M77: 230008
G78: 230009 | H78: Otros (lo que se requiera para el adecuado desarrollo de la Modalidad) | M78: 230009
A80: 2302 | B80: N/A | G80: 2302 | H80: UTILIZACIÓN DE INSTALACIONES EN AMBIENTES SANOS | I80: 0.0434995803 | J80: 0.03533335122 | K80: 0.03585986299 | L80: 0.03585169947 | M80: 2302
A82: 2303 | B82: GRAVAMEN MOVIMIENTOS FINANCIEROS GMF | C82: =+ROUND(0.398406374501992%,8) -> 0.00398406 | D82: =+ROUND(0.398406374501992%,8) -> 0.00398406 | E82: =+ROUND(0.398406374501992%,8) -> 0.00398406 | F82: 0.003984063745 | G82: 2303 | H82: GRAVAMEN MOVIMIENTOS FINANCIEROS GMF | I82: 0.003984063798 | J82: 0.003984063749 | K82: 0.003984063733 | L82: 0.003984063798 | M82: 2303

Sheet 1. PRESUPUESTO INICIAL
B1: PROCESO PROMOCIÓN Y PREVENCIÓN FORMATO SEGUIMIENTO FINANCIERO CENTROS DE APOYO A LA INCLUSIÓN ITINERANTE | F1: F24.GO1.MT7.PP | G1: 2025-08-22
F2: Versión 1 | G2: Página 1 de 1
F3: Clasificación de la Información Pública
A4: INFORMACIÓN GENERAL DEL CONTRATO/CONVENIO/INICIATIVA
A5: Forma de Atención | B5: ITINERANTE | C5: Regional | E5: MUNICIPIO (S) DE ATENCIÓN
A6: Centro Zonal | C6: Zona
A9: Entidad contratista | B9: Escribe la entidad Contratante | C9: Nit Entidad Contratista | D9: Escribe la entidad Contratante | E9: N° del Contrato
A10: Fecha de Inicio | C10: DD/MM/AAAA | D10: Fecha de Final | F10: DD/MM/AAAA
A11: Total Cupos Contratados | B11: 50 | C11: Tiempo de ejecución Meses | D11: 4 | E11: Valor contrato | F11: Valor total aportes ICBF
A12: ETAPA CONTRACTUAL | B12: Costo Cupo Mes (CCM) | C12: VALOR MENSUAL | D12: Tiempo por Etapa
A13: Alistamiento | B13: =IFERROR(IF($B$5="CENTROS",'CCM-CENTRO-ITINERANTE'!C5,IF($B$5="ITINERANTE",'CCM-CENTRO-ITINERANTE'!C4,0)),0) -> 338563 | C13: =IFERROR(B13*B11,0) -> 16928150 | D13: =IF(D11="","",IF($B$5="CENTROS",0.5,0.5)) -> 0.5 | E13: =+ROUND(C13*D13,0) -> 8464075 | F13: =+E13+E14+E15 -> 74876725
A14: =IF($B$5="BID","Atención / Cierre","Atención") -> Atención | B14: =IFERROR(IF($B$5="CENTROS",'CCM-CENTRO-ITINERANTE'!D5,IF($B$5="ITINERANTE",'CCM-CENTRO-ITINERANTE'!D4,0)),0) -> 390223 | C14: =IFERROR(B14*B11,0) -> 19511150 | D14: =+D11-D13-D15 -> 3 | E14: =+ROUND(C14*D14,0) -> 58533450
A15: =IF($B$5="BID","","Cierre") -> Cierre | B15: =IFERROR(IF($B$5="CENTROS",'CCM-CENTRO-ITINERANTE'!E5,IF($B$5="ITINERANTE",'CCM-CENTRO-ITINERANTE'!E4,0)),0) -> 315168 | C15: =IFERROR(B15*B11,0) -> 15758400 | D15: =IF(D11="","",IF($B$5="BID",0,0.5)) -> 0.5 | E15: =+ROUND(C15*D15,0) -> 7879200
A16: 1. PRESUPUESTO DE INGRESOS
A17: CÓDIGO | B17: OBJETO DEL INGRESO | E17: INGRESOS | F17: % PART
A18: 1100 | B18: Aportes ICBF | E18: =+F13 -> 74876725 | F18: =IFERROR(E18/$E$22,0) -> 1
A19: 1200 | B19: Donaciones (Cuando aplique) | E19: 0 | F19: =IFERROR(E19/$E$22,0) -> 0
A20: 1300 | B20: Aportes contrapartida (Cuando aplique) | D20: 0 | E20: =IFERROR(E18*VLOOKUP($B$5,CONTRAPARTIDA,2,0),0) -> 0 | F20: =IFERROR(E20/$E$22,0) -> 0
A21: 1400 | B21: Otros Ingresos (Cuando aplique) | E21: 0 | F21: =IFERROR(E21/$E$22,0) -> 0
A22: TOTAL PRESUPUESTO DE INGRESOS | E22: =SUM(E18:E21) -> 74876725 | F22: =SUM(F18:F21) -> 1
A24: 2. PRESUPUESTO DE EGRESOS
A26: 2.1 PRESUPUESTO DE TALENTO HUMANO Y GASTOS DE VIAJE
A27: CÓDIGO | B27: COMPONENTE DEL COSTO O GASTO | D27: ETAPA / COSTO O GASTO
A28: 2100 | B28: =IFERROR(IF($B$5="ITINERANTE",VLOOKUP(A28,TH_COMU,2,0),IF($B$5="BID",VLOOKUP(A28,TH_BID,2,0),IF($B$5="CENTROS",VLOOKUP(A28,TH_APOYOS,2,0),IF($B$5="ITINERANTE",VLOOKUP(A28,TH_EXP,2,0))))),"") -> TALENTO HUMANO | D28: ALISTAMIENTO | E28: =IF($B$5="BID","ATENCIÓN / CIERRE","ATENCIÓN") -> ATENCIÓN | F28: =IF($B$5="BID","","CIERRE") -> CIERRE | G28: TOTAL
A29: 2101 | B29: =IFERROR(IF($B$5="ITINERANTE",VLOOKUP(A29,TH_COMU,2,0),IF($B$5="CENTROS",VLOOKUP(A29,TH_APOYOS,2,0),)),"") -> Orientador de atención itinerante para la adaptación de entornos familiares. | D29: =IFERROR(ROUND(IF($B$5="CENTROS",VLOOKUP(A29,TH_APOYOS,3,0)*$E$13,IF($B$5="ITINERANTE",VLOOKUP(A29,TH_COMU,3,0)*$E$13,0)),0),0) -> 1990232 | E29: =IFERROR(ROUND(IF($B$5="CENTROS",VLOOKUP(A29,TH_APOYOS,4,0)*$E$14,IF($B$5="ITINERANTE",VLOOKUP(A29,TH_COMU,4,0)*$E$14,0)),0),0) -> 11941386 | F29: =IFERROR(ROUND(IF($B$5="CENTROS",VLOOKUP(A29,TH_APOYOS,5,0)*$E$15,IF($B$5="ITINERANTE",VLOOKUP(A29,TH_COMU,5,0)*$E$15,0)),0),0) -> 1990229 | G29: =IFERROR(IF($B$5="BID",D29+E29,D29+E29+F29),0) -> 15921847
A30: 2102 | B30: Orientador de atención itinerante para la adaptación de entornos institucionales. | D30: 1990232 | E30: 11941386 | F30: 1990229 | G30: =IFERROR(IF($B$5="BID",D30+E30,D30+E30+F30),0) -> 15921847
A31: 2103 | B31: Orientador de atención itinerante para la movilización de redes familiares y comunitarias | D31: 1990232 | E31: 11941386 | F31: 1990229 | G31: 15921847
A32: 2104 | B32: Líder comunitario, sabedor, modelo lingüista, tiflólogo, docente bilingüe, educador especial con competencia en Lengua de Señas Colombiana -LSC o intérprete para el trabajo con comunidades específicas. | D32: 702562 | E32: 4215371 | F32: 702561 | G32: 5620494
A33: 2105 | D33: 0 | E33: 0 | F33: 0 | G33: 0
A34: SUBTOTAL PRESUPUESTO DE COSTOS TALENTO HUMANO | D34: =SUM(D29:D33) -> 6673258 | E34: =SUM(E29:E33) -> 40039529 | F34: =SUM(F29:F33) -> 6673248 | G34: =SUM(G29:G33) -> 53386035
A35: TOPE DE PARTICIPACIÓN TALENTO HUMANO | D35: =IFERROR(IF($B$5="CENTROS",TR!$I$10,IF($B$5="ITINERANTE",TR!$C$10)),"") -> 0.7884212742 | E35: =IFERROR(IF($B$5="CENTROS",TR!$J$10,IF($B$5="ITINERANTE",TR!$D$10)),"") -> 0.6840452839 | F35: =IFERROR(IF($B$5="CENTROS",TR!$K$10,IF($B$5="ITINERANTE",TR!$E$10)),"") -> 0.8469448052 | G35: =IFERROR(IF($B$5="CENTROS",TR!$L$10,IF($B$5="ITINERANTE",TR!$F$10)),"") -> 0.7002881623
D36: =+ROUND($D$34/$E$13,4) -> 0.7884 | E36: =+ROUND($E$34/$E$14,6) -> 0.684045 | F36: =+ROUND($F$34/$E$15,4) -> 0.8469
A37: 2110 | B37: =IFERROR(IF($B$5="CENTROS",VLOOKUP(A37,TRANS_APOYOS,2,0),IF($B$5="ITINERANTE",VLOOKUP(A37,TRANS_EXP,2,0))),"") -> TRANSPORTE Y VIAJES DEL TH | D37: ALISTAMIENTO | E37: =IF($B$5="BID","ATENCIÓN / CIERRE","ATENCIÓN") -> ATENCIÓN | F37: =IF($B$5="BID","","CIERRE") -> CIERRE | G37: TOTAL
A38: 2111 | B38: =IFERROR(IF(TRIM($B$5)="CENTROS",VLOOKUP(A38,TRANS_APOYOS,2,0),IF(TRIM($B$5)="ITINERANTE",VLOOKUP(A38,TRANS_EXP,2,0),"")),"") -> Orientador de atención itinerante para la adaptación de entornos familiares. | D38: =ROUND(IFERROR(IF($B$5="CENTROS",(VLOOKUP(A38,TRANS_APOYOS,3,0)*$E$13),IF($B$5="ITINERANTE",(VLOOKUP(A38,TRANS_COMU,3,0)* $E$13))),""),0) -> 0 | E38: =ROUND(IFERROR(IF($B$5="CENTROS",(VLOOKUP(A38,TRANS_APOYOS,4,0)*$E$14),IF($B$5="ITINERANTE",(VLOOKUP(A38,TRANS_COMU,4,0)* $E$14))),""),0) -> 1679098 | F38: =ROUND(IFERROR(IF($B$5="CENTROS",(VLOOKUP(A38,TRANS_APOYOS,5,0)*$E$15),IF($B$5="ITINERANTE",(VLOOKUP(A38,TRANS_COMU,5,0)* $E$15))),""),0) -> 0 | G38: =IFERROR(IF($B$5="BID",D38+E38,D38+E38+F38),0) -> 1679098
A39: 2112 | B39: =IFERROR(IF(TRIM($B$5)="CENTROS",VLOOKUP(A39,TRANS_APOYOS,2,0),IF(TRIM($B$5)="ITINERANTE",VLOOKUP(A39,TRANS_EXP,2,0),"")),"") -> Orientador de atención itinerante para la adaptación de entornos institucionales. | D39: =ROUND(IFERROR(IF($B$5="CENTROS",(VLOOKUP(A39,TRANS_APOYOS,3,0)*$E$13),IF($B$5="ITINERANTE",(VLOOKUP(A39,TRANS_COMU,3,0)* $E$13))),""),0) -> 0 | E39: =ROUND(IFERROR(IF($B$5="CENTROS",(VLOOKUP(A39,TRANS_APOYOS,4,0)*$E$14),IF($B$5="ITINERANTE",(VLOOKUP(A39,TRANS_COMU,4,0)* $E$14))),""),0) -> 1679098 | F39: =ROUND(IFERROR(IF($B$5="CENTROS",(VLOOKUP(A39,TRANS_APOYOS,5,0)*$E$15),IF($B$5="ITINERANTE",(VLOOKUP(A39,TRANS_COMU,5,0)* $E$15))),""),0) -> 0 | G39: =IFERROR(IF($B$5="BID",D39+E39,D39+E39+F39),0) -> 1679098
A40: 2113 | B40: =IFERROR(IF(TRIM($B$5)="CENTROS",VLOOKUP(A40,TRANS_APOYOS,2,0),IF(TRIM($B$5)="ITINERANTE",VLOOKUP(A40,TRANS_EXP,2,0),"")),"") -> Orientador de atención itinerante para la movilización de redes familiares y comunitarias | D40: =ROUND(IFERROR(IF($B$5="CENTROS",(VLOOKUP(A40,TRANS_APOYOS,3,0)*$E$13),IF($B$5="ITINERANTE",(VLOOKUP(A40,TRANS_COMU,3,0)* $E$13))),""),0) -> 0 | E40: =ROUND(IFERROR(IF($B$5="CENTROS",(VLOOKUP(A40,TRANS_APOYOS,4,0)*$E$14),IF($B$5="ITINERANTE",(VLOOKUP(A40,TRANS_COMU,4,0)* $E$14))),""),0) -> 1679098 | F40: =ROUND(IFERROR(IF($B$5="CENTROS",(VLOOKUP(A40,TRANS_APOYOS,5,0)*$E$15),IF($B$5="ITINERANTE",(VLOOKUP(A40,TRANS_COMU,5,0)* $E$15))),""),0) -> 0 | G40: =IFERROR(IF($B$5="BID",D40+E40,D40+E40+F40),0) -> 1679098
A41: 2114 | B41: =IFERROR(IF(TRIM($B$5)="CENTROS",VLOOKUP(A41,TRANS_APOYOS,2,0),IF(TRIM($B$5)="ITINERANTE",VLOOKUP(A41,TRANS_EXP,2,0),"")),"") -> Líder comunitario, sabedor, modelo lingüista, tiflólogo, docente bilingüe, educador especial con competencia en Lengua de Señas Colombiana -LSC o intérprete para el trabajo con comunidades específicas. | D41: =ROUND(IFERROR(IF($B$5="CENTROS",(VLOOKUP(A41,TRANS_APOYOS,3,0)*$E$13),IF($B$5="ITINERANTE",(VLOOKUP(A41,TRANS_COMU,3,0)* $E$13))),""),0) -> 0 | E41: =ROUND(IFERROR(IF($B$5="CENTROS",(VLOOKUP(A41,TRANS_APOYOS,4,0)*$E$14),IF($B$5="ITINERANTE",(VLOOKUP(A41,TRANS_COMU,4,0)* $E$14))),""),0) -> 757809 | F41: =ROUND(IFERROR(IF($B$5="CENTROS",(VLOOKUP(A41,TRANS_APOYOS,5,0)*$E$15),IF($B$5="ITINERANTE",(VLOOKUP(A41,TRANS_COMU,5,0)* $E$15))),""),0) -> 0 | G41: =IFERROR(IF($B$5="BID",D41+E41,D41+E41+F41),0) -> 757809
A42: SUBTOTAL PRESUPUESTO DE TRANSPORTE Y GASTOS DE VIAJE | D42: =SUM(D38:D41) -> 0 | E42: =SUM(E38:E41) -> 5795103 | F42: 0 | G42: 5795103
A43: =+CONCATENATE("TOPE DE PARTICIPACIÓN DE ",A42) -> TOPE DE PARTICIPACIÓN DE SUBTOTAL PRESUPUESTO DE TRANSPORTE Y GASTOS DE VIAJE | D43: =IFERROR(IF($B$5="ITINERANTE",TR!$C$25,IF($B$5="CENTROS",TR!$I$25,)),"") -> 0 | E43: =IFERROR(IF($B$5="ITINERANTE",TR!$D$25,IF($B$5="CENTROS",TR!$J$25,)),"") -> 0.09900498363 | F43: =IFERROR(IF($B$5="ITINERANTE",TR!$E$25,IF($B$5="CENTROS",TR!$K$25,)),"") -> 0 | G43: =IFERROR(IF($B$5="ITINERANTE",TR!$F$25,IF($B$5="CENTROS",TR!$L$25)),"") -> 0.08687647649
D44: =+D42/$E$13 -> 0 | E44: =+E42/$E$14 -> 0.0990049792 | F44: =IFERROR(F42/$E$15,0) -> 0
A45: 2.1 SUBTOTAL PRESUPUESTO DE TALENTO HUMANO, TRASPORTE Y GASTOS DE VIAJE | D45: =+D34+D42 -> 6673258 | E45: 45834632 | F45: 6673248 | G45: 59181138
A47: 2.2 NIÑAS, NIÑOS Y ADOLESCENTES
A48: 2200 | B48: =IFERROR(IF($B$5="CENTROS",VLOOKUP(A48,NUT_APOYOS,2,0),IF($B$5="ITINERANTE",VLOOKUP(A48,NUT_EXP,2,0))),"") -> APOYOS NUTRICIONALES | D48: ALISTAMIENTO | E48: =IF($B$5="BID","ATENCIÓN / CIERRE","ATENCIÓN") -> ATENCIÓN | F48: =IF($B$5="BID","","CIERRE") -> CIERRE | G48: TOTAL
A49: 2201 | B49: =IFERROR(IF($B$5="CENTROS",IF(VLOOKUP(A49,NUT_APOYOS,2,0)=0,"",VLOOKUP(A49,NUT_APOYOS,2,0)),IF($B$5="ITINERANTE",IF(VLOOKUP(A49,NUT_EXP,2,0)=0,"",VLOOKUP(A49,NUT_EXP,2,0)),"")),"") -> Ración Familiar Para Preparar (RFPP) Sin AAVN | D49: =ROUND(IFERROR(IF($B$5="ITINERANTE",(VLOOKUP(A49,NUT_EXP,3,0)* $E$13),IF($B$5="CENTROS",(VLOOKUP(A49,TR!$G$31:$L$34,3,0)*$E$13),)),0),0) -> 0 | E49: =ROUND(IFERROR(IF($B$5="ITINERANTE",(VLOOKUP(A49,NUT_EXP,4,0)* $E$14),IF($B$5="CENTROS",(VLOOKUP(A49,TR!$G$31:$L$34,4,0)*$E$14),)),0),0) -> 4903300 | F49: =ROUND(IFERROR(IF($B$5="ITINERANTE",(VLOOKUP(A49,NUT_EXP,5,0)* $E$15),IF($B$5="CENTROS",(VLOOKUP(A49,TR!$G$31:$L$34,5,0)*$E$15),)),0),0) -> 0 | G49: =IFERROR(IF($B$5="BID",D49+E49,D49+E49+F49),0) -> 4903300
A50: 2202 | B50: =IFERROR(IF($B$5="CENTROS",IF(VLOOKUP(A50,NUT_APOYOS,2,0)=0,"_",VLOOKUP(A50,NUT_APOYOS,2,0)),IF($B$5="ITINERANTE",IF(VLOOKUP(A50,NUT_EXP,2,0)=0,"_",VLOOKUP(A50,NUT_EXP,2,0)),"")),"") -> _ | D50: =ROUND(IFERROR(IF($B$5="ITINERANTE",(VLOOKUP(A50,NUT_EXP,3,0)* $E$13),IF($B$5="CENTROS",(VLOOKUP(A50,TR!$G$31:$L$34,3,0)*$E$13),)),0),0) -> 0 | E50: =ROUND(IFERROR(IF($B$5="ITINERANTE",(VLOOKUP(A50,NUT_EXP,4,0)* $E$14),IF($B$5="CENTROS",(VLOOKUP(A50,TR!$G$31:$L$34,4,0)*$E$14),)),0),0) -> 0 | F50: =ROUND(IFERROR(IF($B$5="ITINERANTE",(VLOOKUP(A50,NUT_EXP,3,0)* $E$15),IF($B$5="CENTROS",(VLOOKUP(A50,TR!$G$31:$L$34,5,0)*$E$15),)),0),0) -> 0 | G50: =IFERROR(IF($B$5="BID",D50+E50,D50+E50+F50),0) -> 0
A51: 2203 | B51: =IFERROR(IF($B$5="CENTROS",IF(VLOOKUP(A51,NUT_APOYOS,2,0)=0,"",VLOOKUP(A51,NUT_APOYOS,2,0)),IF($B$5="ITINERANTE",IF(VLOOKUP(A51,NUT_EXP,2,0)=0,"_",VLOOKUP(A51,NUT_EXP,2,0)),"")),"") -> _ | D51: =ROUND(IFERROR(IF($B$5="ITINERANTE",(VLOOKUP(A51,NUT_EXP,3,0)* $E$13),IF($B$5="CENTROS",(VLOOKUP(A51,TR!$G$31:$L$34,3,0)*$E$13),)),0),0) -> 0 | E51: =ROUND(IFERROR(IF($B$5="ITINERANTE",(VLOOKUP(A51,NUT_EXP,4,0)* $E$14),IF($B$5="CENTROS",(VLOOKUP(A51,TR!$G$31:$L$34,4,0)*$E$14),)),0),0) -> 0 | F51: =ROUND(IFERROR(IF($B$5="ITINERANTE",(VLOOKUP(A51,NUT_EXP,3,0)* $E$15),IF($B$5="CENTROS",(VLOOKUP(A51,TR!$G$31:$L$34,5,0)*$E$15),)),0),0) -> 0 | G51: 0
A52: SUBTOTAL PRESUPUESTO DE COMPLEMENTACIÓN ALIMENTARIA Y NUTRICIONAL / APOYOS NUTRICIONALES | D52: =SUM(D49:D51) -> 0 | E52: =SUM(E49:E51) -> 4903300 | F52: =SUM(F49:F51) -> 0 | G52: =SUM(G49:G51) -> 4903300
A53: =+CONCATENATE("TOPE DE PARTICIPACIÓN DE ",A52) -> TOPE DE PARTICIPACIÓN DE SUBTOTAL PRESUPUESTO DE COMPLEMENTACIÓN ALIMENTARIA Y NUTRICIONAL / APOYOS NUTRICIONALES | D53: =IFERROR(IF($B$5="ITINERANTE",TR!$C$31,IF($B$5="CENTROS",TR!$I$31,)),"") -> 0 | E53: =IFERROR(IF($B$5="ITINERANTE",TR!$D$31,IF($B$5="CENTROS",TR!$J$31,)),"") -> 0.08376919962 | F53: =IFERROR(IF($B$5="ITINERANTE",TR!$E$31,IF($B$5="CENTROS",TR!$K$31,)),"") -> 0 | G53: =IFERROR(IF($B$5="ITINERANTE",TR!$F$31,IF($B$5="CENTROS",TR!$L$31,)),"") -> 0.07350713707
D54: =+$D$52/$E$13 -> 0 | E54: =ROUND($E$52/$E$14,6) -> 0.083769 | F54: =ROUND($F$52/$E$15,6) -> 0
A55: 2202 | B55: =IFERROR(IF($B$5="ITINERANTE",VLOOKUP(A55,TRANS_NNA_COMU,2,0),IF($B$5="BID",VLOOKUP(A55,TRANS_NNA_BID,2,0), IF($B$5="CENTROS",VLOOKUP(A55,TRANS_NNA_APOYOS,2,0),IF($B$5="EXPERIENCIAS",VLOOKUP(A55,TRANS_NNA_EXP,2,0))))),"") -> N/A | D55: =ROUND(IFERROR(IF($B$5="ITINERANTE",(VLOOKUP(A55,TRANS_NNA_COMU,3,0)* $E$13),IF($B$5="CENTROS",(VLOOKUP(A55,TRANS_NNA_APOYOS,3,0) *$E$13),)),""),0) -> 0 | E55: =ROUND(IFERROR(IF($B$5="ITINERANTE",(VLOOKUP(A55,TRANS_NNA_COMU,4,0)* $E$14),IF($B$5="CENTROS",(VLOOKUP(A55,TRANS_NNA_APOYOS,4,0)* $E$14),)),""),0) -> 0 | F55: =ROUND(IFERROR(IF($B$5="ITINERANTE",(VLOOKUP(A55,TRANS_NNA_COMU,5,0)* $E$15),IF($B$5="CENTROS",(VLOOKUP(A55,TRANS_NNA_APOYOS,5,0)* $E$15),)),""),0) -> 0 | G55: =IFERROR(IF($B$5="BID",D55+E55,D55+E55+F55),0) -> 0
A56: =+CONCATENATE("TOPE DE PARTICIPACIÓN DE ",B55) -> TOPE DE PARTICIPACIÓN DE N/A | D56: =IFERROR(IF($B$5="ITINERANTE",TR!$C$39,IF($B$5="CENTROS",TR!$I$39,)),"") -> 0 | E56: =IFERROR(IF($B$5="ITINERANTE",TR!$D$39,IF($B$5="CENTROS",TR!$J$39)),"") -> 0 | F56: =IFERROR(IF($B$5="ITINERANTE",TR!$E$39,IF($B$5="CENTROS",TR!$K$39,)),"") -> 0 | G56: =IFERROR(IF($B$5="ITINERANTE",TR!$F$39,IF($B$5="CENTROS",TR!$L$39,)),"") -> 0
D57: =+$D$55/$E$13 -> 0 | E57: =+$E$55/$E$14 -> 0 | F57: =IFERROR($F$55/$E$15,0) -> 0
A58: 2203 | B58: =IFERROR(IF($B$5="ITINERANTE",VLOOKUP(A58,MATER_COMU,2,0),IF($B$5="BID",VLOOKUP(A58,MATER_BID,2,0),IF($B$5="CENTROS",VLOOKUP(A58,MATER_APOYOS,2,0),IF($B$5="EXPERIENCIAS",VLOOKUP(A58,MATER_EXP,2,0))))),"") -> MATERIAL DE CONSUMO | D58: =IFERROR(IF(ROUND(IF($B$5="ITINERANTE",VLOOKUP(A58,MATER_COMU,3,0)*$E$14,IF($B$5="CENTROS",VLOOKUP(A58,MATER_APOYOS,3,0)*$E$13,IF($B$5="EXPERIENCIAS",VLOOKUP(A58,MATER_EXP,3,0)*$E$14,0))),0)=0,"0",ROUND(IF($B$5="ITINERANTE",VLOOKUP(A58,MATER_COMU,3,0)*$E$14,IF($B$5="CENTROS",VLOOKUP(A58,MATER_APOYOS,3,0)*$E$13,IF($B$5="EXPERIENCIAS",VLOOKUP(A58,MATER_EXP,3,0)*$E$14,0))),0)),"0") -> 0 | E58: =ROUND(IFERROR(IF($B$5="ITINERANTE",(VLOOKUP(A58,MATER_COMU,4,0)* $E$14),IF($B$5="BID",(VLOOKUP(A58,MATER_BID,4,0)* $E$14),IF($B$5="CENTROS",(VLOOKUP(A58,MATER_APOYOS,4,0)* $E$14),IF($B$5="EXPERIENCIAS",(VLOOKUP(A58,MATER_EXP,4,0)* $E$14))))),""),0) -> 4885049 | F58: =ROUND(IFERROR(IF($B$5="ITINERANTE",(VLOOKUP(A58,MATER_COMU,5,0)* $E$15),IF($B$5="BID",0,IF($B$5="CENTROS",(VLOOKUP(A58,MATER_APOYOS,5,0)* $E$15),IF($B$5="EXPERIENCIAS",(VLOOKUP(A58,MATER_EXP,5,0)* $E$15))))),""),0) -> 814174 | G58: =+D58+E58+F58 -> 5699223
A59: =+CONCATENATE("TOPE DE PARTICIPACIÓN DE ",B58) -> TOPE DE PARTICIPACIÓN DE MATERIAL DE CONSUMO | D59: =IFERROR(IF($B$5="ITINERANTE",TR!$C$41,IF($B$5="CENTROS",TR!$I$41)),"") -> 0 | E59: =IFERROR(IF($B$5="ITINERANTE",TR!$D$41,IF($B$5="CENTROS",TR!$J$41)),"") -> 0.08345738982 | F59: =IFERROR(IF($B$5="ITINERANTE",TR!$E$41,IF($B$5="CENTROS",TR!$K$41)),"") -> 0.1033320519 | G59: =IFERROR(IF($B$5="ITINERANTE",TR!$F$41,IF($B$5="CENTROS",TR!$L$41)),"") -> 0.07933631898
D60: =+$D$58/$E$13 -> 0 | E60: =+ROUND($E$58/$E$14,3) -> 0.083 | F60: =ROUND($F$58/$E$15,3) -> 0.103
A61: 2204 | B61: =IFERROR(IF($B$5="ITINERANTE",VLOOKUP(A61,DOT_COMU,2,0),IF($B$5="BID",VLOOKUP(A61,DOT_BID,2,0),IF($B$5="CENTROS",VLOOKUP(A61,DOT_APOYOS,2,0),IF($B$5="EXPERIENCIAS",VLOOKUP(A61,DOT_EXP,2,0))))),"") -> DOTACIÓN | D61: ALISTAMIENTO | E61: =IF($B$5="BID","ATENCIÓN / CIERRE","ATENCIÓN") -> ATENCIÓN | F61: =IF($B$5="BID","","CIERRE") -> CIERRE | G61: TOTAL
A62: 220401 | B62: =IFERROR(IF($B$5="ITINERANTE",VLOOKUP(A62,DOT_COMU,2,0),IF($B$5="BID",VLOOKUP(A62,DOT_BID,2,0),IF($B$5="CENTROS",VLOOKUP(A62,DOT_APOYOS,2,0),IF($B$5="EXPERIENCIAS",VLOOKUP(A62,DOT_EXP,2,0),"")))),"") -> 0 | D62: =IF($B$5="ITINERANTE",IFERROR(ROUND(VLOOKUP(A62,DOT_COMU,3,0)*$E$13,0),"-"),IF($B$5="CENTROS",IFERROR(ROUND(VLOOKUP(A62,DOT_APOYOS,3,0)*$E$13,0),"-"),"-")) -> 0 | E62: =IF($B$5="ITINERANTE",IFERROR(ROUND(VLOOKUP(A62,DOT_COMU,4,0)*$E$14,0),"-"), IF($B$5="BID",IFERROR(ROUND(VLOOKUP(A62,DOT_BID,4,0)*$E$14,0),"-"), IF($B$5="CENTROS",IFERROR(ROUND(VLOOKUP(A62,DOT_APOYOS,4,0)*$E$14,0),"-"), IF($B$5="EXPERIENCIAS",IFERROR(ROUND(VLOOKUP(A62,DOT_EXP,4,0)*$E$14,0),"-"), "-")))) -> 0 | F62: =IF($B$5="ITINERANTE",IFERROR(ROUND(VLOOKUP(A62,DOT_COMU,5,0)*$E$15,0),"-"),IF($B$5="BID","-",IF($B$5="CENTROS",IFERROR(ROUND(VLOOKUP(A62,DOT_APOYOS,5,0)*$E$15,0),"-"),IF($B$5="EXPERIENCIAS",IFERROR(ROUND(VLOOKUP(A62,DOT_EXP,5,0)*$E$15,0),"-"),"-")))) -> 0 | G62: =IFERROR(IF($B$5="BID",D62+E62,D62+E62+F62),0) -> 0
A63: 220402 | B63: =IFERROR(IF($B$5="ITINERANTE",VLOOKUP(A63,DOT_COMU,2,0),IF($B$5="BID",VLOOKUP(A63,DOT_BID,2,0),IF($B$5="CENTROS",VLOOKUP(A63,DOT_APOYOS,2,0),IF($B$5="EXPERIENCIAS",VLOOKUP(A63,DOT_EXP,2,0),"")))),"") -> 0 | D63: =IF($B$5="ITINERANTE",IFERROR(ROUND(VLOOKUP(A63,DOT_COMU,3,0)*$E$13,0),"-"),IF($B$5="CENTROS",IFERROR(ROUND(VLOOKUP(A63,DOT_APOYOS,3,0)*$E$13,0),"-"),"-")) -> 0 | E63: =IF($B$5="ITINERANTE",IFERROR(ROUND(VLOOKUP(A63,DOT_COMU,4,0)*$E$14,0),"-"), IF($B$5="BID",IFERROR(ROUND(VLOOKUP(A63,DOT_BID,4,0)*$E$14,0),"-"), IF($B$5="CENTROS",IFERROR(ROUND(VLOOKUP(A63,DOT_APOYOS,4,0)*$E$14,0),"-"), IF($B$5="EXPERIENCIAS",IFERROR(ROUND(VLOOKUP(A63,DOT_EXP,4,0)*$E$14,0),"-"), "-")))) -> 0 | F63: =IF($B$5="ITINERANTE",IFERROR(ROUND(VLOOKUP(A63,DOT_COMU,5,0)*$E$15,0),"-"),IF($B$5="BID","-",IF($B$5="CENTROS",IFERROR(ROUND(VLOOKUP(A63,DOT_APOYOS,5,0)*$E$15,0),"-"),IF($B$5="EXPERIENCIAS",IFERROR(ROUND(VLOOKUP(A63,DOT_EXP,5,0)*$E$15,0),"-"),"-")))) -> 0 | G63: =IFERROR(IF($B$5="BID",D63+E63,D63+E63+F63),0) -> 0
A64: 220403 | B64: =IFERROR(IF($B$5="ITINERANTE",VLOOKUP(A64,DOT_COMU,2,0),IF($B$5="BID",VLOOKUP(A64,DOT_BID,2,0),IF($B$5="CENTROS",VLOOKUP(A64,DOT_APOYOS,2,0),IF($B$5="EXPERIENCIAS",VLOOKUP(A64,DOT_EXP,2,0),"")))),"") ->  | D64: =IF($B$5="ITINERANTE",IFERROR(ROUND(VLOOKUP(A64,DOT_COMU,3,0)*$E$13,0),"-"),IF($B$5="CENTROS",IFERROR(ROUND(VLOOKUP(A64,DOT_APOYOS,3,0)*$E$13,0),"-"),"-")) -> - | E64: =IF($B$5="ITINERANTE",IFERROR(ROUND(VLOOKUP(A64,DOT_COMU,4,0)*$E$14,0),"-"), IF($B$5="BID",IFERROR(ROUND(VLOOKUP(A64,DOT_BID,4,0)*$E$14,0),"-"), IF($B$5="CENTROS",IFERROR(ROUND(VLOOKUP(A64,DOT_APOYOS,4,0)*$E$14,0),"-"), IF($B$5="EXPERIENCIAS",IFERROR(ROUND(VLOOKUP(A64,DOT_EXP,4,0)*$E$14,0),"-"), "-")))) -> - | F64: =IF($B$5="ITINERANTE",IFERROR(ROUND(VLOOKUP(A64,DOT_COMU,5,0)*$E$15,0),"-"),IF($B$5="BID","-",IF($B$5="CENTROS",IFERROR(ROUND(VLOOKUP(A64,DOT_APOYOS,5,0)*$E$15,0),"-"),IF($B$5="EXPERIENCIAS",IFERROR(ROUND(VLOOKUP(A64,DOT_EXP,5,0)*$E$15,0),"-"),"-")))) -> - | G64: =IFERROR(IF($B$5="BID",D64+E64,D64+E64+F64),0) -> 0
A65: 220404 | B65: =IFERROR(IF($B$5="ITINERANTE",VLOOKUP(A65,DOT_COMU,2,0),IF($B$5="BID",VLOOKUP(A65,DOT_BID,2,0),IF($B$5="CENTROS",VLOOKUP(A65,DOT_APOYOS,2,0),IF($B$5="EXPERIENCIAS",VLOOKUP(A65,DOT_EXP,2,0),"")))),"") ->  | D65: =IF($B$5="ITINERANTE",IFERROR(ROUND(VLOOKUP(A65,DOT_COMU,3,0)*$E$13,0),"-"),IF($B$5="CENTROS",IFERROR(ROUND(VLOOKUP(A65,DOT_APOYOS,3,0)*$E$13,0),"-"),"-")) -> - | E65: =IF($B$5="ITINERANTE",IFERROR(ROUND(VLOOKUP(A65,DOT_COMU,4,0)*$E$14,0),"-"), IF($B$5="BID",IFERROR(ROUND(VLOOKUP(A65,DOT_BID,4,0)*$E$14,0),"-"), IF($B$5="CENTROS",IFERROR(ROUND(VLOOKUP(A65,DOT_APOYOS,4,0)*$E$14,0),"-"), IF($B$5="EXPERIENCIAS",IFERROR(ROUND(VLOOKUP(A65,DOT_EXP,4,0)*$E$14,0),"-"), "-")))) -> - | F65: =IF($B$5="ITINERANTE",IFERROR(ROUND(VLOOKUP(A65,DOT_COMU,5,0)*$E$15,0),"-"),IF($B$5="BID","-",IF($B$5="CENTROS",IFERROR(ROUND(VLOOKUP(A65,DOT_APOYOS,5,0)*$E$15,0),"-"),IF($B$5="EXPERIENCIAS",IFERROR(ROUND(VLOOKUP(A65,DOT_EXP,5,0)*$E$15,0),"-"),"-")))) -> - | G65: =IFERROR(IF($B$5="BID",D65+E65,D65+E65+F65),0) -> 0
A66: SUBTOTAL PRESUPUESTO DE DOTACIÓN | D66: =SUM(D62:D65) -> 0 | E66: =SUM(E62:E65) -> 0 | F66: =SUM(F62:F65) -> 0 | G66: =SUM(G62:G65) -> 0
A67: =+CONCATENATE("TOPE DE PARTICIPACIÓN DE ",A66) -> TOPE DE PARTICIPACIÓN DE SUBTOTAL PRESUPUESTO DE DOTACIÓN | D67: =IFERROR(IF($B$5="ITINERANTE",TR!$C$43,IF($B$5="CENTROS",TR!$I$43)),"") -> 0 | E67: =IFERROR(IF($B$5="ITINERANTE",TR!$D$43,IF($B$5="CENTROS",TR!$J$43)),"") -> 0 | F67: =IFERROR(IF($B$5="ITINERANTE",TR!$E$43,IF($B$5="CENTROS",TR!$K$43)),"") -> 0 | G67: =IFERROR(IF($B$5="ITINERANTE",TR!$F$43,IF($B$5="CENTROS",TR!$L$43)),"") -> 0
D68: =ROUND($D$66/$E$13,6) -> 0 | E68: =ROUND($E$66/$E$14,6) -> 0 | F68: =ROUND(IFERROR($F$66/$E$15,0),6) -> 0
A69: 2206 | B69: =IFERROR(IF($B$5="ITINERANTE",VLOOKUP(A69,MAT_COMU,2,0),IF($B$5="CENTROS",VLOOKUP(A69,MAT_APOYOS,2,0),)),"") -> MATERIAL IDENTIFICACIÓN | D69: ALISTAMIENTO | E69: =IF($B$5="BID","ATENCIÓN / CIERRE","ATENCIÓN") -> ATENCIÓN | F69: =IF($B$5="BID","","CIERRE") -> CIERRE | G69: TOTAL
A70: 220601 | B70: Chalecos | D70: =ROUND(IFERROR(IF($B$5="CENTROS",(VLOOKUP(A70,MAT_APOYOS,3,0)*$E$13),IF($B$5="ITINERANTE",(VLOOKUP(A70,MAT_COMU,3,0)* $E$13))),""),0) -> 605412 | E70: =ROUND(IFERROR(IF($B$5="CENTROS",(VLOOKUP(A70,MAT_APOYOS,4,0)*$E$14),IF($B$5="ITINERANTE",(VLOOKUP(A70,MAT_COMU,4,0)* $E$14))),""),0) -> 0 | F70: =ROUND(IFERROR(IF($B$5="CENTROS",(VLOOKUP(A70,MAT_APOYOS,5,0)*$E$15),IF($B$5="ITINERANTE",(VLOOKUP(A70,MAT_COMU,5,0)* $E$15))),""),0) -> 0 | G70: =IFERROR(IF($B$5="BID",D70+E70,D70+E70+F70),0) -> 605412
A71: 220602 | B71: Gorras | D71: 161940 | E71: 0 | F71: 0 | G71: =IFERROR(IF($B$5="BID",D71+E71,D71+E71+F71),0) -> 161940
A72: 220603 | B72: Camisetas | D72: 488904 | E72: 0 | F72: 0 | G72: 488904
A73: 220604 | B73: Carné | D73: 74296 | E73: 0 | F73: 0 | G73: 74296
A74: 220605 | B74: Valla | D74: 0 | E74: 0 | F74: 0 | G74: 0
A75: 220606 | B75: Pendón | D75: 39406 | E75: 0 | F75: 0 | G75: =IFERROR(IF($B$5="BID",D75+E75,D75+E75+F75),0) -> 39406
A76: SUBTOTAL PRESUPUESTO DE MATERIAL IDENTIFICACIÓN | D76: =SUM(D70:D75) -> 1369958 | E76: =SUM(E70:E75) -> 0 | F76: =SUM(F70:F75) -> 0 | G76: 1369958
A77: =+CONCATENATE("TOPE DE PARTICIPACIÓN DE ",A76) -> TOPE DE PARTICIPACIÓN DE SUBTOTAL PRESUPUESTO DE MATERIAL IDENTIFICACIÓN | D77: =IFERROR(IF($B$5="ITINERANTE",TR!$C$53,IF($B$5="CENTROS",TR!$I$53)),"") -> 0.161856 | E77: =IFERROR(IF($B$5="ITINERANTE",TR!$D$53,IF($B$5="CENTROS",TR!$J$53)),"") -> 0 | F77: =IFERROR(IF($B$5="ITINERANTE",TR!$E$53,IF($B$5="CENTROS",TR!$K$53)),"") -> 0 | G77: =IFERROR(IF($B$5="ITINERANTE",TR!$F$53,IF($B$5="BID",TR!#REF!,IF($B$5="CENTROS",TR!$L$53,IF($B$5="EXPERIENCIAS",TR!#REF!)))),"") -> 0.01026876219
D78: =+ROUND($D$76/$E$13,6) -> 0.161856 | E78: =+ROUND($E$76/$E$14,3) -> 0 | F78: =+ROUND($F$76/$E$15,3) -> 0
A79: 2207 | B79: =IFERROR(IF($B$5="ITINERANTE",VLOOKUP(A79,SEG_COMU,2,0),IF($B$5="BID",VLOOKUP(A79,SEG_BID,2,0),IF($B$5="CENTROS",VLOOKUP(A79,SEG_APOYOS,2,0),IF($B$5="EXPERIENCIAS",VLOOKUP(A79,SEG_EXP,2,0))))),"") -> SEGURO | D79: =ROUND(IFERROR(IF($B$5="CENTROS",(VLOOKUP(A79,SEG_APOYOS,3,0)*$E$13),IF($B$5="ITINERANTE",(VLOOKUP(A79,SEG_COMU,3,0)* $E$13))),""),0) -> 0 | E79: =ROUND(IFERROR(IF($B$5="CENTROS",(VLOOKUP(A79,SEG_APOYOS,4,0)*$E$14),IF($B$5="ITINERANTE",(VLOOKUP(A79,SEG_COMU,4,0)* $E$14))),""),0) -> 0 | F79: =ROUND(IFERROR(IF($B$5="CENTROS",(VLOOKUP(A79,SEG_APOYOS,5,0)*$E$15),IF($B$5="ITINERANTE",(VLOOKUP(A79,SEG_COMU,5,0)* $E$15))),""),0) -> 0 | G79: =IFERROR(IF($B$5="BID",D79+E79,D79+E79+F79),0) -> 0
A80: =+CONCATENATE("TOPE DE PARTICIPACIÓN DE ",B79) -> TOPE DE PARTICIPACIÓN DE SEGURO | D80: =IFERROR(IF($B$5="ITINERANTE",TR!$C$60,IF($B$5="CENTROS",TR!$I$60)),"") -> 0 | E80: =IFERROR(IF($B$5="ITINERANTE",TR!$D$60,IF($B$5="CENTROS",TR!$J$60,)),"") -> 0 | F80: =IFERROR(IF($B$5="ITINERANTE",TR!$E$60,IF($B$5="BID","",IF($B$5="CENTROS",TR!$K$60,IF($B$5="EXPERIENCIAS",TR!#REF!)))),"") -> 0 | G80: =IFERROR(IF($B$5="ITINERANTE",TR!$F$60,IF($B$5="CENTROS",TR!$L$60)),"") -> 0
D81: =+$D$79/$E$13 -> 0 | E81: =+$E$79/$E$14 -> 0 | F81: =IFERROR($F$79/$E$15,0) -> 0
A82: 2.2 SUBTOTAL PRESUPUESTO DE GASTOS NIÑAS, NIÑOS Y ADOLESCENTES | D82: =SUM(D52,D55,D58,D66,D76,D79) -> 1369958 | E82: =SUM(E52,E55,E58,E66,E76,E79) -> 9788349 | F82: =SUM(F52,F55,F58,F66,F76,F79) -> 814174 | G82: =SUM(G52,G55,G58,G66,G76,G79) -> 11972481
A84: 2.3. OTROS GASTOS ADMINISTRATIVOS, OPERATIVOS Y FINANCIEROS
A85: 2300 | B85: =IFERROR(IF($B$5="ITINERANTE",VLOOKUP(A85,GAST_OPE_COMU,2,0),IF($B$5="BID",VLOOKUP(A85,GAST_OPE_BID,2,0),IF($B$5="CENTROS",VLOOKUP(A85,GAST_OPE_APOYOS,2,0),IF($B$5="EXPERIENCIAS",VLOOKUP(A85,GAST_OPE_EXP,2,0))))),"") -> GASTOS OPERATIVOS | D85: ALISTAMIENTO | E85: =IF($B$5="BID","ATENCIÓN / CIERRE","ATENCIÓN") -> ATENCIÓN | F85: =IF($B$5="BID","","CIERRE") -> CIERRE | G85: TOTAL
A86: 2300 | B86: GASTOS OPERATIVOS | D86: =ROUND(IFERROR(IF($B$5="CENTROS",(VLOOKUP(A86,GAST_OPE_APOYOS,3,0)*$E$13),IF($B$5="ITINERANTE",(VLOOKUP(A86,GAST_OPE_COMU,3,0)* $E$13))),""),0) -> 387139 | E86: =ROUND(IFERROR(IF($B$5="CENTROS",(VLOOKUP(A86,GAST_OPE_APOYOS,4,0)*$E$14),IF($B$5="ITINERANTE",(VLOOKUP(A86,GAST_OPE_COMU,4,0)* $E$14))),""),0) -> 2677266 | F86: =ROUND(IFERROR(IF($B$5="CENTROS",(VLOOKUP(A86,GAST_OPE_APOYOS,5,0)*$E$15),IF($B$5="ITINERANTE",(VLOOKUP(A86,GAST_OPE_COMU,5,0)* $E$15))),""),0) -> 360387 | G86: =IFERROR(IF($B$5="BID",D86+E86,D86+E86+F86),0) -> 3424792
A87: 230001 | B87: =IFERROR(IF($B$5="ITINERANTE",VLOOKUP(A87,TR!A69:E76,2,0),IF($B$5="BID",VLOOKUP(A87,GAST_OPE_BID,2,0),IF($B$5="CENTROS",VLOOKUP(A87,GAST_OPE_APOYOS,2,0),IF($B$5="EXPERIENCIAS",VLOOKUP(A87,GAST_OPE_EXP,2,0))))),"") -> Aseo | D87: =IFERROR(ROUND(IF($B$5="CENTROS",VLOOKUP(A87,GAST_OPE_APOYOS,3,0)*$E$13,IF($B$5="ITINERANTE",VLOOKUP(A87,GAST_OPE_COMU,3,0)*$E$13,0)),0),"-") -> 0 | E87: =IFERROR(ROUND(IF($B$5="CENTROS",VLOOKUP(A87,GAST_OPE_APOYOS,4,0)*$E$14,IF($B$5="ITINERANTE",VLOOKUP(A87,GAST_OPE_COMU,4,0)*$E$14,0)),0),"-") -> 0 | F87: =IFERROR(ROUND(IF($B$5="CENTROS",VLOOKUP(A87,GAST_OPE_APOYOS,5,0)*$E$15,IF($B$5="ITINERANTE",VLOOKUP(A87,GAST_OPE_COMU,5,0)*$E$15,0)),0),"-") -> 0 | G87: 0
A88: 230002 | B88: =IFERROR(IF($B$5="ITINERANTE",VLOOKUP(A88,TR!A70:E77,2,0),IF($B$5="BID",VLOOKUP(A88,GAST_OPE_BID,2,0),IF($B$5="CENTROS",VLOOKUP(A88,GAST_OPE_APOYOS,2,0),IF($B$5="EXPERIENCIAS",VLOOKUP(A88,GAST_OPE_EXP,2,0))))),"") -> Servicios públicos | D88: 0 | E88: 0 | F88: 0 | G88: 0
A89: 230003 | B89: =IFERROR(IF($B$5="ITINERANTE",VLOOKUP(A89,TR!A71:E78,2,0),IF($B$5="BID",VLOOKUP(A89,GAST_OPE_BID,2,0),IF($B$5="CENTROS",VLOOKUP(A89,GAST_OPE_APOYOS,2,0),IF($B$5="EXPERIENCIAS",VLOOKUP(A89,GAST_OPE_EXP,2,0))))),"") -> Papelería asociada con el manejo administrativo del contrato | D89: - | E89: - | F89: - | G89: 0
A90: 230004 | B90: =IFERROR(IF($B$5="ITINERANTE",VLOOKUP(A90,TR!A72:E79,2,0),IF($B$5="BID",VLOOKUP(A90,GAST_OPE_BID,2,0),IF($B$5="CENTROS",VLOOKUP(A90,GAST_OPE_APOYOS,2,0),IF($B$5="EXPERIENCIAS",VLOOKUP(A90,GAST_OPE_EXP,2,0))))),"") -> Acciones de movilización social | D90: - | E90: - | F90: - | G90: 0
A91: 230005 | B91: =IFERROR(IF($B$5="ITINERANTE",VLOOKUP(A91,TR!A73:E80,2,0),IF($B$5="BID",VLOOKUP(A91,GAST_OPE_BID,2,0),IF($B$5="CENTROS",VLOOKUP(A91,GAST_OPE_APOYOS,2,0),IF($B$5="EXPERIENCIAS",VLOOKUP(A91,GAST_OPE_EXP,2,0))))),"") -> Gastos bancarios (comisiones, transferencias y chequeras) | D91: - | E91: - | F91: - | G91: 0
A92: 230006 | B92: =IFERROR(IF($B$5="ITINERANTE",VLOOKUP(A92,TR!A74:E81,2,0),IF($B$5="BID",VLOOKUP(A92,GAST_OPE_BID,2,0),IF($B$5="CENTROS",VLOOKUP(A92,GAST_OPE_APOYOS,2,0),IF($B$5="EXPERIENCIAS",VLOOKUP(A92,GAST_OPE_EXP,2,0))))),"") -> Materiales o dispositivos de apoyo de baja complejidad para los participantes | D92: - | E92: - | F92: - | G92: 0
A93: 230007 | B93: =IFERROR(IF($B$5="ITINERANTE",VLOOKUP(A93,TR!A75:E82,2,0),IF($B$5="BID",VLOOKUP(A93,GAST_OPE_BID,2,0),IF($B$5="CENTROS",VLOOKUP(A93,GAST_OPE_APOYOS,2,0),IF($B$5="EXPERIENCIAS",VLOOKUP(A93,GAST_OPE_EXP,2,0))))),"") -> Otros (lo que se requiera para el adecuado desarrollo de la Modalidad) | D93: - | E93: - | F93: - | G93: =IFERROR(IF($B$5="BID",D93+E93,D93+E93+F93),0) -> 0
D94: - | E94: - | F94: - | G94: 0
D95: - | E95: - | F95: - | G95: 0
A96: SUBTOTAL OTROS GASTOS ADMINISTRATIVOS Y OPERATIVOS | D96: =SUM(D86:D95) -> 387139 | E96: =SUM(E86:E95) -> 2677266 | F96: 360387 | G96: 3424792
A97: =+CONCATENATE("TOPE DE PARTICIPACIÓN DE ",B96) -> TOPE DE PARTICIPACIÓN DE | D97: =IFERROR(IF($B$5="ITINERANTE",TR!$C$69,IF($B$5="CENTROS",TR!$I$69)),"") -> 0.04573907924 | E97: =IFERROR(IF($B$5="ITINERANTE",TR!$D$69,IF($B$5="CENTROS",TR!$J$69)),"") -> 0.04573907924 | F97: =IFERROR(IF($B$5="ITINERANTE",TR!$E$69,IF($B$5="BID","",IF($B$5="CENTROS",TR!$K$69,IF($B$5="EXPERIENCIAS",TR!#REF!)))),"") -> 0.04573907924 | G97: =IFERROR(IF($B$5="ITINERANTE",TR!$F$69,IF($B$5="BID",TR!#REF!,IF($B$5="CENTROS",TR!$L$69,IF($B$5="EXPERIENCIAS",TR!#REF!)))),"") -> 0.04573907924
D98: =ROUND($D$96/$E$13,6) -> 0.045739 | E98: =ROUND($E$96/$E$14,6) -> 0.045739 | F98: =ROUND($F$96/$E$15,6) -> 0.045739
A99: 2302 | B99: =IFERROR(IF($B$5="ITINERANTE",VLOOKUP(A99,UT_COMU,2,0),IF($B$5="BID",VLOOKUP(A99,UT_BID,2,0),IF($B$5="CENTROS",VLOOKUP(A99,UT_APOYOS,2,0),IF($B$5="EXPERIENCIAS",VLOOKUP(A99,UT_EXP,2,0))))),"") -> N/A | D99: =ROUND(IFERROR(IF($B$5="CENTROS",(VLOOKUP(A99,UT_APOYOS,3,0)*$E$13),IF($B$5="ITINERANTE",(VLOOKUP(A99,UT_COMU,3,0)* $E$13))),""),0) -> 0 | E99: =ROUND(IFERROR(IF($B$5="CENTROS",(VLOOKUP(A99,UT_APOYOS,4,0)*$E$14),IF($B$5="ITINERANTE",(VLOOKUP(A99,UT_COMU,4,0)* $E$14))),""),0) -> 0 | F99: =ROUND(IFERROR(IF($B$5="CENTROS",(VLOOKUP(A99,UT_APOYOS,5,0)*$E$15),IF($B$5="ITINERANTE",(VLOOKUP(A99,UT_COMU,5,0)* $E$15))),""),0) -> 0 | G99: =IFERROR(D99+E99+F99,0) -> 0
A100: =+CONCATENATE("TOPE DE PARTICIPACIÓN DE ",B99) -> TOPE DE PARTICIPACIÓN DE N/A | D100: =IFERROR(IF($B$5="ITINERANTE",TR!$C$80,IF($B$5="CENTROS",TR!$I$80,)),"") -> 0 | E100: =IFERROR(IF($B$5="ITINERANTE",TR!$D$80,IF($B$5="CENTROS",TR!$J$80,)),"") -> 0 | F100: =IFERROR(IF($B$5="ITINERANTE",TR!$E$80,IF($B$5="CENTROS",TR!$K$80,)),"") -> 0 | G100: =IFERROR(IF($B$5="ITINERANTE",TR!$F$80,IF($B$5="BID",TR!#REF!,IF($B$5="CENTROS",TR!$L$80,IF($B$5="EXPERIENCIAS",TR!#REF!)))),"") -> 0
D101: =+$D$99/$E$13 -> 0 | E101: =+$E$99/$E$14 -> 0 | F101: =IFERROR($F$99/$E$15,0) -> 0
A102: 2303 | B102: =IFERROR(IF($B$5="ITINERANTE",VLOOKUP(A102,GRAV_COMU,2,0),IF($B$5="BID",VLOOKUP(A102,GRAV_BID,2,0),IF($B$5="CENTROS",VLOOKUP(A102,GRAV_APOYOS,2,0),IF($B$5="EXPERIENCIAS",VLOOKUP(A102,GRAV_EXP,2,0))))),"") -> GRAVAMEN MOVIMIENTOS FINANCIEROS GMF | D102: =ROUND(IFERROR(IF($B$5="CENTROS",(VLOOKUP(A102,GRAV_APOYOS,3,0)*$E$13),IF($B$5="ITINERANTE",(VLOOKUP(A102,GRAV_COMU,3,0)* $E$13))),""),0)-1 -> 33720 | E102: =ROUND(IFERROR(IF($B$5="CENTROS",(VLOOKUP(A102,GRAV_APOYOS,4,0)*$E$14),IF($B$5="ITINERANTE",(VLOOKUP(A102,GRAV_COMU,4,0)* $E$14))),""),0)+2 -> 233203 | F102: =ROUND(IFERROR(IF($B$5="CENTROS",(VLOOKUP(A102,GRAV_APOYOS,5,0)*$E$15),IF($B$5="ITINERANTE",(VLOOKUP(A102,GRAV_COMU,5,0)* $E$15))),""),0) -> 31391 | G102: =IFERROR(D102+E102+F102,0) -> 298314
A103: =+CONCATENATE("TOPE DE PARTICIPACIÓN DE ",B102) -> TOPE DE PARTICIPACIÓN DE GRAVAMEN MOVIMIENTOS FINANCIEROS GMF | D103: =IFERROR(IF($B$5="ITINERANTE",TR!$C$82,IF($B$5="BID",TR!#REF!,IF($B$5="CENTROS",TR!$I$82,IF($B$5="EXPERIENCIAS",TR!#REF!)))),"") -> 0.00398406 | E103: =IFERROR(IF($B$5="ITINERANTE",TR!$D$82,IF($B$5="BID",TR!#REF!,IF($B$5="CENTROS",TR!$J$82,IF($B$5="EXPERIENCIAS",TR!#REF!)))),"") -> 0.00398406 | F103: =IFERROR(IF($B$5="ITINERANTE",TR!$E$82,IF($B$5="BID","",IF($B$5="CENTROS",TR!$K$82,IF($B$5="EXPERIENCIAS",TR!#REF!)))),"") -> 0.00398406 | G103: =IFERROR(IF($B$5="ITINERANTE",TR!$F$82,IF($B$5="BID",TR!#REF!,IF($B$5="CENTROS",TR!$L$82,IF($B$5="EXPERIENCIAS",TR!#REF!)))),"") -> 0.003984063745
D104: =+ROUND($D$102/$E$13,5) -> 0.00398 | E104: =ROUND(+$E$102/$E$14,5) -> 0.00398 | F104: =ROUND(IFERROR($F$102/$E$15,0),6) -> 0.003984
A105: 2.2 SUBTOTAL PRESUPUESTO DE GASTOS NIÑAS, NIÑOS Y ADOLESCENTES | D105: =+D96+D99+D102 -> 420859 | E105: =+E96+E99+E102 -> 2910469 | F105: =IF($B$5="BID",0,F96+F99+F102) -> 391778 | G105: =IFERROR(D105+E105+F105,0) -> 3723106
A107: TOTAL PRESUPUESTO DE GASTOS | D107: =+D45+D82+D105 -> 8464075 | E107: =+E45+E82+E105 -> 58533450 | F107: =+F45+F82+F105 -> 7879200 | G107: =+G45+G82+G105 -> 74876725
D108: =+E13 -> 8464075 | E108: =+E14 -> 58533450 | F108: =+E15 -> 7879200 | G108: =+F13 -> 74876725
C109: Diferencia | D109: =+D107-D108 -> 0 | E109: =+E107-E108 -> 0 | F109: =+F107-F108 -> 0 | G109: =+G107-G108 -> 0
C110: Control de Valores | D110: =D107=D108 -> TRUE | E110: =E107=E108 -> TRUE | F110: TRUE | G110: TRUE
C112: % Total | D112: =IFERROR(+D36+D44+D54+D57+D60+D68+D78+D81+D98+D101+D104,"") -> 0.999975 | E112: =IFERROR(+E36+E44+E54+E57+E60+E68+E78+E81+E98+E101+E104,"") -> 0.9995379792 | F112: =IFERROR(+F36+F44+F54+F57+F60+F68+F78+F81+F98+F101+F104,"") -> 0.999623
A120: Contador/Revisor Fiscal (cuando aplique) | D120: Representante Legal
A121: Nombre: | D121: Nombre:
A122: C.C.: | D122: C.C.:
A123: Tarjeta profesional:
A125: ¡Antes de imprimir este documento… piense en el medio ambiente! Cualquier copia impresa de este documento se considera como COPIA NO CONTROLADA LOS DATOS PROPORCIONADOS SERÁN TRATADOS DE ACUERDO A LA POLÍTICA DE TRATAMIENTO DE DATOS PERSONALES DEL ICBF Y A LA LEY 1581 DE 2012

Sheet 2. INFORMACION GENERAL
C1: PROCESO PROMOCIÓN Y PREVENCIÓN FORMATO SEGUIMIENTO FINANCIERO CENTROS DE APOYO A LA INCLUSIÓN ITINERANTE | Z1: =+'1. PRESUPUESTO INICIAL'!F1 -> F24.GO1.MT7.PP | AC1: =+'1. PRESUPUESTO INICIAL'!G1 -> 2025-08-22
Z2: =+'1. PRESUPUESTO INICIAL'!F2 -> Versión 1 | AC2: Página 1 de 1
Z3: Clasificación de la Información Pública
A4: 1. INFORMACIÓN GENERAL DEL CONTRATO
A5: Forma de Atención | C5: =+'1. PRESUPUESTO INICIAL'!B5 -> ITINERANTE | D5: ENTIDAD CONTRATISTA | F5: =+'1. PRESUPUESTO INICIAL'!B9 -> Escribe la entidad Contratante | I5: NIT ENTIDAD CONTRATISTA | J5: =+'1. PRESUPUESTO INICIAL'!D9 -> Escribe la entidad Contratante | N5: CONTRATO N° | O5: =+'1. PRESUPUESTO INICIAL'!F9 -> 0 | P5: DE | Q5: AÑO | R5: FECHA LEGALIZACIÓN DEL CONTRATO | T5: DD/MM/AA | V5: FECHA INICIO | W5: DD/MM/AA | Y5: FECHA FIN | Z5: DD/MM/AA | AB5: TIEMPO DE ATENCIÓN | AD5: =+'1. PRESUPUESTO INICIAL'!D11 -> 4
A6: REGIONAL | C6: =+'1. PRESUPUESTO INICIAL'!D5 -> 0 | F6: CENTRO ZONAL | G6: =+'1. PRESUPUESTO INICIAL'!B7 -> 0 | J6: MUNICIPIO (S) DE ATENCIÓN | L6: =+'1. PRESUPUESTO INICIAL'!F5 -> 0 | R6: PERIODO DEL INFORME | T6: DESDE - DD/MM/AA | V6: HASTA - DD/MM/AA | X6: FECHA DE ELABORACIÓN INFORME FINANCIERO | Z6: DD/MM/AA | AB6: RESPONSABLE DE LA ELABORACIÓN
A7: 2. VALOR DEL CONTRATO
A8: # CUPOS CONTRATADOS | B8: =+'1. PRESUPUESTO INICIAL'!B11 -> 50 | C8: VALOR COSTO CUPO MES ALISTAMIENTO | E8: =+'1. PRESUPUESTO INICIAL'!B13 -> 338563 | F8: VALOR APORTES | N8: VALOR ADICIONES | T8: VALOR DISMINUCIONES | Z8: VALOR TOTAL
A9: VALOR COSTO CUPO MES ATENCIÓN | B9: =+'1. PRESUPUESTO INICIAL'!B14 -> 390223 | C9: VALOR COSTO CUPO MES CIERRE | E9: =+'1. PRESUPUESTO INICIAL'!B15 -> 315168 | F9: APORTES ICBF | J9: OTROS APORTES | N9: APORTES ICBF | Q9: OTRAS ADICIONES | T9: APORTES ICBF | W9: OTROS APORTES | Z9: APORTES ICBF | AC9: OTROS APORTES
A10: =UPPER('1. PRESUPUESTO INICIAL'!B18) -> APORTES ICBF | C10: =+'1. PRESUPUESTO INICIAL'!E18 -> 74876725 | F10: =C10 -> 74876725 | J10: =+C11 -> 0 | N10: 0 | Q10: 0 | T10: 0 | W10: 0 | Z10: =+F10+N10+T10 -> 74876725 | AC10: =+J10+Q10+W10 -> 0
A11: =+UPPER('1. PRESUPUESTO INICIAL'!B20) -> APORTES CONTRAPARTIDA (CUANDO APLIQUE) | C11: =+'1. PRESUPUESTO INICIAL'!E20 -> 0
A12: VALOR FINAL DEL CONTRATO | C12: =+C10+C11 -> 74876725 | Z12: =+Z10 -> 74876725 | AC12: =+AC10 -> 0
A13: 3. PRESUPUESTO DE INGRESOS APORTES ICBF
A14: Mes | C14: ALISTAMIENTO | F14: Mes 1 | I14: Mes 2 | L14: Mes 3 | N14: Mes 4 | P14: Mes 5 | R14: Mes 6 | T14: Mes 7 | V14: Mes 8 | X14: Mes 9 | Z14: Mes 10
A15: CUPOS CONTRATADOS | C15: =+B8 -> 50 | F15: =+C15 -> 50 | I15: =+F15 -> 50 | L15: =+I15 -> 50 | N15: =+L15 -> 50 | P15: =+N15 -> 50 | R15: =+P15 -> 50 | T15: =+R15 -> 50 | V15: =+T15 -> 50 | X15: =+V15 -> 50 | Z15: =+X15 -> 50
A16: CUPOS ATENDIDOS
A17: CUPOS NO ATENDIDOS | C17: =+C15-C16 -> 50 | F17: =+F15-F16 -> 50 | I17: =+I15-I16 -> 50 | L17: =+L15-L16 -> 50 | N17: =+N15-N16 -> 50 | P17: =+P15-P16 -> 50 | R17: =+R15-R16 -> 50 | T17: =+T15-T16 -> 50 | V17: =+V15-V16 -> 50 | X17: =+X15-X16 -> 50 | Z17: =+Z15-Z16 -> 50 | AB17: TOTAL
A18: VALOR MENSUAL PROGRAMADO | C18: =+C75 -> 0 | F18: =+F75 -> 0 | I18: =+I75 -> 0 | L18: =+L75 -> 0 | N18: =+O75 -> 0 | P18: =+R75 -> 0 | R18: =+U75 -> 0 | T18: =+X75 -> 0 | V18: =+AA75 -> 0 | X18: =+AD75 -> 0 | Z18: =+AG75 -> 0 | AB18: =SUM(A18:AA18) -> 0
A19: VALOR INEJECUCIONES MENSUALES (Inasistencias) | C19: 0 | AB19: =SUM(A19:AA19) -> 0
A21: VALOR REINVERSIONES MENSUALES | F21: ALISTAMIENTO (Valor Aprobado) | G21: Acta y Fecha (Aprobación) | I21: =+F25 -> ATENCIÓN Mes 1 | J21: Acta y Fecha (Aprobación) | L21: =+I25 -> ATENCIÓN Mes 2 | M21: Acta y Fecha (Aprobación) | N21: =+L25 -> ATENCIÓN Mes 3 | O21: Acta y Fecha (Aprobación) | P21: =+O25 -> ATENCIÓN Mes 4 | Q21: Acta y Fecha (Aprobación) | R21: =+R25 -> ATENCIÓN Mes 5 | S21: Acta y Fecha (Aprobación) | T21: =+U25 -> ATENCIÓN Mes 6 | U21: Acta y Fecha (Aprobación) | V21: =+X25 -> ATENCIÓN Mes 7 | W21: Acta y Fecha (Aprobación) | X21: =+X25 -> ATENCIÓN Mes 7 | Y21: Acta y Fecha (Aprobación) | Z21: =+AA25 -> ATENCIÓN Mes 8 | AA21: Acta y Fecha (Aprobación) | AB21: =+AD25 -> ATENCIÓN Mes 9 | AC21: Acta y Fecha (Aprobación) | AD21: =+AG25 -> ATENCIÓN Mes 10 | AE21: Acta y Fecha (Aprobación) | AF21: TOTAL REINVERSIONES APROBADAS Y EJECUTADAS
F22: 0 | I22: 0 | L22: 0 | N22: 0 | P22: 0 | R22: 0 | T22: 0 | V22: 0 | X22: 0 | Z22: 0 | AB22: 0 | AD22: 0 | AF22: =+F22+I22+L22+N22+P22+R22+T22+V22+X22+Z22+AB22+AD22 -> 0
A23: 4. PRESUPUESTO DE GASTOS APORTES ICBF
A24: 4. PRESUPUESTO DE GASTOS APORTES ICBF
A25: ETAPA | C25: ALISTAMIENTO | F25: ATENCIÓN Mes 1 | I25: ATENCIÓN Mes 2 | L25: ATENCIÓN Mes 3 | O25: ATENCIÓN Mes 4 | R25: ATENCIÓN Mes 5 | U25: ATENCIÓN Mes 6 | X25: ATENCIÓN Mes 7 | AA25: ATENCIÓN Mes 8 | AD25: ATENCIÓN Mes 9 | AG25: ATENCIÓN Mes 10 | AJ25: CIERRE | AM25: TOTAL
C26: PROGRAMADO | D26: EJECUTADO | E26: NO EJECUTADO | F26: PROGRAMADO | G26: EJECUTADO | H26: NO EJECUTADO | I26: PROGRAMADO | J26: EJECUTADO | K26: NO EJECUTADO | L26: PROGRAMADO | M26: EJECUTADO | N26: NO EJECUTADO | O26: PROGRAMADO | P26: EJECUTADO | Q26: NO EJECUTADO | R26: PROGRAMADO | S26: EJECUTADO | T26: NO EJECUTADO | U26: PROGRAMADO | V26: EJECUTADO | W26: NO EJECUTADO | X26: PROGRAMADO | Y26: EJECUTADO | Z26: NO EJECUTADO | AA26: PROGRAMADO | AB26: EJECUTADO | AC26: NO EJECUTADO | AD26: PROGRAMADO | AE26: EJECUTADO | AF26: NO EJECUTADO | AG26: PROGRAMADO | AH26: EJECUTADO | AI26: NO EJECUTADO | AJ26: PROGRAMADO | AK26: EJECUTADO | AL26: NO EJECUTADO | AM26: PROGRAMADO | AN26: EJECUTADO | AO26: NO EJECUTADO
A27: =IF('1. PRESUPUESTO INICIAL'!B28="","",'1. PRESUPUESTO INICIAL'!B28) -> TALENTO HUMANO | C27: =+SUM(C28:C37) -> 0 | D27: =+SUM(D28:D37) -> 0 | E27: =+SUM(E28:E37) -> 0 | F27: =+SUM(F28:F37) -> 0 | G27: =+SUM(G28:G37) -> 0 | H27: =+SUM(H28:H37) -> 0 | I27: =+SUM(I28:I37) -> 0 | J27: =+SUM(J28:J37) -> 0 | K27: =+SUM(K28:K37) -> 0 | L27: =+SUM(L28:L37) -> 0 | M27: =+SUM(M28:M37) -> 0 | N27: =+SUM(N28:N37) -> 0 | O27: =+SUM(O28:O37) -> 0 | P27: =+SUM(P28:P37) -> 0 | Q27: =+SUM(Q28:Q37) -> 0 | R27: =+SUM(R28:R37) -> 0 | S27: =+SUM(S28:S37) -> 0 | T27: =+SUM(T28:T37) -> 0 | U27: =+SUM(U28:U37) -> 0 | V27: =+SUM(V28:V37) -> 0 | W27: =+SUM(W28:W37) -> 0 | X27: =+SUM(X28:X37) -> 0 | Y27: =+SUM(Y28:Y37) -> 0 | Z27: =+SUM(Z28:Z37) -> 0 | AA27: =+SUM(AA28:AA37) -> 0 | AB27: =+SUM(AB28:AB37) -> 0 | AC27: =+SUM(AC28:AC37) -> 0 | AD27: =+SUM(AD28:AD37) -> 0 | AE27: =+SUM(AE28:AE37) -> 0 | AF27: =+SUM(AF28:AF37) -> 0 | AG27: =+SUM(AG28:AG37) -> 0 | AH27: =+SUM(AH28:AH37) -> 0 | AI27: =+SUM(AI28:AI37) -> 0 | AJ27: =+SUM(AJ28:AJ37) -> 0 | AK27: =+SUM(AK28:AK37) -> 0 | AL27: =+SUM(AL28:AL37) -> 0 | AM27: 0 | AN27: 0 | AO27: 0
A28: =IF('1. PRESUPUESTO INICIAL'!B29="","",'1. PRESUPUESTO INICIAL'!B29) -> Orientador de atención itinerante para la adaptación de entornos familiares. | C28: 0 | D28: 0 | E28: =IFERROR(C28-D28,0) -> 0 | F28: 0 | G28: 0 | H28: =IFERROR(F28-G28,0) -> 0 | I28: 0 | J28: 0 | K28: =IFERROR(I28-J28,0) -> 0 | L28: 0 | M28: 0 | N28: =IFERROR(L28-M28,0) -> 0 | O28: 0 | P28: 0 | Q28: =IFERROR(O28-P28,0) -> 0 | R28: 0 | S28: 0 | T28: =IFERROR(R28-S28,0) -> 0 | U28: 0 | V28: 0 | W28: =IFERROR(U28-V28,0) -> 0 | X28: 0 | Y28: 0 | Z28: =IFERROR(X28-Y28,0) -> 0 | AA28: 0 | AB28: 0 | AC28: =IFERROR(AA28-AB28,0) -> 0 | AD28: 0 | AE28: 0 | AF28: =IFERROR(AD28-AE28,0) -> 0 | AG28: 0 | AH28: 0 | AI28: =IFERROR(AG28-AH28,0) -> 0 | AJ28: 0 | AK28: 0 | AL28: =IFERROR(AJ28-AK28,0) -> 0 | AM28: =+SUMIFS(C28:AL28,$C$26:$AL$26,$AM$26) -> 0 | AN28: =+SUMIFS(C28:AL28,$C$26:$AL$26,$AN$26) -> 0 | AO28: =+SUMIFS(C28:AL28,$C$26:$AL$26,$AO$26) -> 0
A29: =IF('1. PRESUPUESTO INICIAL'!B30="","",'1. PRESUPUESTO INICIAL'!B30) -> Orientador de atención itinerante para la adaptación de entornos institucionales. | C29: 0 | D29: 0 | E29: 0 | F29: 0 | G29: 0 | H29: 0 | I29: 0 | J29: 0 | K29: 0 | L29: 0 | M29: 0 | N29: 0 | O29: 0 | P29: 0 | Q29: 0 | R29: 0 | S29: 0 | T29: 0 | U29: 0 | V29: 0 | W29: 0 | X29: 0 | Y29: 0 | Z29: 0 | AA29: 0 | AB29: 0 | AC29: 0 | AD29: 0 | AE29: 0 | AF29: 0 | AG29: 0 | AH29: 0 | AI29: 0 | AJ29: 0 | AK29: 0 | AL29: 0 | AM29: 0 | AN29: 0 | AO29: 0
A30: =IF('1. PRESUPUESTO INICIAL'!B31="","",'1. PRESUPUESTO INICIAL'!B31) -> Orientador de atención itinerante para la movilización de redes familiares y comunitarias | C30: 0 | D30: 0 | E30: 0 | F30: 0 | G30: 0 | H30: 0 | I30: 0 | J30: 0 | K30: 0 | L30: 0 | M30: 0 | N30: 0 | O30: 0 | P30: 0 | Q30: 0 | R30: 0 | S30: 0 | T30: 0 | U30: 0 | V30: 0 | W30: 0 | X30: 0 | Y30: 0 | Z30: 0 | AA30: 0 | AB30: 0 | AC30: 0 | AD30: 0 | AE30: 0 | AF30: 0 | AG30: 0 | AH30: 0 | AI30: 0 | AJ30: 0 | AK30: 0 | AL30: 0 | AM30: 0 | AN30: 0 | AO30: 0
A31: =IF('1. PRESUPUESTO INICIAL'!B32="","",'1. PRESUPUESTO INICIAL'!B32) -> Líder comunitario, sabedor, modelo lingüista, tiflólogo, docente bilingüe, educador especial con competencia en Lengua de Señas Colombiana -LSC o intérprete para el trabajo con comunidades específicas. | C31: 0 | D31: 0 | E31: 0 | F31: 0 | G31: 0 | H31: 0 | I31: 0 | J31: 0 | K31: 0 | L31: 0 | M31: 0 | N31: 0 | O31: 0 | P31: 0 | Q31: 0 | R31: 0 | S31: 0 | T31: 0 | U31: 0 | V31: 0 | W31: 0 | X31: 0 | Y31: 0 | Z31: 0 | AA31: 0 | AB31: 0 | AC31: 0 | AD31: 0 | AE31: 0 | AF31: 0 | AG31: 0 | AH31: 0 | AI31: 0 | AJ31: 0 | AK31: 0 | AL31: 0 | AM31: 0 | AN31: 0 | AO31: 0
A32: =IF('1. PRESUPUESTO INICIAL'!B33="","",'1. PRESUPUESTO INICIAL'!B33) ->  | C32: 0 | D32: 0 | E32: 0 | F32: 0 | G32: 0 | H32: 0 | I32: 0 | J32: 0 | K32: 0 | L32: 0 | M32: 0 | N32: 0 | O32: 0 | P32: 0 | Q32: 0 | R32: 0 | S32: 0 | T32: 0 | U32: 0 | V32: 0 | W32: 0 | X32: 0 | Y32: 0 | Z32: 0 | AA32: 0 | AB32: 0 | AC32: 0 | AD32: 0 | AE32: 0 | AF32: 0 | AG32: 0 | AH32: 0 | AI32: 0 | AJ32: 0 | AK32: 0 | AL32: 0 | AM32: 0 | AN32: 0 | AO32: 0
A33: =IF('1. PRESUPUESTO INICIAL'!#REF!="","",'1. PRESUPUESTO INICIAL'!#REF!) ->  | C33: 0 | D33: 0 | E33: 0 | F33: 0 | G33: 0 | H33: 0 | I33: 0 | J33: 0 | K33: 0 | L33: 0 | M33: 0 | N33: 0 | O33: 0 | P33: 0 | Q33: 0 | R33: 0 | S33: 0 | T33: 0 | U33: 0 | V33: 0 | W33: 0 | X33: 0 | Y33: 0 | Z33: 0 | AA33: 0 | AB33: 0 | AC33: 0 | AD33: 0 | AE33: 0 | AF33: 0 | AG33: 0 | AH33: 0 | AI33: 0 | AJ33: 0 | AK33: 0 | AL33: 0 | AM33: 0 | AN33: 0 | AO33: 0
A34: =IF('1. PRESUPUESTO INICIAL'!#REF!="","",'1. PRESUPUESTO INICIAL'!#REF!) ->  | C34: 0 | D34: 0 | E34: 0 | F34: 0 | G34: 0 | H34: 0 | I34: 0 | J34: 0 | K34: 0 | L34: 0 | M34: 0 | N34: 0 | O34: 0 | P34: 0 | Q34: 0 | R34: 0 | S34: 0 | T34: 0 | U34: 0 | V34: 0 | W34: 0 | X34: 0 | Y34: 0 | Z34: 0 | AA34: 0 | AB34: 0 | AC34: 0 | AD34: 0 | AE34: 0 | AF34: 0 | AG34: 0 | AH34: 0 | AI34: 0 | AJ34: 0 | AK34: 0 | AL34: 0 | AM34: 0 | AN34: 0 | AO34: 0
A35: =IF('1. PRESUPUESTO INICIAL'!#REF!="","",'1. PRESUPUESTO INICIAL'!#REF!) ->  | C35: 0 | D35: 0 | E35: 0 | F35: 0 | G35: 0 | H35: 0 | I35: 0 | J35: 0 | K35: 0 | L35: 0 | M35: 0 | N35: 0 | O35: 0 | P35: 0 | Q35: 0 | R35: 0 | S35: 0 | T35: 0 | U35: 0 | V35: 0 | W35: 0 | X35: 0 | Y35: 0 | Z35: 0 | AA35: 0 | AB35: 0 | AC35: 0 | AD35: 0 | AE35: 0 | AF35: 0 | AG35: 0 | AH35: 0 | AI35: 0 | AJ35: 0 | AK35: 0 | AL35: 0 | AM35: 0 | AN35: 0 | AO35: 0
A36: =IF('1. PRESUPUESTO INICIAL'!#REF!="","",'1. PRESUPUESTO INICIAL'!#REF!) ->  | C36: 0 | D36: 0 | E36: 0 | F36: 0 | G36: 0 | H36: 0 | I36: 0 | J36: 0 | K36: 0 | L36: 0 | M36: 0 | N36: 0 | O36: 0 | P36: 0 | Q36: 0 | R36: 0 | S36: 0 | T36: 0 | U36: 0 | V36: 0 | W36: 0 | X36: 0 | Y36: 0 | Z36: 0 | AA36: 0 | AB36: 0 | AC36: 0 | AD36: 0 | AE36: 0 | AF36: 0 | AG36: 0 | AH36: 0 | AI36: 0 | AJ36: 0 | AK36: 0 | AL36: 0 | AM36: 0 | AN36: 0 | AO36: 0
A37: =IF('1. PRESUPUESTO INICIAL'!#REF!="","",'1. PRESUPUESTO INICIAL'!#REF!) ->  | C37: 0 | D37: 0 | E37: =IFERROR(C37-D37,0) -> 0 | F37: 0 | G37: 0 | H37: =IFERROR(F37-G37,0) -> 0 | I37: 0 | J37: 0 | K37: =IFERROR(I37-J37,0) -> 0 | L37: 0 | M37: 0 | N37: =IFERROR(L37-M37,0) -> 0 | O37: 0 | P37: 0 | Q37: =IFERROR(O37-P37,0) -> 0 | R37: 0 | S37: 0 | T37: =IFERROR(R37-S37,0) -> 0 | U37: 0 | V37: 0 | W37: =IFERROR(U37-V37,0) -> 0 | X37: 0 | Y37: 0 | Z37: =IFERROR(X37-Y37,0) -> 0 | AA37: 0 | AB37: 0 | AC37: =IFERROR(AA37-AB37,0) -> 0 | AD37: 0 | AE37: 0 | AF37: =IFERROR(AD37-AE37,0) -> 0 | AG37: 0 | AH37: 0 | AI37: =IFERROR(AG37-AH37,0) -> 0 | AJ37: 0 | AK37: 0 | AL37: =IFERROR(AJ37-AK37,0) -> 0 | AM37: 0 | AN37: 0 | AO37: 0
A38: =IF('1. PRESUPUESTO INICIAL'!B37="","",'1. PRESUPUESTO INICIAL'!B37) -> TRANSPORTE Y VIAJES DEL TH | C38: =+SUM(C39:C42) -> 0 | D38: =+SUM(D39:D42) -> 0 | E38: =IFERROR(C38-D38,0) -> 0 | F38: =+SUM(F39:F42) -> 0 | G38: =+SUM(G39:G42) -> 0 | H38: =IFERROR(F38-G38,0) -> 0 | I38: =+SUM(I39:I42) -> 0 | J38: =+SUM(J39:J42) -> 0 | K38: =IFERROR(I38-J38,0) -> 0 | L38: =+SUM(L39:L42) -> 0 | M38: =+SUM(M39:M42) -> 0 | N38: =IFERROR(L38-M38,0) -> 0 | O38: =+SUM(O39:O42) -> 0 | P38: =+SUM(P39:P42) -> 0 | Q38: =IFERROR(O38-P38,0) -> 0 | R38: =+SUM(R39:R42) -> 0 | S38: =+SUM(S39:S42) -> 0 | T38: =IFERROR(R38-S38,0) -> 0 | U38: =+SUM(U39:U42) -> 0 | V38: =+SUM(V39:V42) -> 0 | W38: =IFERROR(U38-V38,0) -> 0 | X38: =+SUM(X39:X42) -> 0 | Y38: =+SUM(Y39:Y42) -> 0 | Z38: =IFERROR(X38-Y38,0) -> 0 | AA38: =+SUM(AA39:AA42) -> 0 | AB38: =+SUM(AB39:AB42) -> 0 | AC38: =IFERROR(AA38-AB38,0) -> 0 | AD38: =+SUM(AD39:AD42) -> 0 | AE38: =+SUM(AE39:AE42) -> 0 | AF38: =IFERROR(AD38-AE38,0) -> 0 | AG38: =+SUM(AG39:AG42) -> 0 | AH38: =+SUM(AH39:AH42) -> 0 | AI38: =IFERROR(AG38-AH38,0) -> 0 | AJ38: =+SUM(AJ39:AJ42) -> 0 | AK38: =+SUM(AK39:AK42) -> 0 | AL38: =IFERROR(AJ38-AK38,0) -> 0 | AM38: =+SUM(AM39:AM42) -> 0 | AN38: 0 | AO38: 0
A39: =IF('1. PRESUPUESTO INICIAL'!B38="","",'1. PRESUPUESTO INICIAL'!B38) -> Orientador de atención itinerante para la adaptación de entornos familiares. | C39: 0 | D39: 0 | E39: =IFERROR(C39-D39,0) -> 0 | F39: 0 | G39: 0 | H39: =IFERROR(F39-G39,0) -> 0 | I39: 0 | J39: 0 | K39: =IFERROR(I39-J39,0) -> 0 | L39: 0 | M39: 0 | N39: =IFERROR(L39-M39,0) -> 0 | O39: 0 | P39: 0 | Q39: =IFERROR(O39-P39,0) -> 0 | R39: 0 | S39: 0 | T39: =IFERROR(R39-S39,0) -> 0 | U39: 0 | V39: 0 | W39: =IFERROR(U39-V39,0) -> 0 | X39: 0 | Y39: 0 | Z39: =IFERROR(X39-Y39,0) -> 0 | AA39: 0 | AB39: 0 | AC39: =IFERROR(AA39-AB39,0) -> 0 | AD39: 0 | AE39: 0 | AF39: =IFERROR(AD39-AE39,0) -> 0 | AG39: 0 | AH39: 0 | AI39: =IFERROR(AG39-AH39,0) -> 0 | AJ39: 0 | AK39: 0 | AL39: =IFERROR(AJ39-AK39,0) -> 0 | AM39: =+SUMIFS(C39:AL39,$C$26:$AL$26,$AM$26) -> 0 | AN39: =+SUMIFS(C39:AL39,$C$26:$AL$26,$AN$26) -> 0 | AO39: =+SUMIFS(C39:AL39,$C$26:$AL$26,$AO$26) -> 0
A40: =IF('1. PRESUPUESTO INICIAL'!B39="","",'1. PRESUPUESTO INICIAL'!B39) -> Orientador de atención itinerante para la adaptación de entornos institucionales. | C40: 0 | D40: 0 | E40: =IFERROR(C40-D40,0) -> 0 | F40: 0 | G40: 0 | H40: =IFERROR(F40-G40,0) -> 0 | I40: 0 | J40: 0 | K40: =IFERROR(I40-J40,0) -> 0 | L40: 0 | M40: 0 | N40: =IFERROR(L40-M40,0) -> 0 | O40: 0 | P40: 0 | Q40: =IFERROR(O40-P40,0) -> 0 | R40: 0 | S40: 0 | T40: =IFERROR(R40-S40,0) -> 0 | U40: 0 | V40: 0 | W40: =IFERROR(U40-V40,0) -> 0 | X40: 0 | Y40: 0 | Z40: =IFERROR(X40-Y40,0) -> 0 | AA40: 0 | AB40: 0 | AC40: =IFERROR(AA40-AB40,0) -> 0 | AD40: 0 | AE40: 0 | AF40: =IFERROR(AD40-AE40,0) -> 0 | AG40: 0 | AH40: 0 | AI40: =IFERROR(AG40-AH40,0) -> 0 | AJ40: 0 | AK40: 0 | AL40: =IFERROR(AJ40-AK40,0) -> 0 | AM40: =+SUMIFS(C40:AL40,$C$26:$AL$26,$AM$26) -> 0 | AN40: =+SUMIFS(C40:AL40,$C$26:$AL$26,$AN$26) -> 0 | AO40: =+SUMIFS(C40:AL40,$C$26:$AL$26,$AO$26) -> 0
A41: =IF('1. PRESUPUESTO INICIAL'!B40="","",'1. PRESUPUESTO INICIAL'!B40) -> Orientador de atención itinerante para la movilización de redes familiares y comunitarias | C41: 0 | D41: 0 | E41: 0 | F41: 0 | G41: 0 | H41: 0 | I41: 0 | J41: 0 | K41: 0 | L41: 0 | M41: 0 | N41: 0 | O41: 0 | P41: 0 | Q41: 0 | R41: 0 | S41: 0 | T41: 0 | U41: 0 | V41: 0 | W41: 0 | X41: 0 | Y41: 0 | Z41: 0 | AA41: 0 | AB41: 0 | AC41: 0 | AD41: 0 | AE41: 0 | AF41: 0 | AG41: 0 | AH41: 0 | AI41: 0 | AJ41: 0 | AK41: 0 | AL41: 0 | AM41: =+SUMIFS(C41:AL41,$C$26:$AL$26,$AM$26) -> 0 | AN41: =+SUMIFS(C41:AL41,$C$26:$AL$26,$AN$26) -> 0 | AO41: =+SUMIFS(C41:AL41,$C$26:$AL$26,$AO$26) -> 0
A42: =IF('1. PRESUPUESTO INICIAL'!B41="","",'1. PRESUPUESTO INICIAL'!B41) -> Líder comunitario, sabedor, modelo lingüista, tiflólogo, docente bilingüe, educador especial con competencia en Lengua de Señas Colombiana -LSC o intérprete para el trabajo con comunidades específicas. | C42: 0 | D42: 0 | E42: 0 | F42: 0 | G42: 0 | H42: 0 | I42: 0 | J42: 0 | K42: 0 | L42: 0 | M42: 0 | N42: 0 | O42: 0 | P42: 0 | Q42: 0 | R42: 0 | S42: 0 | T42: 0 | U42: 0 | V42: 0 | W42: 0 | X42: 0 | Y42: 0 | Z42: 0 | AA42: 0 | AB42: 0 | AC42: 0 | AD42: 0 | AE42: 0 | AF42: 0 | AG42: 0 | AH42: 0 | AI42: 0 | AJ42: 0 | AK42: 0 | AL42: 0 | AM42: =+SUMIFS(C42:AL42,$C$26:$AL$26,$AM$26) -> 0 | AN42: =+SUMIFS(C42:AL42,$C$26:$AL$26,$AN$26) -> 0 | AO42: =+SUMIFS(C42:AL42,$C$26:$AL$26,$AO$26) -> 0
A43: =IF('1. PRESUPUESTO INICIAL'!B48="","",'1. PRESUPUESTO INICIAL'!B48) -> APOYOS NUTRICIONALES | C43: =+SUM(C44:C47) -> 0 | D43: 0 | E43: 0 | F43: 0 | G43: 0 | H43: 0 | I43: 0 | J43: 0 | K43: 0 | L43: 0 | M43: 0 | N43: 0 | O43: 0 | P43: 0 | Q43: 0 | R43: 0 | S43: 0 | T43: 0 | U43: 0 | V43: 0 | W43: 0 | X43: 0 | Y43: 0 | Z43: 0 | AA43: 0 | AB43: 0 | AC43: 0 | AD43: 0 | AE43: 0 | AF43: 0 | AG43: 0 | AH43: 0 | AI43: 0 | AJ43: 0 | AK43: 0 | AL43: 0 | AM43: =+SUM(AM44:AM47) -> 0 | AN43: 0 | AO43: 0
A44: =IF('1. PRESUPUESTO INICIAL'!B49="","",'1. PRESUPUESTO INICIAL'!B49) -> Ración Familiar Para Preparar (RFPP) Sin AAVN | C44: 0 | D44: 0 | E44: =IFERROR(C44-D44,0) -> 0 | F44: 0 | G44: 0 | H44: =IFERROR(F44-G44,0) -> 0 | I44: 0 | J44: 0 | K44: =IFERROR(I44-J44,0) -> 0 | L44: 0 | M44: 0 | N44: =IFERROR(L44-M44,0) -> 0 | O44: 0 | P44: 0 | Q44: =IFERROR(O44-P44,0) -> 0 | R44: 0 | S44: 0 | T44: =IFERROR(R44-S44,0) -> 0 | U44: 0 | V44: 0 | W44: =IFERROR(U44-V44,0) -> 0 | X44: 0 | Y44: 0 | Z44: =IFERROR(X44-Y44,0) -> 0 | AA44: 0 | AB44: 0 | AC44: =IFERROR(AA44-AB44,0) -> 0 | AD44: 0 | AE44: 0 | AF44: =IFERROR(AD44-AE44,0) -> 0 | AG44: 0 | AH44: 0 | AI44: =IFERROR(AG44-AH44,0) -> 0 | AJ44: 0 | AK44: 0 | AL44: =IFERROR(AJ44-AK44,0) -> 0 | AM44: =+SUMIFS(C44:AL44,$C$26:$AL$26,$AM$26) -> 0 | AN44: =+SUMIFS(C44:AL44,$C$26:$AL$26,$AN$26) -> 0 | AO44: =+SUMIFS(C44:AL44,$C$26:$AL$26,$AO$26) -> 0
A45: =IF('1. PRESUPUESTO INICIAL'!B50="","",'1. PRESUPUESTO INICIAL'!B50) -> _ | C45: 0 | D45: 0 | E45: =IFERROR(C45-D45,0) -> 0 | F45: 0 | G45: 0 | H45: =IFERROR(F45-G45,0) -> 0 | I45: 0 | J45: 0 | K45: =IFERROR(I45-J45,0) -> 0 | L45: 0 | M45: 0 | N45: =IFERROR(L45-M45,0) -> 0 | O45: 0 | P45: 0 | Q45: =IFERROR(O45-P45,0) -> 0 | R45: 0 | S45: 0 | T45: =IFERROR(R45-S45,0) -> 0 | U45: 0 | V45: 0 | W45: =IFERROR(U45-V45,0) -> 0 | X45: 0 | Y45: 0 | Z45: =IFERROR(X45-Y45,0) -> 0 | AA45: 0 | AB45: 0 | AC45: =IFERROR(AA45-AB45,0) -> 0 | AD45: 0 | AE45: 0 | AF45: =IFERROR(AD45-AE45,0) -> 0 | AG45: 0 | AH45: 0 | AI45: =IFERROR(AG45-AH45,0) -> 0 | AJ45: 0 | AK45: 0 | AL45: =IFERROR(AJ45-AK45,0) -> 0 | AM45: 0 | AN45: 0 | AO45: 0
A46: =IF('1. PRESUPUESTO INICIAL'!B51="","",'1. PRESUPUESTO INICIAL'!B51) -> _ | C46: 0 | D46: 0 | E46: 0 | F46: 0 | G46: 0 | H46: 0 | I46: 0 | J46: 0 | K46: 0 | L46: 0 | M46: 0 | N46: 0 | O46: 0 | P46: 0 | Q46: 0 | R46: 0 | S46: 0 | T46: 0 | U46: 0 | V46: 0 | W46: 0 | X46: 0 | Y46: 0 | Z46: 0 | AA46: 0 | AB46: 0 | AC46: 0 | AD46: 0 | AE46: 0 | AF46: 0 | AG46: 0 | AH46: 0 | AI46: 0 | AJ46: 0 | AK46: 0 | AL46: 0 | AM46: 0 | AN46: 0 | AO46: 0
A47: =IF('1. PRESUPUESTO INICIAL'!B52="","",'1. PRESUPUESTO INICIAL'!B52) ->  | C47: 0 | D47: 0 | E47: =IFERROR(C47-D47,0) -> 0 | F47: 0 | G47: 0 | H47: 0 | I47: 0 | J47: 0 | K47: 0 | L47: 0 | M47: 0 | N47: 0 | O47: 0 | P47: 0 | Q47: 0 | R47: 0 | S47: 0 | T47: 0 | U47: 0 | V47: 0 | W47: 0 | X47: 0 | Y47: 0 | Z47: 0 | AA47: 0 | AB47: 0 | AC47: 0 | AD47: 0 | AE47: 0 | AF47: 0 | AG47: 0 | AH47: 0 | AI47: 0 | AJ47: 0 | AK47: 0 | AL47: 0 | AM47: 0 | AN47: 0 | AO47: 0
A48: =IF('1. PRESUPUESTO INICIAL'!B55="","",'1. PRESUPUESTO INICIAL'!B55) -> N/A | C48: 0 | D48: 0 | E48: =IFERROR(C48-D48,0) -> 0 | F48: 0 | G48: 0 | H48: =IFERROR(F48-G48,0) -> 0 | I48: 0 | J48: 0 | K48: =IFERROR(I48-J48,0) -> 0 | L48: 0 | M48: 0 | N48: =IFERROR(L48-M48,0) -> 0 | O48: 0 | P48: 0 | Q48: =IFERROR(O48-P48,0) -> 0 | R48: 0 | S48: 0 | T48: =IFERROR(R48-S48,0) -> 0 | U48: 0 | V48: 0 | W48: =IFERROR(U48-V48,0) -> 0 | X48: 0 | Y48: 0 | Z48: =IFERROR(X48-Y48,0) -> 0 | AA48: 0 | AB48: 0 | AC48: =IFERROR(AA48-AB48,0) -> 0 | AD48: 0 | AE48: 0 | AF48: =IFERROR(AD48-AE48,0) -> 0 | AG48: 0 | AH48: 0 | AI48: =IFERROR(AG48-AH48,0) -> 0 | AJ48: 0 | AK48: 0 | AL48: =IFERROR(AJ48-AK48,0) -> 0 | AM48: 0 | AN48: 0 | AO48: 0
A49: =IF('1. PRESUPUESTO INICIAL'!B58="","",'1. PRESUPUESTO INICIAL'!B58) -> MATERIAL DE CONSUMO | C49: 0 | D49: 0 | E49: =IFERROR(C49-D49,0) -> 0 | F49: 0 | G49: 0 | H49: =IFERROR(F49-G49,0) -> 0 | I49: 0 | J49: 0 | K49: =IFERROR(I49-J49,0) -> 0 | L49: 0 | M49: 0 | N49: =IFERROR(L49-M49,0) -> 0 | O49: 0 | P49: 0 | Q49: =IFERROR(O49-P49,0) -> 0 | R49: 0 | S49: 0 | T49: =IFERROR(R49-S49,0) -> 0 | U49: 0 | V49: 0 | W49: =IFERROR(U49-V49,0) -> 0 | X49: 0 | Y49: 0 | Z49: =IFERROR(X49-Y49,0) -> 0 | AA49: 0 | AB49: 0 | AC49: =IFERROR(AA49-AB49,0) -> 0 | AD49: 0 | AE49: 0 | AF49: =IFERROR(AD49-AE49,0) -> 0 | AG49: 0 | AH49: 0 | AI49: =IFERROR(AG49-AH49,0) -> 0 | AJ49: 0 | AK49: 0 | AL49: =IFERROR(AJ49-AK49,0) -> 0 | AM49: 0 | AN49: 0 | AO49: 0
A50: =IF('1. PRESUPUESTO INICIAL'!B61="","",'1. PRESUPUESTO INICIAL'!B61) -> DOTACIÓN | C50: 0 | D50: 0 | E50: =+SUM(E51:E55) -> 0 | F50: 0 | G50: 0 | H50: =+SUM(H51:H55) -> 0 | I50: 0 | J50: 0 | K50: =+SUM(K51:K55) -> 0 | L50: 0 | M50: 0 | N50: =+SUM(N51:N55) -> 0 | O50: 0 | P50: 0 | Q50: =+SUM(Q51:Q55) -> 0 | R50: 0 | S50: 0 | T50: =+SUM(T51:T55) -> 0 | U50: 0 | V50: 0 | W50: =+SUM(W51:W55) -> 0 | X50: 0 | Y50: 0 | Z50: =+SUM(Z51:Z55) -> 0 | AA50: 0 | AB50: 0 | AC50: =+SUM(AC51:AC55) -> 0 | AD50: 0 | AE50: 0 | AF50: =+SUM(AF51:AF55) -> 0 | AG50: 0 | AH50: 0 | AI50: =+SUM(AI51:AI55) -> 0 | AJ50: 0 | AK50: 0 | AL50: =+SUM(AL51:AL55) -> 0 | AM50: =+SUM(AM51:AM55) -> 0 | AN50: 0 | AO50: 0
A51: =IF('1. PRESUPUESTO INICIAL'!B62="","",'1. PRESUPUESTO INICIAL'!B62) -> 0 | C51: 0 | D51: 0 | E51: =IFERROR(C51-D51,0) -> 0 | F51: 0 | G51: 0 | H51: =IFERROR(F51-G51,0) -> 0 | I51: 0 | J51: 0 | K51: =IFERROR(I51-J51,0) -> 0 | L51: 0 | M51: 0 | N51: =IFERROR(L51-M51,0) -> 0 | O51: 0 | P51: 0 | Q51: =IFERROR(O51-P51,0) -> 0 | R51: 0 | S51: 0 | T51: =IFERROR(R51-S51,0) -> 0 | U51: 0 | V51: 0 | W51: =IFERROR(U51-V51,0) -> 0 | X51: 0 | Y51: 0 | Z51: =IFERROR(X51-Y51,0) -> 0 | AA51: 0 | AB51: 0 | AC51: =IFERROR(AA51-AB51,0) -> 0 | AD51: 0 | AE51: 0 | AF51: =IFERROR(AD51-AE51,0) -> 0 | AG51: 0 | AH51: 0 | AI51: =IFERROR(AG51-AH51,0) -> 0 | AJ51: 0 | AK51: 0 | AL51: =IFERROR(AJ51-AK51,0) -> 0 | AM51: =+SUMIFS(C51:AL51,$C$26:$AL$26,$AM$26) -> 0 | AN51: =+SUMIFS(C51:AL51,$C$26:$AL$26,$AN$26) -> 0 | AO51: =+SUMIFS(C51:AL51,$C$26:$AL$26,$AO$26) -> 0
A52: =IF('1. PRESUPUESTO INICIAL'!B63="","",'1. PRESUPUESTO INICIAL'!B63) -> 0 | C52: 0 | D52: 0 | E52: =IFERROR(C52-D52,0) -> 0 | F52: 0 | G52: 0 | H52: =IFERROR(F52-G52,0) -> 0 | I52: 0 | J52: 0 | K52: =IFERROR(I52-J52,0) -> 0 | L52: 0 | M52: 0 | N52: =IFERROR(L52-M52,0) -> 0 | O52: 0 | P52: 0 | Q52: =IFERROR(O52-P52,0) -> 0 | R52: 0 | S52: 0 | T52: =IFERROR(R52-S52,0) -> 0 | U52: 0 | V52: 0 | W52: =IFERROR(U52-V52,0) -> 0 | X52: 0 | Y52: 0 | Z52: =IFERROR(X52-Y52,0) -> 0 | AA52: 0 | AB52: 0 | AC52: =IFERROR(AA52-AB52,0) -> 0 | AD52: 0 | AE52: 0 | AF52: =IFERROR(AD52-AE52,0) -> 0 | AG52: 0 | AH52: 0 | AI52: =IFERROR(AG52-AH52,0) -> 0 | AJ52: 0 | AK52: 0 | AL52: =IFERROR(AJ52-AK52,0) -> 0 | AM52: =+SUMIFS(C52:AL52,$C$26:$AL$26,$AM$26) -> 0 | AN52: =+SUMIFS(C52:AL52,$C$26:$AL$26,$AN$26) -> 0 | AO52: =+SUMIFS(C52:AL52,$C$26:$AL$26,$AO$26) -> 0
A53: =IF('1. PRESUPUESTO INICIAL'!B64="","",'1. PRESUPUESTO INICIAL'!B64) ->  | C53: 0 | D53: 0 | E53: 0 | F53: 0 | G53: 0 | H53: 0 | I53: 0 | J53: 0 | K53: 0 | L53: 0 | M53: 0 | N53: 0 | O53: 0 | P53: 0 | Q53: 0 | R53: 0 | S53: 0 | T53: 0 | U53: 0 | V53: 0 | W53: 0 | X53: 0 | Y53: 0 | Z53: 0 | AA53: 0 | AB53: 0 | AC53: 0 | AD53: 0 | AE53: 0 | AF53: 0 | AG53: 0 | AH53: 0 | AI53: 0 | AJ53: 0 | AK53: 0 | AL53: 0 | AM53: =+SUMIFS(C53:AL53,$C$26:$AL$26,$AM$26) -> 0 | AN53: =+SUMIFS(C53:AL53,$C$26:$AL$26,$AN$26) -> 0 | AO53: =+SUMIFS(C53:AL53,$C$26:$AL$26,$AO$26) -> 0
A54: =IF('1. PRESUPUESTO INICIAL'!B65="","",'1. PRESUPUESTO INICIAL'!B65) ->  | C54: 0 | D54: 0 | E54: 0 | F54: 0 | G54: 0 | H54: 0 | I54: 0 | J54: 0 | K54: 0 | L54: 0 | M54: 0 | N54: 0 | O54: 0 | P54: 0 | Q54: 0 | R54: 0 | S54: 0 | T54: 0 | U54: 0 | V54: 0 | W54: 0 | X54: 0 | Y54: 0 | Z54: 0 | AA54: 0 | AB54: 0 | AC54: 0 | AD54: 0 | AE54: 0 | AF54: 0 | AG54: 0 | AH54: 0 | AI54: 0 | AJ54: 0 | AK54: 0 | AL54: 0 | AM54: =+SUMIFS(C54:AL54,$C$26:$AL$26,$AM$26) -> 0 | AN54: =+SUMIFS(C54:AL54,$C$26:$AL$26,$AN$26) -> 0 | AO54: =+SUMIFS(C54:AL54,$C$26:$AL$26,$AO$26) -> 0
A55: =IF('1. PRESUPUESTO INICIAL'!B66="","",'1. PRESUPUESTO INICIAL'!B66) ->  | C55: 0 | D55: 0 | E55: 0 | F55: 0 | G55: 0 | H55: 0 | I55: 0 | J55: 0 | K55: 0 | L55: 0 | M55: 0 | N55: 0 | O55: 0 | P55: 0 | Q55: 0 | R55: 0 | S55: 0 | T55: 0 | U55: 0 | V55: 0 | W55: 0 | X55: 0 | Y55: 0 | Z55: 0 | AA55: 0 | AB55: 0 | AC55: 0 | AD55: 0 | AE55: 0 | AF55: 0 | AG55: 0 | AH55: 0 | AI55: 0 | AJ55: 0 | AK55: 0 | AL55: 0 | AM55: =+SUMIFS(C55:AL55,$C$26:$AL$26,$AM$26) -> 0 | AN55: =+SUMIFS(C55:AL55,$C$26:$AL$26,$AN$26) -> 0 | AO55: =+SUMIFS(C55:AL55,$C$26:$AL$26,$AO$26) -> 0
A56: =IF('1. PRESUPUESTO INICIAL'!B69="","",'1. PRESUPUESTO INICIAL'!B69) -> MATERIAL IDENTIFICACIÓN | C56: =+SUM(C57:C61) -> 0 | D56: =+SUM(D57:D61) -> 0 | E56: 0 | F56: =+SUM(F57:F61) -> 0 | G56: =+SUM(G57:G61) -> 0 | H56: =+SUM(H57:H61) -> 0 | I56: 0 | J56: =+SUM(J57:J61) -> 0 | K56: =+SUM(K57:K61) -> 0 | L56: 0 | M56: =+SUM(M57:M61) -> 0 | N56: =+SUM(N57:N61) -> 0 | O56: 0 | P56: =+SUM(P57:P61) -> 0 | Q56: =+SUM(Q57:Q61) -> 0 | R56: 0 | S56: =+SUM(S57:S61) -> 0 | T56: =+SUM(T57:T61) -> 0 | U56: 0 | V56: =+SUM(V57:V61) -> 0 | W56: =+SUM(W57:W61) -> 0 | X56: 0 | Y56: =+SUM(Y57:Y61) -> 0 | Z56: =+SUM(Z57:Z61) -> 0 | AA56: 0 | AB56: =+SUM(AB57:AB61) -> 0 | AC56: =+SUM(AC57:AC61) -> 0 | AD56: 0 | AE56: =+SUM(AE57:AE61) -> 0 | AF56: =+SUM(AF57:AF61) -> 0 | AG56: 0 | AH56: =+SUM(AH57:AH61) -> 0 | AI56: =+SUM(AI57:AI61) -> 0 | AJ56: 0 | AK56: =+SUM(AK57:AK61) -> 0 | AL56: =+SUM(AL57:AL61) -> 0 | AM56: 0 | AN56: 0 | AO56: 0
A57: =IF('1. PRESUPUESTO INICIAL'!B70="","",'1. PRESUPUESTO INICIAL'!B70) -> Chalecos | C57: 0 | D57: 0 | E57: =IFERROR(C57-D57,0) -> 0 | F57: 0 | G57: 0 | H57: =IFERROR(F57-G57,0) -> 0 | I57: 0 | J57: 0 | K57: =IFERROR(I57-J57,0) -> 0 | L57: 0 | M57: 0 | N57: =IFERROR(L57-M57,0) -> 0 | O57: 0 | P57: 0 | Q57: =IFERROR(O57-P57,0) -> 0 | R57: 0 | S57: 0 | T57: =IFERROR(R57-S57,0) -> 0 | U57: 0 | V57: 0 | W57: =IFERROR(U57-V57,0) -> 0 | X57: 0 | Y57: 0 | Z57: =IFERROR(X57-Y57,0) -> 0 | AA57: 0 | AB57: 0 | AC57: =IFERROR(AA57-AB57,0) -> 0 | AD57: 0 | AE57: 0 | AF57: =IFERROR(AD57-AE57,0) -> 0 | AG57: 0 | AH57: 0 | AI57: =IFERROR(AG57-AH57,0) -> 0 | AJ57: 0 | AK57: 0 | AL57: =IFERROR(AJ57-AK57,0) -> 0 | AM57: =+SUMIFS(C57:AL57,$C$26:$AL$26,$AM$26) -> 0 | AN57: =+SUMIFS(C57:AL57,$C$26:$AL$26,$AN$26) -> 0 | AO57: =+SUMIFS(C57:AL57,$C$26:$AL$26,$AO$26) -> 0
A58: =IF('1. PRESUPUESTO INICIAL'!B71="","",'1. PRESUPUESTO INICIAL'!B71) -> Gorras | C58: 0 | D58: 0 | E58: =IFERROR(C58-D58,0) -> 0 | F58: 0 | G58: 0 | H58: =IFERROR(F58-G58,0) -> 0 | I58: 0 | J58: 0 | K58: =IFERROR(I58-J58,0) -> 0 | L58: 0 | M58: 0 | N58: =IFERROR(L58-M58,0) -> 0 | O58: 0 | P58: 0 | Q58: =IFERROR(O58-P58,0) -> 0 | R58: 0 | S58: 0 | T58: =IFERROR(R58-S58,0) -> 0 | U58: 0 | V58: 0 | W58: =IFERROR(U58-V58,0) -> 0 | X58: 0 | Y58: 0 | Z58: =IFERROR(X58-Y58,0) -> 0 | AA58: 0 | AB58: 0 | AC58: =IFERROR(AA58-AB58,0) -> 0 | AD58: 0 | AE58: 0 | AF58: =IFERROR(AD58-AE58,0) -> 0 | AG58: 0 | AH58: 0 | AI58: =IFERROR(AG58-AH58,0) -> 0 | AJ58: 0 | AK58: 0 | AL58: =IFERROR(AJ58-AK58,0) -> 0 | AM58: 0 | AN58: 0 | AO58: 0
A59: =IF('1. PRESUPUESTO INICIAL'!B72="","",'1. PRESUPUESTO INICIAL'!B72) -> Camisetas | C59: 0 | D59: 0 | E59: 0 | F59: 0 | G59: 0 | H59: 0 | I59: 0 | J59: 0 | K59: 0 | L59: 0 | M59: 0 | N59: 0 | O59: 0 | P59: 0 | Q59: 0 | R59: 0 | S59: 0 | T59: 0 | U59: 0 | V59: 0 | W59: 0 | X59: 0 | Y59: 0 | Z59: 0 | AA59: 0 | AB59: 0 | AC59: 0 | AD59: 0 | AE59: 0 | AF59: 0 | AG59: 0 | AH59: 0 | AI59: 0 | AJ59: 0 | AK59: 0 | AL59: 0 | AM59: 0 | AN59: 0 | AO59: 0
A60: =IF('1. PRESUPUESTO INICIAL'!B73="","",'1. PRESUPUESTO INICIAL'!B73) -> Carné | C60: 0 | D60: 0 | E60: 0 | F60: 0 | G60: 0 | H60: 0 | I60: 0 | J60: 0 | K60: 0 | L60: 0 | M60: 0 | N60: 0 | O60: 0 | P60: 0 | Q60: 0 | R60: 0 | S60: 0 | T60: 0 | U60: 0 | V60: 0 | W60: 0 | X60: 0 | Y60: 0 | Z60: 0 | AA60: 0 | AB60: 0 | AC60: 0 | AD60: 0 | AE60: 0 | AF60: 0 | AG60: 0 | AH60: 0 | AI60: 0 | AJ60: 0 | AK60: 0 | AL60: 0 | AM60: 0 | AN60: 0 | AO60: 0
A61: =IF('1. PRESUPUESTO INICIAL'!B75="","",'1. PRESUPUESTO INICIAL'!B75) -> Pendón | C61: 0 | D61: 0 | E61: 0 | F61: 0 | G61: 0 | H61: 0 | I61: 0 | J61: 0 | K61: 0 | L61: 0 | M61: 0 | N61: 0 | O61: 0 | P61: 0 | Q61: 0 | R61: 0 | S61: 0 | T61: 0 | U61: 0 | V61: 0 | W61: 0 | X61: 0 | Y61: 0 | Z61: 0 | AA61: 0 | AB61: 0 | AC61: 0 | AD61: 0 | AE61: 0 | AF61: 0 | AG61: 0 | AH61: 0 | AI61: 0 | AJ61: 0 | AK61: 0 | AL61: 0 | AM61: 0 | AN61: 0 | AO61: 0
A62: =IF('1. PRESUPUESTO INICIAL'!B79="","",'1. PRESUPUESTO INICIAL'!B79) -> SEGURO | C62: 0 | D62: 0 | E62: =IFERROR(C62-D62,0) -> 0 | F62: 0 | G62: 0 | H62: =IFERROR(F62-G62,0) -> 0 | I62: 0 | J62: 0 | K62: =IFERROR(I62-J62,0) -> 0 | L62: 0 | M62: 0 | N62: =IFERROR(L62-M62,0) -> 0 | O62: 0 | P62: 0 | Q62: =IFERROR(O62-P62,0) -> 0 | R62: 0 | S62: 0 | T62: =IFERROR(R62-S62,0) -> 0 | U62: 0 | V62: 0 | W62: =IFERROR(U62-V62,0) -> 0 | X62: 0 | Y62: 0 | Z62: =IFERROR(X62-Y62,0) -> 0 | AA62: 0 | AB62: 0 | AC62: =IFERROR(AA62-AB62,0) -> 0 | AD62: 0 | AE62: 0 | AF62: =IFERROR(AD62-AE62,0) -> 0 | AG62: 0 | AH62: 0 | AI62: =IFERROR(AG62-AH62,0) -> 0 | AJ62: 0 | AK62: 0 | AL62: =IFERROR(AJ62-AK62,0) -> 0 | AM62: 0 | AN62: 0 | AO62: 0
A63: =IF('1. PRESUPUESTO INICIAL'!B85="","",'1. PRESUPUESTO INICIAL'!B85) -> GASTOS OPERATIVOS | C63: =+SUM(C64:C72) -> 0 | D63: 0 | E63: 0 | F63: =+SUM(F64:F72) -> 0 | G63: 0 | H63: 0 | I63: 0 | J63: 0 | K63: 0 | L63: 0 | M63: 0 | N63: 0 | O63: 0 | P63: 0 | Q63: 0 | R63: 0 | S63: 0 | T63: 0 | U63: 0 | V63: 0 | W63: 0 | X63: 0 | Y63: 0 | Z63: 0 | AA63: 0 | AB63: 0 | AC63: 0 | AD63: 0 | AE63: 0 | AF63: 0 | AG63: 0 | AH63: 0 | AI63: 0 | AJ63: 0 | AK63: 0 | AL63: 0 | AM63: 0 | AN63: 0 | AO63: 0
A64: =IF('1. PRESUPUESTO INICIAL'!B87="","",'1. PRESUPUESTO INICIAL'!B87) -> Aseo | C64: 0 | D64: 0 | E64: =IFERROR(C64-D64,0) -> 0 | F64: 0 | G64: 0 | H64: =IFERROR(F64-G64,0) -> 0 | I64: 0 | J64: 0 | K64: =IFERROR(I64-J64,0) -> 0 | L64: 0 | M64: 0 | N64: =IFERROR(L64-M64,0) -> 0 | O64: 0 | P64: 0 | Q64: =IFERROR(O64-P64,0) -> 0 | R64: 0 | S64: 0 | T64: =IFERROR(R64-S64,0) -> 0 | U64: 0 | V64: 0 | W64: =IFERROR(U64-V64,0) -> 0 | X64: 0 | Y64: 0 | Z64: =IFERROR(X64-Y64,0) -> 0 | AA64: 0 | AB64: 0 | AC64: =IFERROR(AA64-AB64,0) -> 0 | AD64: 0 | AE64: 0 | AF64: =IFERROR(AD64-AE64,0) -> 0 | AG64: 0 | AH64: 0 | AI64: =IFERROR(AG64-AH64,0) -> 0 | AJ64: 0 | AK64: 0 | AL64: =IFERROR(AJ64-AK64,0) -> 0 | AM64: =+SUMIFS(C64:AL64,$C$26:$AL$26,$AM$26) -> 0 | AN64: =+SUMIFS(C64:AL64,$C$26:$AL$26,$AN$26) -> 0 | AO64: =+SUMIFS(C64:AL64,$C$26:$AL$26,$AO$26) -> 0
A65: =IF('1. PRESUPUESTO INICIAL'!B88="","",'1. PRESUPUESTO INICIAL'!B88) -> Servicios públicos | C65: 0 | D65: 0 | E65: 0 | F65: 0 | G65: 0 | H65: 0 | I65: 0 | J65: 0 | K65: 0 | L65: 0 | M65: 0 | N65: 0 | O65: 0 | P65: 0 | Q65: 0 | R65: 0 | S65: 0 | T65: 0 | U65: 0 | V65: 0 | W65: 0 | X65: 0 | Y65: 0 | Z65: 0 | AA65: 0 | AB65: 0 | AC65: 0 | AD65: 0 | AE65: 0 | AF65: 0 | AG65: 0 | AH65: 0 | AI65: 0 | AJ65: 0 | AK65: 0 | AL65: 0 | AM65: 0 | AN65: 0 | AO65: 0
A66: =IF('1. PRESUPUESTO INICIAL'!B89="","",'1. PRESUPUESTO INICIAL'!B89) -> Papelería asociada con el manejo administrativo del contrato | C66: 0 | D66: 0 | E66: 0 | F66: 0 | G66: 0 | H66: 0 | I66: 0 | J66: 0 | K66: 0 | L66: 0 | M66: 0 | N66: 0 | O66: 0 | P66: 0 | Q66: 0 | R66: 0 | S66: 0 | T66: 0 | U66: 0 | V66: 0 | W66: 0 | X66: 0 | Y66: 0 | Z66: 0 | AA66: 0 | AB66: 0 | AC66: 0 | AD66: 0 | AE66: 0 | AF66: 0 | AG66: 0 | AH66: 0 | AI66: 0 | AJ66: 0 | AK66: 0 | AL66: 0 | AM66: 0 | AN66: 0 | AO66: 0
A67: =IF('1. PRESUPUESTO INICIAL'!B90="","",'1. PRESUPUESTO INICIAL'!B90) -> Acciones de movilización social | C67: 0 | D67: 0 | E67: 0 | F67: 0 | G67: 0 | H67: 0 | I67: 0 | J67: 0 | K67: 0 | L67: 0 | M67: 0 | N67: 0 | O67: 0 | P67: 0 | Q67: 0 | R67: 0 | S67: 0 | T67: 0 | U67: 0 | V67: 0 | W67: 0 | X67: 0 | Y67: 0 | Z67: 0 | AA67: 0 | AB67: 0 | AC67: 0 | AD67: 0 | AE67: 0 | AF67: 0 | AG67: 0 | AH67: 0 | AI67: 0 | AJ67: 0 | AK67: 0 | AL67: 0 | AM67: 0 | AN67: 0 | AO67: 0
A68: =IF('1. PRESUPUESTO INICIAL'!B91="","",'1. PRESUPUESTO INICIAL'!B91) -> Gastos bancarios (comisiones, transferencias y chequeras) | C68: 0 | D68: 0 | E68: 0 | F68: 0 | G68: 0 | H68: 0 | I68: 0 | J68: 0 | K68: 0 | L68: 0 | M68: 0 | N68: 0 | O68: 0 | P68: 0 | Q68: 0 | R68: 0 | S68: 0 | T68: 0 | U68: 0 | V68: 0 | W68: 0 | X68: 0 | Y68: 0 | Z68: 0 | AA68: 0 | AB68: 0 | AC68: 0 | AD68: 0 | AE68: 0 | AF68: 0 | AG68: 0 | AH68: 0 | AI68: 0 | AJ68: 0 | AK68: 0 | AL68: 0 | AM68: 0 | AN68: 0 | AO68: 0
A69: =IF('1. PRESUPUESTO INICIAL'!B92="","",'1. PRESUPUESTO INICIAL'!B92) -> Materiales o dispositivos de apoyo de baja complejidad para los participantes | C69: 0 | D69: 0 | E69: 0 | F69: 0 | G69: 0 | H69: 0 | I69: 0 | J69: 0 | K69: 0 | L69: 0 | M69: 0 | N69: 0 | O69: 0 | P69: 0 | Q69: 0 | R69: 0 | S69: 0 | T69: 0 | U69: 0 | V69: 0 | W69: 0 | X69: 0 | Y69: 0 | Z69: 0 | AA69: 0 | AB69: 0 | AC69: 0 | AD69: 0 | AE69: 0 | AF69: 0 | AG69: 0 | AH69: 0 | AI69: 0 | AJ69: 0 | AK69: 0 | AL69: 0 | AM69: 0 | AN69: 0 | AO69: 0
A70: =IF('1. PRESUPUESTO INICIAL'!B93="","",'1. PRESUPUESTO INICIAL'!B93) -> Otros (lo que se requiera para el adecuado desarrollo de la Modalidad) | C70: 0 | D70: 0 | E70: 0 | F70: 0 | G70: 0 | H70: 0 | I70: 0 | J70: 0 | K70: 0 | L70: 0 | M70: 0 | N70: 0 | O70: 0 | P70: 0 | Q70: 0 | R70: 0 | S70: 0 | T70: 0 | U70: 0 | V70: 0 | W70: 0 | X70: 0 | Y70: 0 | Z70: 0 | AA70: 0 | AB70: 0 | AC70: 0 | AD70: 0 | AE70: 0 | AF70: 0 | AG70: 0 | AH70: 0 | AI70: 0 | AJ70: 0 | AK70: 0 | AL70: 0 | AM70: 0 | AN70: 0 | AO70: 0
A71: =IF('1. PRESUPUESTO INICIAL'!B94="","",'1. PRESUPUESTO INICIAL'!B94) ->  | C71: 0 | D71: 0 | E71: 0 | F71: 0 | G71: 0 | H71: 0 | I71: 0 | J71: 0 | K71: 0 | L71: 0 | M71: 0 | N71: 0 | O71: 0 | P71: 0 | Q71: 0 | R71: 0 | S71: 0 | T71: 0 | U71: 0 | V71: 0 | W71: 0 | X71: 0 | Y71: 0 | Z71: 0 | AA71: 0 | AB71: 0 | AC71: 0 | AD71: 0 | AE71: 0 | AF71: 0 | AG71: 0 | AH71: 0 | AI71: 0 | AJ71: 0 | AK71: 0 | AL71: 0 | AM71: 0 | AN71: 0 | AO71: 0
A72: =IF('1. PRESUPUESTO INICIAL'!B95="","",'1. PRESUPUESTO INICIAL'!B95) ->  | C72: 0 | D72: 0 | E72: 0 | F72: 0 | G72: 0 | H72: 0 | I72: 0 | J72: 0 | K72: 0 | L72: 0 | M72: 0 | N72: 0 | O72: 0 | P72: 0 | Q72: 0 | R72: 0 | S72: 0 | T72: 0 | U72: 0 | V72: 0 | W72: 0 | X72: 0 | Y72: 0 | Z72: 0 | AA72: 0 | AB72: 0 | AC72: 0 | AD72: 0 | AE72: 0 | AF72: 0 | AG72: 0 | AH72: 0 | AI72: 0 | AJ72: 0 | AK72: 0 | AL72: 0 | AM72: 0 | AN72: 0 | AO72: 0
A73: =IF('1. PRESUPUESTO INICIAL'!B99="","",'1. PRESUPUESTO INICIAL'!B99) -> N/A | C73: 0 | D73: 0 | E73: =IFERROR(C73-D73,0) -> 0 | F73: 0 | G73: 0 | H73: =IFERROR(F73-G73,0) -> 0 | I73: 0 | J73: 0 | K73: =IFERROR(I73-J73,0) -> 0 | L73: 0 | M73: 0 | N73: =IFERROR(L73-M73,0) -> 0 | O73: 0 | P73: 0 | Q73: =IFERROR(O73-P73,0) -> 0 | R73: 0 | S73: 0 | T73: =IFERROR(R73-S73,0) -> 0 | U73: 0 | V73: 0 | W73: =IFERROR(U73-V73,0) -> 0 | X73: 0 | Y73: 0 | Z73: =IFERROR(X73-Y73,0) -> 0 | AA73: 0 | AB73: 0 | AC73: =IFERROR(AA73-AB73,0) -> 0 | AD73: 0 | AE73: 0 | AF73: =IFERROR(AD73-AE73,0) -> 0 | AG73: 0 | AH73: 0 | AI73: =IFERROR(AG73-AH73,0) -> 0 | AJ73: 0 | AK73: 0 | AL73: =IFERROR(AJ73-AK73,0) -> 0 | AM73: 0 | AN73: 0 | AO73: 0
A74: =IF('1. PRESUPUESTO INICIAL'!B102="","",'1. PRESUPUESTO INICIAL'!B102) -> GRAVAMEN MOVIMIENTOS FINANCIEROS GMF | C74: 0 | D74: 0 | E74: =IFERROR(C74-D74,0) -> 0 | F74: 0 | G74: 0 | H74: =IFERROR(F74-G74,0) -> 0 | I74: 0 | J74: 0 | K74: =IFERROR(I74-J74,0) -> 0 | L74: 0 | M74: 0 | N74: =IFERROR(L74-M74,0) -> 0 | O74: 0 | P74: 0 | Q74: =IFERROR(O74-P74,0) -> 0 | R74: 0 | S74: 0 | T74: =IFERROR(R74-S74,0) -> 0 | U74: 0 | V74: 0 | W74: =IFERROR(U74-V74,0) -> 0 | X74: 0 | Y74: 0 | Z74: =IFERROR(X74-Y74,0) -> 0 | AA74: 0 | AB74: 0 | AC74: =IFERROR(AA74-AB74,0) -> 0 | AD74: 0 | AE74: 0 | AF74: =IFERROR(AD74-AE74,0) -> 0 | AG74: 0 | AH74: 0 | AI74: =IFERROR(AG74-AH74,0) -> 0 | AJ74: 0 | AK74: 0 | AL74: =IFERROR(AJ74-AK74,0) -> 0 | AM74: 0 | AN74: 0 | AO74: 0
A75: TOTAL | C75: =+C27+C38+C43+C48+C49+C50+C56+C62+C63+C73+C74 -> 0 | D75: =+D27+D38+D43+D48+D49+D50+D56+D62+D63+D73+D74 -> 0 | E75: 0 | F75: 0 | G75: 0 | H75: 0 | I75: 0 | J75: 0 | K75: 0 | L75: 0 | M75: 0 | N75: 0 | O75: 0 | P75: 0 | Q75: 0 | R75: 0 | S75: 0 | T75: 0 | U75: 0 | V75: 0 | W75: 0 | X75: 0 | Y75: 0 | Z75: 0 | AA75: 0 | AB75: 0 | AC75: 0 | AD75: 0 | AE75: 0 | AF75: 0 | AG75: 0 | AH75: 0 | AI75: 0 | AJ75: 0 | AK75: 0 | AL75: 0 | AM75: 0 | AN75: 0 | AO75: 0
A76: DIFERENCIA SOPORTES
A77: TOTAL INEJECUCIONES MES (Inasistencias+No ejeutado+Diferencia Soportes) | C77: Inasistencias no se ejecuto en el mes y diferencias en soportes | E77: =+C19+E75+D76 -> 0 | F77: Inasistencias no se ejecuto en el mes y diferencias en soportes | H77: =+F19+H75+G76 -> 0 | I77: Inasistencias no se ejecuto en el mes y diferencias en soportes | K77: =+I19+K75+J76 -> 0 | L77: Inasistencias no se ejecuto en el mes y diferencias en soportes | N77: =+L19+N75+M76 -> 0 | O77: Inasistencias no se ejecuto en el mes y diferencias en soportes | Q77: =+O19+Q75+P76 -> 0 | R77: Inasistencias no se ejecuto en el mes y diferencias en soportes | T77: =+R19+T75+S76 -> 0 | U77: Inasistencias no se ejecuto en el mes y diferencias en soportes | W77: =+U19+W75+V76 -> 0 | X77: Inasistencias no se ejecuto en el mes y diferencias en soportes | Z77: =+X19+Z75+Y76 -> 0 | AA77: Inasistencias no se ejecuto en el mes y diferencias en soportes | AC77: =+AA19+AC75+AB76 -> 0 | AD77: Inasistencias no se ejecuto en el mes y diferencias en soportes | AF77: =+AD19+AF75+AE76 -> 0 | AG77: Inasistencias no se ejecuto en el mes y diferencias en soportes | AI77: =+AG19+AI75+AH76 -> 0 | AJ77: Inasistencias no se ejecuto en el mes y diferencias en soportes | AL77: =+AJ19+AL75+AK76 -> 0 | AM77: TOTAL
A78: VALOR A DESEMBOLSAR | C78: =+C75-E77 -> 0 | F78: =+F75-H77 -> 0 | I78: =+I75-K77 -> 0 | L78: =+L75-N77 -> 0 | O78: =+O75-Q77 -> 0 | R78: =+R75-T77 -> 0 | U78: =+U75-W77 -> 0 | X78: =+X75-Z77 -> 0 | AA78: =+AA75-AC77 -> 0 | AD78: =+AD75-AF77 -> 0 | AG78: =+AG75-AI77 -> 0 | AJ78: =+AJ75-AL77 -> 0 | AM78: TOTAL VALOR A DESEMBOLSAR | AN78: =+SUM(C78:AL78) -> 0
A79: 5. RENDIMIENTOS FINANCIEROS/REINTEGROS | AM79: TOTAL RENDIMIENTOS FINANCIEROS/REINTEGROS
C80: El Convenio/Contrato generó rendimientos financieros: | F80: SÍ | G80: NO | H80: La entidad generó reintegros: | K80: SÍ | L80: NO
B83: FECHA DE INICIO (Extracto Bancario) | C83: FECHA DE CORTE (Extracto Bancario) | D83: VALOR RENDIMIENTOS FINANCIEROS | F83: FECHA CONSIGNACIÓN | I83: ANEXA RECIBO (SÍ/NO) | J83: VALOR REINTEGROS
B84: DD/MM/AAAA | C84: DD/MM/AAAA | D84: 0 | F84: DD/MM/AAAA | J84: 0
B85: DD/MM/AAAA | C85: DD/MM/AAAA | D85: 0 | F85: DD/MM/AAAA | J85: 0
B86: DD/MM/AAAA | C86: DD/MM/AAAA | D86: 0 | F86: DD/MM/AAAA | J86: 0
B87: DD/MM/AAAA | C87: DD/MM/AAAA | D87: 0 | F87: DD/MM/AAAA | J87: 0
F90: Para constancia de lo anterior, se firma el presente informe a los | G90: DD/MM/AAAA
F98: Contador/Revisor Fiscal (según aplique) | Q98: Representante Legal
F99: Nombre: | Q99: Nombre:
F100: C.C.: | Q100: C.C.:
F101: Tarjeta Profesional:
A104: ¡Antes de imprimir este documento… piense en el medio ambiente! Cualquier copia impresa de este documento se considera como COPIA NO CONTROLADA. LOS DATOS PROPORCIONADOS SERÁN TRATADOS DE ACUERDO A LA POLÍTICA DE TRATAMIENTO DE DATOS PERSONALES DEL ICBF Y A LA LEY 1581 DE 2012

Sheet 3. CONTRAPARTIDA
C1: PROCESO PROMOCIÓN Y PREVENCIÓN FORMATO SEGUIMIENTO FINANCIERO CENTROS DE APOYO A LA INCLUSIÓN ITINERANTE | Q1: =+'2. INFORMACION GENERAL'!Z1 -> F24.GO1.MT7.PP | R1: =+'1. PRESUPUESTO INICIAL'!G1 -> 2025-08-22
Q2: =+'2. INFORMACION GENERAL'!Z2 -> Versión 1 | R2: Página 1 de 1
Q3: Clasificación de la Información: Pública
A4: 3. CONTRAPARTIDA
A5: DETALLES DE LA EJECUCIÓN DE LA CONTRAPARTIDA
A6: CODIGO | B6: LINEAS DE INVERSION | C6: DESCRIPCIÓN | D6: VALOR PRESUPUESTADO | E6: ENERO | F6: FEBRERO | G6: MARZO | H6: ABRIL | I6: MAYO | J6: JUNIO | K6: JULIO | L6: AGOSTO | M6: SEPTIEMBRE | N6: OCTUBRE | O6: NOVIEMBRE | P6: DICIEMBRE | Q6: VALOR EJECUTADO A LA FECHA | R6: SALDO POR EJECUTAR
A7: 1301 | B7: MATERIALES O IMPLEMENTOS | C7: PERMITAN CUALIFICAR EL DESARROLLO DE LAS ACTIVIDADES PROPUESTAS, DE ACUERDO CON LA METODOLOGÍA IMPLEMENTADA EN EL MANUAL OPERATIVO DE LA MODALIDAD PARA EL RECONOCIMIENTO, LA GARANTÍA Y LA PROTECCIÓN INTEGRAL DE DERECHOS, EL BUEN VIVIR Y LA PARTICIPACIÓN DE NIÑAS, NIÑOS Y ADOLESCENTES | Q7: =+SUM(E7:P7) -> 0 | R7: =+D7-Q7 -> 0
A8: 1302 | B8: ACTIVIDADES DE MOVILIZACIÓN SOCIAL | C8: PARA EL RECONOCIMIENTO Y GARANTÍA DE LOS DERECHOS DE NIÑAS, NIÑOS Y ADOLESCENTES. | Q8: =+SUM(E8:P8) -> 0 | R8: =+D8-Q8 -> 0
Q9: =+SUM(E9:P9) -> 0 | R9: =+D9-Q9 -> 0
Q10: =+SUM(E10:P10) -> 0 | R10: =+D10-Q10 -> 0
Q11: =+SUM(E11:P11) -> 0 | R11: =+D11-Q11 -> 0
A12: TOTAL APORTE | D12: =+SUM(D7:D11) -> 0 | E12: =+SUM(E7:E11) -> 0 | F12: 0 | G12: 0 | H12: 0 | I12: 0 | J12: 0 | K12: 0 | L12: 0 | M12: 0 | N12: 0 | O12: 0 | P12: 0 | Q12: 0 | R12: 0
G16: Firma del Representante Legal
A18: ¡Antes de imprimir este documento… piense en el medio ambiente!
A19: Cualquier copia impresa de este documento se considera como COPIA NO CONTROLADA
A20: LOS DATOS PROPORCIONADOS SERÁN TRATADOS DE ACUERDO A LA POLÌTICA DE TRATAMIENTO DE DATOS PERSONALES DEL ICBF Y A LA LEY 1581 DE 2012

Sheet 4. DETALLADA-RECURSOS ICBF
C1: PROCESO PROMOCIÓN Y PREVENCIÓN FORMATO SEGUIMIENTO FINANCIERO CENTROS DE APOYO A LA INCLUSIÓN ITINERANTE | L1: =+'3. CONTRAPARTIDA'!Q1 -> F24.GO1.MT7.PP | M1: =+'3. CONTRAPARTIDA'!R1 -> 2025-08-22
L2: =+'3. CONTRAPARTIDA'!Q2 -> Versión 1 | M2: Página 1 de 1
L3: Clasificación de la Información Pública
A6: 4. RELACIÓN DE EGRESOS (COSTOS-GASTOS) EJECUTADOS
A7: REGISTRAR ÚNICAMENTE LOS EGRESOS EJECUTADOS *Para insertar filas: Primero copie la fila y continúe con el comando "Insertar celdas copiadas" | K7: Total ejecución del periodo | L7: =SUM(L9:L1298) -> 0
A8: Etapa | B8: Fecha del soporte | C8: Proveedor | D8: Tipo de identificación | E8: Número de identificación proveedor | F8: Soporte | G8: N° de registro contable | H8: N° de registro Egreso (Tesorería) | I8: Descripción soporte | J8: Componente de Egreso (Costo-Gasto) | K8: Subcomponente de Egreso (Costo-Gasto) | L8: Valor total pagado | M8: Pago SÍ / NO
A1299: - | B1299: - | C1299: - | D1299: - | E1299: - | F1299: - | G1299: - | H1299: - | I1299: - | J1299: - | K1299: - | L1299: - | M1299: -
A1301: Para constancia de lo anterior, se firma el presente documento a los
B1303: Contador/Revisor Fiscal (según aplique)
B1304: Nombre:
B1305: C.C.:
B1306: Tarjeta profesional:
A1307: ¡Antes de imprimir este documento… piense en el medio ambiente! Cualquier copia impresa de este documento se considera como COPIA NO CONTROLADA LOS DATOS PROPORCIONADOS SERÁN TRATADOS DE ACUERDO A LA POLÌTICA DE TRATAMIENTO DE DATOS PERSONALES DEL ICBF Y A LA LEY 1581 DE 2012

Sheet 5. TABLA TOTALES EJECUTADOS
B1: PROCESO PROMOCIÓN Y PREVENCIÓN FORMATO SEGUIMIENTO FINANCIERO CENTROS DE APOYO A LA INCLUSIÓN ITINERANTE | L1: =+'4. DETALLADA-RECURSOS ICBF'!L1 -> F24.GO1.MT7.PP | M1: =+'1. PRESUPUESTO INICIAL'!G1 -> 2025-08-22
L2: =+'3. CONTRAPARTIDA'!Q2 -> Versión 1 | M2: Página 1 de 1
L3: Clasificación de la Información Pública
A6: TABLA VALORES TOTALES EJECUTADOS DEL PERIODO
A8: Pago SÍ / NO | B8: (Todas)
A10: Suma de Valor total pagado | B10: Etiquetas de columna
A11: Etiquetas de fila | B11: Alistamiento | C11: (en blanco) | D11: Total general
A12: (en blanco)
A13: Total general
A52: ¡Antes de imprimir este documento… piense en el medio ambiente! Cualquier copia impresa de este documento se considera como COPIA NO CONTROLADA LOS DATOS PROPORCIONADOS SERÁN TRATADOS DE ACUERDO A LA POLÍTICA DE TRATAMIENTO DE DATOS PERSONALES DEL ICBF Y A LA LEY 1581 DE 2012

Sheet Hoja3 (hidden)
A1: INFORMACION POR COLUMNAS Presupuesto aprobado para el periodo: Registre en esta columna el valor total del presupuesto por ITEMS para el periodo que está informando. Debe ser igual al valor del periodo del presupuesto aprobado. Más ejecución programada periodo anterior: Registre en esta columna los valores correspondientes al presupuesto del periodo anterior que no se ejecutaron y que se registraron en la columna Ejecución programada para el siguiente periodo y que se acumulan para su ejecución en este periodo. Valor total presupuesto disponible en el periodo: Columna con las celdas formuladas que suma el presupuesto aprobado para el periodo más los valores programados en el periodo anterior que se ejecutarán en este. Ejecución del periodo incluye valores pagados y por pagar y el valor provisionado por concepto de prestaciones sociales: Esta columna relaciona para cada uno de los ÍTEMS el valor ejecutado en el periodo incluye cuentas por pagar y provisiones de ley del talento humano. Para el talento humano se debe ingresar el valor manualmente, para los demás rubros el valor esta formulado con base en la información relacionada en el formato “3. DETALLE DE EJECUCIÓN MENSUAL” Estos valores deben estar sustentados con los respectivos soportes financieros (facturas, contratos, planillas de nómina y seguridad social, etc.). Ejecución programada para el siguiente periodo: Registre en esta columna los valores por ITEMS, que no se ejecutaron en el periodo por alguna circunstancia especial (en el caso de los recibos de servicio que no llegaron en el mes, reparaciones locativas programadas para periodos posteriores, compras anticipadas, etc.). No se puede reprogramar valores como talento humano y alimentación. Saldo de ejecución en el periodo: Columna con las celdas formuladas que descuenta del presupuesto aprobado para el periodo y para cada uno de los ITEMS los valores ejecutados más los programados. Las cifras de esta columna constituyen los valores que serán reducidos del contrato. Estos valores se pueden presentar por ahorros o inejecuciones que se presentan en la ejecución el periodo. Valor Ahorros del periodo: En esta columna se relacionar, cuando se presenten saldos de ejecución en el periodo, los valores correspondientes a ahorros de acuerdo con el concepto establecido en el manual operativo de la modalidad. Valor inejecuciones del periodo: En esta columna se relacionar, cuando se presenten saldos de ejecución en el periodo, los valores correspondientes a inejecuciones de acuerdo con el concepto establecido en el manual operativo de la modalidad. Valor de la carga prestacional en el periodo: Registre en esta columna para cada uno de los ITEMS del talento humano la carga prestacional del periodo. OBSERVACIONES: En este cuadro describa, cuando aplique, los aspectos que ameritan ser explicados respecto a los valores relacionados en el formato Finalmente están las firmas del contador y/o tesorero y representante legal de la EAS Nota: Este formato se presenta por mes.
